Workbook

Sheet Utilitaire (hidden)
B3: Mot de passe: | C3: !1320PACC | D3: Fiche verrouillée: | E3: Oui - diffusion en ligne
B4: Fiche validée: | C4: Oui | D4: Fiche générée
B5: GES attendu: | D5: Est-ce que le pop-up "validation" s'affiche: | E5: Générée
B6: Feuille accueil complètement remplie: | C6: Oui | D6: Exercice de suivi: | E6: 2022-03-31 | F6: Date de l'exercice: | G6: 2022-03-31
B7: Statut action: | C7: =Accueil!D58 -> en cours | F7: Année Courante | G7: 2022-2023
B8: Feuille Utilitaire visible: | C8: Non | D8: Titre des Onglets: | E8: Plan d'action 2013-2020 sur les changements climatiques
B9: Dernière ligne de la zone de défilement de l'onglet détail des projets: | C9: 294
B10: nombre d'indicateurs approuvés: | C10: 6
B11: Secteur: | C11: Plan d'action 2013-2020 sur les changements climatiques
B12: Numéro de séquence de l'action: | C12: 24.01 | D12: Remplir la section Évaluation requis : | E12: =IF(Utilitaire!C7=I21,"Oui",IF(C7=I23,"Oui","Non")) -> Non | F12: Première ligne masquée dans l'onglet Indicateurs : | G12: 164
B13: Première ligne masquée dans l'onglet Description: | C13: 85 | D13: Affiche onglet Évaluation: | E13: Oui | F13: Première ligne masquée dans l'onglet Évaluation: | G13: 51
B15: Listes Déroulantes
B16: Onglet "Détail des projets" | G16: Onglet "Indicateurs" | H16: DRFM COF | I16: Accueil
B17: Région Administrative | C17: Statut | D17: Classification | E17: Type d'émissions | F17: Info GES | G17: Type d'indicateur | H17: Exercice de suivi | I17: Statut de l'action | J17: Programmes | K17: Fiche verrouillée
B18: 99-toutes les régions | C18: COVID-19 - Reporté ou prolongé | D18: SU-Subvention | E18: QC-Québec | F18: Oui | G18: Minimum à atteindre | H18: 2013-2014-1 | I18: non démarrée | J18: Sans objet | K18: Oui - partenaire
B19: 01-Bas-Saint-Laurent | C19: COVID-19 - Suspendu | D19: CF-Contrat fonctionnement | E19: HQ-Hors-Québec | F19: Non | G19: Maximum à ne pas dépasser | H19: 2013-2014-2 | I19: en élaboration | J19: Programme "Faites de l'air!" | K19: Oui - diffusion en ligne
B20: 02-Saguenay- Lac-Saint-Jean | C20: COVID-19 - Annulé | D20: CI-Contrat immobilisation | E20: ND-Non distingué | G20: Binaire | H20: 2014-2015-1 | I20: en cours | J20: Programme Action-Climat Québec | K20: Non - BGFV
B21: 03-Capitale-Nationale | C21: AC-Actif | D21: CP-Contrat service professionnel | H21: 2014-2015-2 | I21: terminée | J21: Programme Chauffez vert
B22: 04-Mauricie | C22: TE-Terminé | D22: CT-Contrat service technique | H22: 2015-2016-1 | I22: en suspens | J22: Programme Climat municipalités - Phase 2
B23: 05-Estrie | C23: AT-En attente | D23: PI-Projet à l'interne | H23: 2015-2016-2 | I23: Retirée du PACC | J23: Programme d’aide gouvernementale à l’amélioration des services de transport en commun (PAGASTC )
B24: 06-Montréal | C24: SU-Suspendu | D24: AU-Autre | G24: Étape | H24: 2016-2017-1 | J24: Programme d’aide gouvernementale au transport collectif des personnes (PAGTCP)
B25: 07-Outaouais | C25: AN-Annulé | G25: Recherche | H25: 2016-2017-2 | J25: Programme d’aide gouvernementale transitoire en matière de transport routier des personnes | K25: Commentaires
B26: 08-Abitibi-Témiscamingue | C26: AB-Abandonné | G26: Étude de cas et caractérisation des impacts des CC | H26: 2017-2018-1 | J26: Programme d'aide à la réduction des émissions de gaz à effet de serre dans le transport routier des marchandises - ÉcoCamionnage | K26: Accueil
B27: 09-Côte-Nord | C27: Projet en lien avec le transport | D27: Horizon temporel Potentiel GES | F27: Catégories | G27: Surveillance et prévention | H27: 2017-2018-2 | J27: Programme d'aide à la réhabilitation des terrains contaminés - ClimatSol-Plus - Volet 1 | K27: Description
B28: 10-Nord-du-Québec | C28: Oui | D28: À la fin du projet (suite au dernier versement) | F28: Agricole | G28: Réalisation | H28: 2018-2019-1 | J28: Programme d'aide à l'amélioration de l'efficacité du transport maritime, aérien et ferroviaire en matière de réduction des émissions de GES (PETMAF) | K28: Détail des projets
B29: 11-Gaspésie-Iles-de-la-Madeleine | C29: Non | D29: Cinq ans après la commercialisation du produit | F29: Aménagement du territoire | G29: Aide à la décision | H29: 2018-2019-2 | I29: Part de financement par le PACC | J29: Programme d'aide au développement du transport collectif (PADTC) | K29: GES
B30: 12-Chaudières-Appalaches | D30: Dix ans après la commercialisation du produit | F30: Bâtiment | G30: Sensibilisation et formation | H30: 2019-2020-1 | I30: Variable | J30: Programme d'aide aux nouvelles mobilités des personnes (NOMO) | K30: Indicateurs
B31: 13-Laval | D31: 2030 | F31: Biodiversité, écosystèmes et ressources naturelles | G31: Cadre législatif | H31: 2019-2020-2 | I31: =10 & " %" -> 10 % | J31: Programme d'aide financière au développement des transports actifs dans les périmètres urbains (TAPU) | K31: Validation
B32: 14-Lanaudière | D32: 2040 | F32: Industriel, commercial et institutionnel | H32: 2020-2021-1 | I32: =20 & " %" -> 20 % | J32: Programme d'aide financière pour la planification de milieux de vie durables | K32: Tout - autres
B33: 15-Laurentides | D33: 2050 | F33: Matières résiduelles | H33: 2020-2021-2 | I33: =30 & " %" -> 30 % | J33: Programme d'aide financière pour le compostage domestique et communautaire (ACDC)
B34: 16-Montérégie | F34: Reddition de comptes et partenariats | H34: 2021-2022-1 | I34: =40 & " %" -> 40 % | J34: Programme d'aide gouvernementale au transport collectif régional (PAGTCR)
B35: 17-Centre-du-Québec | F35: Santé et sécurité publique | G35: Ajustements | H35: 2021-2022-2 | I35: =50 & " %" -> 50 % | J35: Programme d'appui à la lutte contre les changements climatiques en agriculture (PALCCA) | K35: Onglet Évaluation
B36: Québec méridional | F36: Transports | G36: Agriculture | H36: 2022-2023-1 | I36: =60 & " %" -> 60 % | J36: Programme de biomasse forestière résiduelle | K36: Type de document
B37: À l'extérieur du Québec | F37: Autres | G37: Aménagement du territoire | H37: 2022-2023-2 | I37: =70 & " %" -> 70 % | J37: Programme de coopération climatique internationale (PCCI) | K37: Cadre d'évaluation
G38: Bâtiments et infrastructures | H38: 2023-2024-1 | I38: =80 & " %" -> 80 % | J38: Programme de formation continue sur l'utilisation du bois dans la construction | K38: Cadre de suivi d'évaluation préliminaire
G39: Forêts | H39: 2023-2024-2 | I39: =90 & " %" -> 90 % | J39: Programme de récupération et de valorisation des réfrigérateurs et congélateurs domestiques | K39: Rapport d'évaluation
B40: Onglet "Description" | G40: Industriel, commercial et institutionnel | I40: =100 & " %" -> 100 % | J40: Programme de soutien à la promotion de l'électrification des transports | K40: Résultats
B41: Clientèle | C41: État d'avancement | D41: Moyens | E41: Finalité | F41: COVID | G41: Océan, fleuve ou cours d'eau | J41: Programme de soutien à la réalisation de projets de démonstration de taxis électriques
B42: Citoyens | C42: Nouvelle | D42: Encadrement légal (politiques, stratégies, codes, réglementations, etc.) | E42: Adaptation aux effets des changements climatiques | F42: Aucun changement prévu | G42: Politiques et gestion | J42: Programme de soutien à l'intégration de l'adaptation aux changements climatiques à la planification municipale (PIACC) | K42: Type d'évaluation
B43: Entreprises (grandes entreprises) | C43: En cours | D43: Innovation, recherche et développement | E43: Réduction des émissions de gaz à effet de serre | F43: Diminution des coûts prévus | G43: Services à la population | J43: Programme de soutien au déploiement des autobus scolaires électriques au Québec | K43: En cours d'action
B44: Entreprises (petites ou moyennes entreprises) | C44: Complétée | D44: Réalisation (programmes et subventions favorisant l'exécution de solutions établies) | E44: Réduction et adaptation | F44: Augmentation des coûts prévus | G44: Suivi de l'état de l'environnement | J44: Programme de soutien aux essais de fertilisation | K44: Lorsque l'action est terminée
B45: Établissements de recherche | C45: Inactive | D45: Sensibilisation, formation et promotion | E45: Coordination | F45: L'augmentation prévue du coûts des projets rend le budget 2013-2020 insuffisant pour garantir la réalisation de tous les projets entamés | G45: Autres | J45: Programme de soutien aux municipalités dans la mise en place d'infrastructures de gestion durable des eaux de pluie à la source
B46: Ministères et organismes gouvernementaux | C46: Abandonnée | F46: moins d'un mois | J46: Programme de subventions à l’adaptation des taxis et des autocars interurbains pour le transport des personnes se déplaçant en fauteuil roulant
B47: Municipalités et organismes municipaux | F47: de 1 à 6 mois | J47: Programme de traitement des matières organiques par biométhanisation et compostage (PTMOBC) | K47: Recommandation
B48: Organismes à but non lucratif | F48: de 7 à 12 mois | J48: Programme de vitrine technologique pour les bâtiments et les solutions innovantes en bois | K48: Reconduire
F49: plus de 12 mois | J49: Programme d'innovation en construction bois | K49: Ne pas reconduire
F50: Aucun changement | G50: Risques | J50: Programme ÉcoPerformance | K50: Voir commentaire ci-dessous
F51: Retards prévus, mais les engagements seront tous pris avant le 31 décembre 2020 | G51: Biodiversité | J51: Programme Prime-Vert 2013-2018 | K51: Objectifs initiaux
F52: Retards prévus et les engagements ne pourront pas tous être pris avant le 31 décembre 2020 | G52: Économie | J52: Programme Roulez vert | K52: Oui
F53: Les échéanciers pourront être devancés | G53: Environnement | J53: Programme Technoclimat | K53: Partiellement
F54: Des cibles pourraient être atteintes avant les délais prévus | G54: Ressources naturelles | J54: Programme visant à rendre les établissements d'enseignement écoresponsables | K54: Non
F55: Toutes les cibles devraient être atteintes dans les délais prévus | G55: Santé et sécurité publique | J55: Programme visant la réduction des émissions de GES par le développement du transport intermodal (PREGTI)
F56: Toutes les cibles devraient être atteintes avec certains retards | G56: Services à la population | J56: Programme visant la réduction, la récupération et le recyclage des matières organiques du secteur des industries, commerces et institutions (ICI)
F58: Aucune cible ne pourra être atteinte | J58: Autre programme
G61: Effets des changements climatiques
G62: Dégradation d'écosystèmes
G63: Dégradation du pergélisol
G64: Intensification de l'érosion
G65: Exacerbation des aléas naturels
G66: Intensification des îlots de chaleur
G67: Modifications des régimes hydriques, de vagues ou de glaces
G68: Modifications des régimes de précipitations
G69: Propagation de maladies ou d'espèces nuisibles
G70: Qualité de l'air
G71: Tous les effets
G72: Autres
K82: Onglet de la fiche
K83: Accueil
K84: Administration
K85: Description
K86: Détail des projets
K87: GES
K88: Adaptation
K89: Indicateurs
K90: Commentaires
B227: ONGLET INDICATEURS: Liste des statuts de l'action
C228: 2013-2014 | D228: 2014-2015 | E228: 2015-2016 | F228: 2016-2017 | G228: 2017-2018 | H228: 2018-2019 | I228: 2019-2020 | J228: 2020-2021 | K228: 2021-2022 | L228: 2022-2023 | M228: 2023-2024 | N228: 2024-2025 | O228: 2025-2026 | P228: 2026-2027 | Q228: 2027-2028 | R228: 2026-2029
B229: Valeurs actuelles | C229: =IF(C228=$G$7,IF(Accueil!$D$58<>$C$239,Accueil!$D$58,IF(ISBLANK(C230),B230,C230)),C230) -> non démarrée | D229: =IF(D228=$G$7,IF(Accueil!$D$58<>$C$239,Accueil!$D$58,IF(ISBLANK(D230),C230,D230)),D230) -> non démarrée | E229: =IF(E228=$G$7,IF(Accueil!$D$58<>$C$239,Accueil!$D$58,IF(ISBLANK(E230),D230,E230)),E230) -> non démarrée | F229: =IF(F228=$G$7,IF(Accueil!$D$58<>$C$239,Accueil!$D$58,IF(ISBLANK(F230),E230,F230)),F230) -> non démarrée | G229: =IF(G228=$G$7,IF(Accueil!$D$58<>$C$239,Accueil!$D$58,IF(ISBLANK(G230),F230,G230)),G230) -> non démarrée | H229: =IF(H228=$G$7,IF(Accueil!$D$58<>$C$239,Accueil!$D$58,IF(ISBLANK(H230),G230,H230)),H230) -> non démarrée | I229: =IF(I228=$G$7,IF(Accueil!$D$58<>$C$239,Accueil!$D$58,IF(ISBLANK(I230),H230,I230)),I230) -> non démarrée | J229: =IF(J228=$G$7,IF(Accueil!$D$58<>$C$239,Accueil!$D$58,IF(ISBLANK(J230),I230,J230)),J230) -> non démarrée | K229: =IF(K228=$G$7,IF(Accueil!$D$58<>$C$239,Accueil!$D$58,IF(ISBLANK(K230),J230,K230)),K230) -> non démarrée | L229: =IF(L228=$G$7,IF(Accueil!$D$58<>$C$239,Accueil!$D$58,IF(ISBLANK(L230),K230,L230)),L230) -> en cours | M229: =IF(M228=$G$7,IF(Accueil!$D$58<>$C$239,Accueil!$D$58,IF(ISBLANK(M230),L230,M230)),M230) -> 0 | N229: =IF(N228=$G$7,IF(Accueil!$D$58<>$C$239,Accueil!$D$58,IF(ISBLANK(N230),M230,N230)),N230) -> 0 | O229: =IF(O228=$G$7,IF(Accueil!$D$58<>$C$239,Accueil!$D$58,IF(ISBLANK(O230),N230,O230)),O230) -> 0 | P229: =IF(P228=$G$7,IF(Accueil!$D$58<>$C$239,Accueil!$D$58,IF(ISBLANK(P230),O230,P230)),P230) -> 0 | Q229: =IF(Q228=$G$7,IF(Accueil!$D$58<>$C$239,Accueil!$D$58,IF(ISBLANK(Q230),P230,Q230)),Q230) -> 0 | R229: =IF(R228=$G$7,IF(Accueil!$D$58<>$C$239,Accueil!$D$58,IF(ISBLANK(R230),Q230,R230)),R230) -> 0
B230: Valeurs précédentes | C230: non démarrée | D230: non démarrée | E230: non démarrée | F230: non démarrée | G230: non démarrée | H230: non démarrée | I230: non démarrée | J230: non démarrée | K230: non démarrée
B233: IdStatutAction | C233: codeStatutAction | D233: valeurStatutAction | E233: rangStatut
B234: 1 | C234: =I18 -> non démarrée | D234: 0 | E234: 1
B235: 2 | C235: =I19 -> en élaboration | D235: 0 | E235: 2
B236: 3 | C236: en cours | D236: 0.5 | E236: 3
B237: 4 | C237: terminée | D237: 1 | E237: 4
B238: 5 | C238: en suspens | D238: 0 | E238: 5
B239: 6 | C239: Retirée du PACC | D239: 0 | E239: 6

Sheet Accueil
E2: EXERCICE DE SUIVI DU PLAN D'ACTION 2013-2020 SUR LES CHANGEMENTS CLIMATIQUES
B10: Bienvenue dans votre fiche de suivi du FECC - Gestion des matières résiduelles
B14: Échéance de transmission : | D14: 2022-06-14
B15: Nouveautés pour l’exercice de suivi de mai 2020
B16: RAPPEL :
B17: * Fin du PACC : Les conventions de subventions se rapportant aux engagements saisis à SAGIR sont maintenant signées.
B18: * Fin du PACC : Les projets réalisés à l'interne dans vos organisations doivent se terminer avant le 31 décembre 2022
B19: * Fin du PACC : Vous devez compléter l'onglet Évaluation.
B20: Consignes générales :
B21: →Les informations doivent correspondre à l'avancement de l'action en date du 31 mars 2022.
B22: →Assurez-vous de valider votre fiche (onglet Validation) avant de la transmettre à l’adresse suivante : suivi.climatique@environnement.gouv.qc.ca
B23: →Toute information confidentielle doit être saisie en bleu.
B24: →Conservez la fiche en format xlsm afin de pouvoir profiter des outils conviviaux.
B25: →La plupart des cellules contenant du texte sont limitées à 250 caractères.
B27: →Copier-coller des informations à partir d’un document Word verrouille les cellules concernées. Pour pouvoir à nouveau écrire et modifier le format de ces cellules, fermez et ouvrez à nouveau la fiche.
B29: →Besoin d’assistance? Écrivez-nous à l’adresse suivante en précisant votre question et vos coordonnées : suivi.climatique@environnement.gouv.qc.ca
K32: suivi.climatique@environnement.gouv.qc.ca
B50: Veuillez vérifier, corriger et compléter les informations ci-dessous :
B52: Priorité : | D52: 24 | E52: Favoriser l'émergence et le renforcement de la contribution du secteur de la forêt à la lutte contre les changements climatiques
B53: Action :
B54: Sous-action : | D54: 24.1.1 | E54: Biomasse forestière résiduelle - Volet TEQ
B55: Libellé usuel : | D55: 24.1.1 | E55: Soutien au développement des bioénergies pour réduire les émissions de GES à court terme – Programme Biomasse forestière résiduelle - Volet TEQ
B56: Programme : | D56: Programme de biomasse forestière résiduelle
B57: Nom du programme :
B58: Statut de l’action : | D58: en cours
B59: Raison du statut de l’action :
B63: Informations en date du : | D63: =Utilitaire!G6 -> 2022-03-31
B65: Ministère porteur : | D65: MERN (SITE) | I65: Direction responsable : | K65: Direction générale des opérations et de l'innovation
B66: Partenaires : | D66: S.O. | I66: Part de financement par le FECC : | K66: 1
B67: Budget 2013-2020 (M$) : | D67: 135.68 | I67: Autres sources de financement : | K67: Fonds pour une économie à faibles émissions de carbone (fédéral)
B68: Date de lancement de l’action : | D68: 2013-11-29 | I68: Date de fin de l’action : | K68: 2022-11-30
B69: Section réservée à l’usage exclusif du BECC (lignes 70 à 73 non publiées)
B70: Chargé de projet : | D70: Guy Desbiens | I70: Tél. : | K70: 418 627-6379, poste 708016
B71: Responsable ministériel : | D71: Dominique Deschênes | I71: Tél. : | K71: 418 627-6379, poste 708088
B72: Personne ressource pour le BECC : | D72: Guy Desbiens | I72: Tél. : | K72: 418 627-6379 ext. 708016
B73: Estimation des sommes résiduelles au 31 décembre 2020 ($) : | D73: 0 | I73: Précisions sur le montant des sommes résiduelles : | K73: s
B74: Téléphone pour informations : | D74: 1 866 266-0008
B75: Référence Web : | D75: https://transitionenergetique.gouv.qc.ca
B85: Ministère de l'Énergie et des Ressources naturelles (Sous-Ministère associé de l'Innovation et de la Transition Energétique)

Sheet Description
B2: =Utilitaire!E8 -> Plan d'action 2013-2020 sur les changements climatiques
B3: ="Action " & Accueil!D58 -> Action en cours
B4: =Accueil!D55 -> 24.1.1 | C4: =Accueil!E55 -> Soutien au développement des bioénergies pour réduire les émissions de GES à court terme – Programme Biomasse forestière résiduelle - Volet TEQ
B5: Ministère porteur : | D5: =Accueil!$D$65 -> MERN (SITE)
B6: Description
B15: Évaluation des effets de la COVID-19 sur la mise en œuvre de l'action
B16: Résultats attendus :
B17: Échéancier :
B18: Sommes engagées (projets en cours) :
B19: Autres :
B41: Informations en date du : | F41: 2022-03-31
B42: Informations générales
B43: Description de l'action : | C43: Le Programme de biomasse forestière résiduelle, soit l'action 24.1, est un programme d'aide financière qui vise globalement à réduire les émissions de gaz à effet de serre (GES) par le développement de la filière de l'utilisation directe de la biomasse forestière résiduelle (combustion) pour les applications de production d'énergie thermique (chauffage ou procédé) en vue de remplacer, totalement ou partiellement, les combustibles fossiles. Ce Programme vise également à soutenir la filière naissante de la valorisation de la biomasse forestière résiduelle à des fins énergétiques. De plus, il vise à induire une demande favorable au développement d'infrastructures et des réseaux de distribution de la biomasse forestière résiduelle au Québec.
B44: Objectif de l'action : | C44: Le Programme se divise en deux volets, le volet Analyse et le volet Implantation. Le volet Analyse a pour objectif d'étudier la possibilité d'une conversion énergétique à la biomasse forestière résiduelle d'un site, d'un bâtiment, qu'il soit existant ou nouveau. Ce volet permet la poursuite d'études de conversion ou d'études d'approvisionnement en biomasse forestière résiduelle. Le volet Implantation a pour objectif de soutenir financièrement des projets permettant de réduire ultimement les émissions de GES, par l'implantation d'une ou de plusieurs mesures ciblées en matière de conversion énergétique vers la biomasse forestière résiduelle pour les applications de production d'énergie thermique (chauffage ou procédé).
B45: Bénéficiaires : | C45: Entreprises (grandes entreprises) | E45: Entreprises (petites ou moyennes entreprises) | G45: Établissements de recherche | J45: Municipalités et organismes municipaux | M45: Organismes à but non lucratif
C46: Autres (précisez) :
B47: Critères d'admissibilité : | C47: Un projet admissible doit d'abord permettre une réduction quantifiable des émissions de GES et peut contenir plusieurs mesures. Formulaire de demande signé par le participant, plan de projet et plan de surveillance signés par un ingénieur sont les documents minimaux requis pour présenter une demande. Les demandes sont analysées, en fonction de leurs dates de dépôt, par un chargé de programme pour ensuite être soumises à l'approbation des autorités de TEQ.
B48: Processus de suivi de l'action : | C48: L'action est suivie de manière continuelle. Le budget est suivi par l'émission d'un suivi budgétaire hebdomadaire. Ce suivi compare les engagements dans SAGIR avec les budgets prévus, ainsi que les données fournies par la base de données de suivi du Programme de biomasse forestière résiduelle. Le suivi de la mise en œuvre des projets est fait en continu par les chargés de programme. La mise en fonction des projets est le moment à partir duquel les déclarations de réduction des émissions de gaz à effet de serre sont comptabilisées. Les réductions sont comptabilisées pour la période d'engagement des participants, tant que les projets sont maintenus. Une reddition de compte est faite au ministère de l'Environnement et de la Lutte contre les changements climatiques (MELCC) sur la base de deux rapports annuels.
B49: Résultats et co-bénéfices attendus : | C49: Les résultats directs attendus sont l'économie d'énergie, la réduction des émissions de GES et la mise en place d'une masse critique de projets d'utilisation énergétique de la biomasse forestière résiduelle à l'échelle provinciale qui est essentielle afin de développer les différents maillons de la chaîne de valeur, tels que les approvisionnements en biomasse forestière et les centres de conditionnement. Une certaine proportion de la biomasse forestière résiduelle est disponible pour la production de produits énergétiques à valeur ajoutée, renouvelables et à faibles émissions de GES. Les parties d'arbres non commerciales, les copeaux, les granules peuvent avantageusement remplacer les combustibles fossiles pour la chauffe des bâtiments. À valeur égale, leur utilisation entraîne beaucoup plus de retombées dans les régions que les combustibles fossiles qu'ils remplacent.
B50: Résultats et co-bénéfices obtenus dans la dernière année :
B51: Résultats et co-bénéfices obtenus depuis le lancement de l'action : | C51: En date du 31 mars 2022, 47 analyses et 186 projets d'implantation ont été acceptés par le ministre, pour une réduction annuelle potentielle de 149,7 kt de CO2, nécessitant des investissements de 163,8 M$ grâce à des aides financières de 59,3 M$ pour un coût moyen de l'aide financière de 19,79 $/t sur la durée de vie (20 ans). Ces investissements entraîneraient la création de 2 292 emplois.
B53: Classification
B54: Finalité : | C54: Réduction des émissions de gaz à effet de serre | H54: Moyen : | J54: Réalisation (programmes et subventions favorisant l'exécution de solutions établies)
B62: Mise en œuvre
B63: Étapes (depuis le début de l'action) | J63: Échéancier | M63: État d'avancement
A64: 1 | B64: Élaboration du programme | M64: Complétée
A65: 2 | B65: Approbation du Conseil du trésor | J65: 2013-10-23 | M65: Complétée
A66: 3 | B66: Lancement du Programme | J66: 2013-11-21 | M66: Complétée
A67: 4 | B67: Signature de l'entente administrative avec le MDDELCC | J67: 2014-03-20 | M67: Complétée
A68: 5 | B68: Mise en suspens du Programme | J68: 2014-09-01 | M68: Complétée
A69: 6 | B69: MERN présente ses programmes à la Commission sur la révision permanente des programmes | J69: 2014-11-01 | M69: Complétée
B70: Mise à jour économique alloue 10 M$ de plus à la priorité | J70: 2014-12-01 | M70: Complétée
A71: 8 | B71: Décret 722-2016 pour Bioénergie La Tuque | J71: 2016-08-01 | M71: Complétée
A72: 9 | B72: Approbation de la cible de l'Annexe III par le MDDELCC | J72: 2016-12-01 | M72: Complétée
B73: Révision et adoption du cadre normatif révisé par le conseil d'administration de TEQ | J73: 2017-05-09 | M73: Complétée
B74: Relance du Programme | J74: 2017-06-29 | M74: Complétée
B75: Révision et adoption du cadre normatif révisé par le conseil d'administration de TEQ | J75: 2017-12-04 | M75: Complétée
B76: Obtention de 50 M$ du Fonds du Leadership pour une économie à faibles émissions en carbone du gouvernement du Canada | J76: 2017-12-07 | M76: En cours
B77: Entrée en vigueur du cadre normatif approuvé par le conseil d'administration de TEQ le 04/12/2017 | J77: 2018-01-31 | M77: Complétée
B78: Obtention de financement additionnel de 30 M$ dans le Budget 2019-2020 du Gouvernement du Québec | J78: 2019-03-27 | M78: Complétée
B79: Révision et adoption du cadre normatif révisé par le conseil d'administration de TEQ | J79: 2019-06-01 | M79: Complétée
B80: Entrée en vigueur de la Loi visant principalement la gouvernance efficace de la lutte contre les changements climatiques et à favoriser l'électrification | J80: 2020-11-01 | M80: Complétée
B190: Ajouter une ligne
B194: Plans, stratégies ou politiques incluant la mise en œuvre de cette action
B195: Abréviation | D195: Nom complet | N195: Numéro de mesure
B196: FEFEC 2018-2023 | D196: Fonds du Leadership pour une économie à faibles émissions en carbone du gouvernement du Canada
B197: Plan directeur | D197: Plan directeur en transition, innovation et efficacité énergétiques 2018-2023 | N197: 90,1
B198: PACC 2013-2020 | D198: Plan d'action 2013-2020 sur les changements climatiques | N198: Action 24.1.1

Sheet Détail des projets
B2: =Utilitaire!E8 -> Plan d'action 2013-2020 sur les changements climatiques
B3: ="Action " & Accueil!D58 -> Action en cours
B4: =Accueil!D55 -> 24.1.1 | C4: =Accueil!E55 -> Soutien au développement des bioénergies pour réduire les émissions de GES à court terme – Programme Biomasse forestière résiduelle - Volet TEQ
B5: Ministère porteur : | C5: =Accueil!$D$65 -> MERN (SITE)
B6: Détails et prévisions des dépenses par projet
D19: Informations en date du : | G19: 2022-03-31
B22: DÉTAILS DES PROJETS AUTORISÉS | O22: MONTANTS PROVENANT DU FECC ($) | AA22: =MONTH(#REF!) -> 
A23: No | B23: Nom du projet | C23: Nom du requérant ou du bénéficiaire | D23: Volet ou thématique | E23: Catégorie | F23: Nombre de projets | G23: Région administrative | H23: Municipalité | I23: Statut | J23: Classification du projet | K23: Montant engagé ($) | L23: Date de l'engagement | M23: Date du dernier versement | N23: Budget total du projet ($) | O23: 2013-2014 | P23: 2014-2015 | Q23: 2015-2016 | R23: 2016-2017 | S23: 2017-2018 | T23: 2018-2019 | U23: 2019-2020 | V23: 2020-2021 | W23: 2021-2022 | X23: 2022-2023 | Y23: 2023-2024 | Z23: 2024-2025 | AA23: MONTANT DES DÉPENSES RÉELLES ($) | AB23: TOTAL DES DÉPENSES RÉELLES ET PRÉVUES ($)
K24: (convention signée, contrat, lettre de confirmation du ministre ou de son représentant ou lettre d'octroi) | O24: Réel | P24: Réel | Q24: Réel | R24: Réel | S24: Réel | T24: Réel | U24: Réel | V24: Réel | W24: Réel | X24: Prévu | Y24: Prévu | Z24: Prévu
A25: 1 | B25: Installation d'un système de chauffage de serre à la biomasse forestière | C25: 4076061 Canada inc. | D25: Implantation | E25: Industriel, commercial et institutionnel | F25: 1 | G25: 12-Chaudière-Appalaches | H25: Saint-Elzéar | I25: AC | J25: SU | K25: 59909.85 | L25: 2020-01-23T10:57:24 | M25: 2020-04-01 | N25: 122854 | U25: 28528.5 | V25: 31381.35 | AA25: =SUM(O25:W25) -> 59909.85 | AB25: =SUM(O25:Z25) -> 59909.85
A26: 2 | B26: Remplacement - Évaporateur - Érablière O'Maple | C26: 8401381 Canada inc. | D26: Implantation | E26: Agricole | F26: 1 | G26: 14-Lanaudière | H26: Notre-Dame-de-la-Merci | I26: TE | J26: SU | K26: 87741.84 | L26: 2015-06-17 | M26: 2018-06-08 | N26: 167786 | S26: 65806.38 | T26: 21935.46 | AA26: =SUM(O26:W26) -> 87741.84 | AB26: =SUM(O26:Z26) -> 87741.84
A27: 3 | B27: Élimination des GES en remplaçant le mazout par l'implantation d'équipements opérant à la biomasse forestière résiduelle | C27: 9080-7454 Québec inc. / Plomberie Denis Carignan inc. | D27: Implantation | E27: Industriel, commercial et institutionnel | F27: 1 | G27: 17-Centre-du-Québec | H27: Victoriaville | I27: TE | J27: SU | K27: 43566.75 | L27: 2018-04-19T14:55:50 | M27: 2018-04-01 | N27: 65350 | T27: 32675.07 | AA27: =SUM(O27:W27) -> 32675.07 | AB27: =SUM(O27:Z27) -> 32675.07
A28: 4 | B28: Remplacement du fourneau de l’évaporateur à l’huile actuel pour utiliser de la biomasse forestière résiduelle | C28: 9087-4264 Québec inc. | D28: Implantation | E28: Agricole | F28: 1 | G28: 01-Bas-Saint-Laurent | H28: Biencourt | I28: TE | J28: SU | K28: 81247.28 | L28: 2016-02-24 | M28: 2015-04-01 | N28: 122635 | Q28: 81247.28 | AA28: =SUM(O28:W28) -> 81247.28 | AB28: =SUM(O28:Z28) -> 81247.28
A29: 5 | B29: Remplacer l'évaporateur à l'huile par un équipement complet aux granules Dominion & Grimm | C29: 9095-4827 Québec inc. | D29: Implantation | E29: Agricole | F29: 1 | G29: 01-Bas-Saint-Laurent | H29: Saint-Octave-de-Métis | I29: TE | J29: SU | K29: 48020.05 | L29: 2014-06-05 | M29: 2014-11-13 | N29: 78488 | P29: 48020.05 | AA29: 48020.05 | AB29: 48020.05
A30: 6 | B30: GES - Évaporateur - Érablière de la Tour | C30: 9119-8416 Québec inc. (Érablière de la Tour) | D30: Implantation | E30: Agricole | F30: 1 | G30: 01-Bas-Saint-Laurent | H30: Biencourt | I30: TE | J30: SU | K30: 95690.83389 | L30: 2015-01-14 | M30: 2014-04-01 | N30: 184106 | P30: 95690.83 | AA30: 95690.83 | AB30: 95690.83
A31: 7 | B31: Remplacement équipement de chauffage propane par équipement de chauffage à la biomasse forestière résiduelle/granules de bois | C31: 9170-4429 Québec inc. | D31: Implantation | E31: Industriel, commercial et institutionnel | F31: 1 | G31: 16-Montérégie | H31: Howick | I31: TE | J31: SU | K31: 40875 | L31: 2015-09-02 | M31: 2015-04-01 | N31: 57525 | Q31: 40875 | AA31: 40875 | AB31: 40875
A32: 8 | B32: Conversion du système de chauffage à la granule de bois | C32: 9263-2280 Québec inc. | D32: Implantation | E32: Industriel, commercial et institutionnel | F32: 1 | G32: 03-Capitale-Nationale | H32: La Malbaie | I32: TE | J32: SU | K32: 14769.94 | L32: 2018-04-12T09:32:22 | M32: 2018-04-01 | N32: 47436 | T32: 14769.94 | AA32: 14769.94 | AB32: 14769.94
A33: 9 | B33: Élimination des GES générés par le chauffage propane en implantant de nouveaux équipements brûlant la biomasse forestière type bois-bûche. | C33: 9274-2949 Québec inc. (Bar Le Cavreau) | D33: Implantation | E33: Industriel, commercial et institutionnel | F33: 1 | G33: 12-Chaudière-Appalaches | H33: La Guadeloupe | I33: AC | J33: SU | K33: 18730.23 | L33: 2020-08-19T10:08:18 | M33: 2022-02-15 | N33: 45300 | V33: 5351.5 | W33: 13378.73 | AA33: 18730.23 | AB33: 18730.23
A34: 10 | B34: Chaufferie à la biomasse - Meunerie Unicoop | C34: 9290-1974 Québec inc. | D34: Implantation | E34: Industriel, commercial et institutionnel | F34: 1 | G34: 12-Chaudière-Appalaches | H34: Saint-Anselme | I34: TE | J34: SU | K34: 931038.83 | L34: 2014-07-08 | M34: 2015-10-15 | N34: 213484 | Q34: 130041.11 | AA34: 130041.11 | AB34: 130041.11
A35: 11 | B35: Installation d'évaporateurs d'eau d'érable | C35: 9293-8950 Québec inc. | D35: Implantation | E35: Agricole | F35: 1 | G35: 03-Capitale-Nationale | H35: Saint-Ubalde | I35: TE | J35: SU | K35: 281483.1973 | L35: 2015-08-25 | M35: 2018-04-01 | N35: 442676 | Q35: 140741.606 | R35: 70370.80301 | T35: 14074.13854 | AA35: 225186.5476 | AB35: 225186.5476
A36: 12 | B36: Production de granules de bois avec séchage à la biomasse forestière résiduelle | C36: 9301-9826 Québec inc., (La Granaudière) | D36: Implantation | E36: Industriel, commercial et institutionnel | F36: 1 | G36: 14-Lanaudière | H36: Saint-Michel-des-Saints | I36: AC | J36: SU | K36: 1820253.75 | L36: 2018-10-24T08:31:02 | M36: 2022-09-01 | N36: 3966845 | U36: 433393.75 | V36: 520072.5 | X36: 866787.5 | AA36: 953466.25 | AB36: 1820253.75
A37: 13 | B37: Migration d'équipements au mazout vers la biomasse forestière résiduelle. | C37: 9334-4265 Québec inc. | D37: Implantation | E37: Industriel, commercial et institutionnel | F37: 1 | G37: 07-Outaouais | H37: Grand-Remous | I37: TE | J37: SU | K37: 38213.51 | L37: 2018-05-03T13:33:50 | M37: 2018-04-01 | N37: 92563 | T37: 38213.51 | AA37: 38213.51 | AB37: 38213.51
A38: 14 | B38: Mise en place d'un projet de chauffage à la biomasse forestière | C38: 9337-4247 Québec inc. | D38: Implantation | E38: Industriel, commercial et institutionnel | F38: 1 | G38: 17-Centre-du-Québec | H38: Bécancour | I38: TE | J38: SU | K38: 440212.35 | L38: 2020-07-09T09:23:08 | M38: 2021-07-21 | N38: 989695 | V38: 352169.89 | W38: 63448.84 | AA38: 415618.73 | AB38: 415618.73
A39: 15 | B39: Implantation du système de chauffage à la biomasse | C39: 9384-7572 Québec inc. | D39: Implantation | E39: Industriel, commercial et institutionnel | F39: 1 | G39: 15-Laurentides | H39: Sainte-Agathe-des-Monts | I39: TE | J39: SU | K39: 75700 | L39: 2019-07-24T14:41:11 | M39: 2020-04-01 | N39: 127031 | V39: 60560 | AA39: 60560 | AB39: 60560
A40: 16 | B40: Chauffage du 29 Brillant, Matane | C40: Acier Bouffard | D40: Implantation | E40: Industriel, commercial et institutionnel | F40: 1 | G40: 01-Bas-Saint-Laurent | H40: Matane | I40: AC | J40: SU | K40: 43874.6385 | L40: 2017-10-03T14:38:33 | M40: 2018-04-01 | N40: 131525 | T40: 41785.37 | V40: 2089.2685 | AA40: 43874.6385 | AB40: 43874.6385
A41: 17 | B41: Conversion vers un chauffage aux granules de bois (site St-Bernard) | C41: Agri-Oeufs inc. | D41: Implantation | E41: Agricole | F41: 1 | G41: 16-Montérégie | H41: Saint-Bernard-de-Michaudville | I41: AC | J41: SU | K41: 181621.5135 | L41: 2019-05-27T14:19:57 | M41: 2020-04-01 | N41: 360976 | U41: 43243.22 | V41: 138378.2935 | AA41: 181621.5135 | AB41: 181621.5135
A42: 18 | B42: Transformation d’un séchoir à grains à la biomasse | C42: Agriscar coopérative agricole | D42: Implantation | E42: Agricole | F42: 1 | G42: 01-Bas-Saint-Laurent | H42: L'Isle-Verte | I42: TE | J42: SU | K42: 266576.29 | L42: 2016-09-01 | M42: 2018-10-18 | N42: 440192 | R42: 66644.07 | S42: 133288.14 | T42: 66644.08 | AA42: 266576.29 | AB42: 266576.29
A43: 19 | B43: Projet de chauffage des serres de Sainte-Irène | C43: Alliances Forestières Nemtayé | D43: Implantation | E43: Industriel, commercial et institutionnel | F43: 1 | G43: 01-Bas-Saint-Laurent | H43: Sainte-Irène | I43: AC | J43: SU | K43: 145162.5 | L43: 2018-12-06T09:10:54 | M43: 2022-05-01 | N43: 311500 | U43: 34562.5 | V43: 41475 | X43: 69125 | AA43: 76037.5 | AB43: =SUM(O43:Z43) -> 145162.5
A44: 20 | B44: Remplacement d'un évaporateur aux granules pour éviter la remise en fonction d'un évaporateur au mazout. | C44: Aménagement Forestier BeauFor inc. | D44: Implantation | E44: Agricole | F44: 1 | G44: 01-Bas-Saint-Laurent | H44: Biencourt | I44: TE | J44: SU | K44: 21221.45 | L44: 2018-05-08T09:51:14 | M44: 2019-08-05 | N44: 43420 | U44: 21221.45 | AA44: 21221.45 | AB44: =SUM(O44:Z44) -> 21221.45
A45: 21 | B45: Appalaches Nature inc., nouvelle usine à Thetford Mines | C45: Appalaches Nature Inc. | D45: Implantation | E45: Industriel, commercial et institutionnel | F45: 1 | G45: 12-Chaudière-Appalaches | H45: Thetford Mines | I45: AC | J45: SU | K45: 261288.825 | L45: 2019-01-18T11:22:33 | M45: 2019-04-01 | N45: 650193 | T45: 62211.62 | U45: 186634.88 | V45: 12442.325 | AA45: 261288.825 | AB45: =SUM(O45:Z45) -> 261288.825
A46: 22 | B46: Serre de légumes – Efficacité énergétique et conversion à la biomasse forestière résiduelle | C46: Auberge Amaryllis inc. | D46: Implantation | E46: Agricole | F46: 1 | G46: 11-Gaspésie--Îles-de-la-Madeleine | H46: Gaspé | I46: TE | J46: SU | K46: 53270.14398 | L46: 2019-08-19T16:10:12 | M46: 2020-04-01 | N46: 209825 | V46: 53270.14398 | AA46: 53270.14398 | AB46: =SUM(O46:Z46) -> 53270.14398
A47: 23 | B47: Chaufferie à la biomasse et réseau de chaleur - Eau sanitaire, chambres et trottoirs extérieurs | C47: Auberge l'Ambassadeur inc. | D47: Analyse | E47: Industriel, commercial et institutionnel | F47: 1 | G47: 01-Bas-Saint-Laurent | H47: Amqui | I47: TE | J47: SU | K47: 5625 | L47: 2016-02-10 | M47: 2017-02-02 | N47: 11250 | R47: 5625 | AA47: 5625 | AB47: =SUM(O47:Z47) -> 5625
A48: 24 | B48: Projet de réseau chaleur St-Jacques de Montcalm | C48: Bio-Chaleur Solutions | D48: Analyse | E48: Industriel, commercial et institutionnel | F48: 1 | G48: 14-Lanaudière | H48: Saint-Jacques | I48: TE | J48: SU | K48: 8000 | L48: 2018-04-30T09:39:33 | M48: 2019-10-30 | N48: 18750 | U48: 6750 | AA48: 6750 | AB48: =SUM(O48:Z48) -> 6750
A49: 25 | B49: Intégration d'une centrale de cogénération à la biomasse forestière et utilisation de la vapeur pour le séchage du bois | C49: Bioénergie Sacré-Coeur S.E.C. | D49: Analyse | E49: Industriel, commercial et institutionnel | F49: 1 | G49: 09-Côte-Nord | H49: Sacré-Coeur | I49: TE | J49: SU | K49: 10250 | L49: 2015-05-07 | M49: 2015-02-02 | N49: 20500 | P49: 5125 | Q49: 5125 | AA49: 10250 | AB49: =SUM(O49:Z49) -> 10250
A50: 26 | B50: Augmentation de la production chez Bois de Foyer I.G.L. | C50: Bois de foyer I.G.L. (2012) | D50: Implantation | E50: Industriel, commercial et institutionnel | F50: 1 | G50: 12-Chaudière-Appalaches | H50: Saint-Pamphile | I50: AC | J50: SU | K50: 981251.25 | L50: 2020-09-28T16:01:19 | M50: 2023-10-01 | N50: 1889050 | X50: 747620 | Y50: 233631.25 | AA50: 0 | AB50: =SUM(O50:Z50) -> 981251.25
A51: 27 | B51: Remplacement de chaufferie vapeur base pression | C51: Bois de sciage Lafontaine inc. | D51: Analyse | E51: Industriel, commercial et institutionnel | F51: 1 | G51: 12-Chaudière-Appalaches | H51: Sainte-Perpétue | I51: TE | J51: SU | K51: 11000 | L51: 2019-08-23T10:05:37 | M51: 2020-02-28 | N51: 22000 | U51: 11000 | AA51: 11000 | AB51: =SUM(O51:Z51) -> 11000
A52: 28 | B52: Remplacement de chaufferie vapeur basse pression | C52: Bois de sciage Lafontaine inc. | D52: Implantation | E52: Industriel, commercial et institutionnel | F52: 1 | G52: 12-Chaudière-Appalaches | H52: Sainte-Perpétue | I52: AC | J52: SU | K52: 945000 | L52: 2020-03-04T13:53:57 | M52: 2022-06-01 | N52: 2150000 | V52: 495000 | W52: 225000 | X52: 225000 | AA52: =SUM(O52:W52) -> 720000 | AB52: =SUM(O52:Z52) -> 945000
A53: 29 | B53: Acériculture-Évaporateur à biomasse | C53: Cabane à sucre Jacques Grégoire | D53: Implantation | E53: Agricole | F53: 1 | G53: 14-Lanaudière | H53: Sainte-Julienne | I53: TE | J53: SU | K53: 53299.22 | L53: 2021-01-25T15:14:19 | M53: 2021-03-16 | N53: 86375 | V53: 53299.22 | AA53: =SUM(O53:W53) -> 53299.22 | AB53: =SUM(O53:Z53) -> 53299.22
A54: 30 | B54: Étude de faisabilité technique pour le chauffage à la biomasse forestière d'un réseau chaleur au parc industriel de SCJC, bâtiments existants et futurs | C54: Carbonaxion Bioénergies inc. | D54: Analyse | E54: Industriel, commercial et institutionnel | F54: 1 | G54: 03-Capitale-Nationale | H54: Sainte-Catherine-de-la-Jacques-Cartier | I54: TE | J54: SU | K54: 18330 | L54: 2018-04-27T14:44:52 | M54: 2019-07-08 | N54: 39560 | T54: 9165 | U54: 9165 | AA54: =SUM(O54:W54) -> 18330 | AB54: =SUM(O54:Z54) -> 18330
A55: 31 | B55: Remplacement d’un système de chauffage au propane par un système à la biomasse forestière | C55: Carbonaxion Bioénergies inc. | D55: Implantation | E55: Industriel, commercial et institutionnel | F55: 1 | G55: 03-Capitale-Nationale | H55: Stoneham-et-Tewkesbury | I55: TE | J55: SU | K55: 161503.45 | L55: 2018-05-14T15:29:43 | M55: 2019-04-01 | N55: 352699 | T55: 80751.72 | U55: 80751.73 | AA55: =SUM(O55:W55) -> 161503.45 | AB55: =SUM(O55:Z55) -> 161503.45
A56: 32 | B56: Conversion au chauffage à la biomasse chez Aviculture KDEM | C56: Carbonaxion Bioénergies inc. | D56: Analyse | E56: Agricole | F56: 1 | G56: 03-Capitale-Nationale | H56: Saint-Gabriel-de-Valcartier | I56: TE | J56: SU | K56: 21807.975 | L56: 2020-04-30T10:23:38 | M56: 2020-12-11 | N56: 42323 | V56: 21807.975 | AA56: =SUM(O56:W56) -> 21807.975 | AB56: =SUM(O56:Z56) -> 21807.975
A57: 33 | B57: Réseau de chaleur Baie-Saint-Paul | C57: Centre de gestion du complexe PFM | D57: Implantation | E57: Industriel, commercial et institutionnel | F57: 1 | G57: 03-Capitale-Nationale | H57: Baie-Saint-Paul | I57: AC | J57: SU | K57: 461931.89 | L57: 2018-06-04T13:32:46 | M57: 2022-11-01 | N57: 2961000 | V57: 131980.54 | W57: 219967.56 | X57: 109983.79 | AA57: =SUM(O57:W57) -> 351948.1 | AB57: =SUM(O57:Z57) -> 461931.89
A58: 34 | B58: Implantation d'une chaufferie à la biomasse forestière résiduelle au CSSS des Etchemins | C58: Centre de santé et des services sociaux des Etchemins | D58: Implantation | E58: Industriel, commercial et institutionnel | F58: 1 | G58: 12-Chaudière-Appalaches | H58: Lac-Etchemin | I58: TE | J58: SU | K58: 1095321.58 | L58: 2014-05-20 | M58: 2015-04-01 | N58: 1615907 | P58: 547660.78 | Q58: 547660.8 | AA58: =SUM(O58:W58) -> 1095321.58 | AB58: =SUM(O58:Z58) -> 1095321.58
A59: 35 | B59: École secondaire Louis-Joseph-Papineau | C59: Centre de services scolaire au Coeur-des-Vallées | D59: Implantation | E59: Industriel, commercial et institutionnel | F59: 1 | G59: 07-Outaouais | H59: Papineauville | I59: TE | J59: SU | K59: 595922.7 | L59: 2015-05-27 | M59: 2016-04-01 | N59: 1100000 | Q59: 446942.01 | R59: 148980.67 | AA59: =SUM(O59:W59) -> 595922.68 | AB59: =SUM(O59:Z59) -> 595922.68
A60: 36 | B60: Étude de faisabilité en vue de l'implantation de chaudières à la biomasse forestière résiduelle à l'École forestière et de technologie du bois de Duchesnay | C60: Centre de services scolaire de la Capitale | D60: Analyse | E60: Industriel, commercial et institutionnel | F60: 1 | G60: 03-Capitale-Nationale | H60: Sainte-Catherine-de-la-Jacques-Cartier | I60: TE | J60: SU | K60: 13250 | L60: 2015-06-18 | M60: 2015-04-01 | N60: 24771.3 | Q60: 12385.65 | AA60: =SUM(O60:W60) -> 12385.65 | AB60: =SUM(O60:Z60) -> 12385.65
A61: 37 | B61: Chauffage à la biomasse forestière résiduelle de l'hôpital de la ville de Mont-Laurier | C61: Centre intégré de santé et des services sociaux des Laurentides | D61: Analyse | E61: Industriel, commercial et institutionnel | F61: 1 | G61: 15-Laurentides | H61: Mont-Laurier | I61: TE | J61: SU | K61: 10775 | L61: 2019-04-08T08:38:06 | M61: 2019-07-12 | N61: 21550 | U61: 10775 | AA61: =SUM(O61:W61) -> 10775 | AB61: =SUM(O61:Z61) -> 10775
A62: 38 | B62: Acériculture-Évaporateur à la biomasse | C62: Chalet des Érables | D62: Implantation | E62: Agricole | F62: 1 | G62: 05-Estrie | H62: Cookshire-Eaton | I62: TE | J62: SU | K62: 10706.5245 | L62: 2020-03-03T14:41:44 | M62: 2020-11-16 | N62: 18500 | V62: 10706.5245 | AA62: =SUM(O62:W62) -> 10706.5245 | AB62: =SUM(O62:Z62) -> 10706.5245
A63: 39 | B63: Centre d’Expertise et de Formation – Conversion à la biomasse forestière résiduelle | C63: Chambre de commerce secteur ouest de Portneuf | D63: Implantation | E63: Industriel, commercial et institutionnel | F63: 1 | G63: 03-Capitale-Nationale | H63: Saint-Marc-des-Carrières | I63: AC | J63: SU | K63: 244968.49 | L63: 2020-12-16T09:49:50 | M63: 2023-10-15 | N63: 753320 | X63: 186642.66 | Y63: 58325.83 | AA63: =SUM(O63:W63) -> 0 | AB63: =SUM(O63:Z63) -> 244968.49
A64: 40 | B64: Conversion du système au mazout actuel à un système à la biomasse forestière résiduelle | C64: CISSS du Bas-Saint-Laurent - Hôpital Notre-Dame-de-Fatima | D64: Implantation | E64: Industriel, commercial et institutionnel | F64: 1 | G64: 01-Bas-Saint-Laurent | H64: La Pocatière | I64: TE | J64: SU | K64: 997191.6939 | L64: 2014-02-21 | M64: 2015-04-01 | N64: 1518978 | P64: 498595.84 | Q64: 498595.85 | AA64: =SUM(O64:W64) -> 997191.69 | AB64: =SUM(O64:Z64) -> 997191.69
A65: 41 | B65: Analyse énergétique à l'École forestière La Tuque | C65: Coopérative forestière du Haut Saint-Maurice | D65: Analyse | E65: Industriel, commercial et institutionnel | F65: 1 | G65: 04-Mauricie | H65: La Tuque | I65: TE | J65: SU | K65: 11357.5 | L65: 2014-03-04 | M65: 2015-02-09 | N65: 22715 | P65: 11357.5 | AA65: =SUM(O65:W65) -> 11357.5 | AB65: =SUM(O65:Z65) -> 11357.5
A66: 42 | B66: Réseau chaleur Sainte-Paule | C66: Corporation de développement de Sainte-Paule | D66: Analyse | E66: Industriel, commercial et institutionnel | F66: 1 | G66: 01-Bas-Saint-Laurent | H66: Sainte-Paule | I66: TE | J66: SU | K66: 11250 | L66: 2014-02-21 | M66: 2014-07-08 | N66: 22500 | P66: 11250 | AA66: =SUM(O66:W66) -> 11250 | AB66: =SUM(O66:Z66) -> 11250
A67: 43 | B67: Acériculture-Évaporateur à biomasse | C67: Daisy Dumas | D67: Implantation | E67: Agricole | F67: 1 | G67: 12-Chaudière-Appalaches | H67: Saint-Cyprien | I67: TE | J67: SU | K67: 4856.16 | L67: 2020-11-25T14:11:17 | M67: 2020-12-09 | N67: 24566 | V67: 4856.16 | AA67: =SUM(O67:W67) -> 4856.16 | AB67: =SUM(O67:Z67) -> 4856.16
A68: 44 | B68: Conversion à la biomasse des installations de séchage de fibre et de chauffage des installations | C68: Damabois inc. | D68: Implantation | E68: Industriel, commercial et institutionnel | F68: 1 | G68: 01-Bas-Saint-Laurent | H68: Saint-Damase | I68: TE | J68: SU | K68: 644505 | L68: 2014-02-21 | M68: 2017-04-01 | N68: 1158520 | Q68: 161126.25 | R68: 161126.25 | S68: 322252.5 | AA68: =SUM(O68:W68) -> 644505 | AB68: =SUM(O68:Z68) -> 644505
A69: 45 | B69: Projet Biomasse - Usine de pâtes alimentaires | C69: Décorticage JPL inc. | D69: Implantation | E69: Industriel, commercial et institutionnel | F69: 1 | G69: 04-Mauricie | H69: Sainte-Geneviève-de-Batiscan | I69: TE | J69: SU | K69: 327458.68 | L69: 2016-06-08 | M69: 2021-12-30 | N69: 247972 | R69: 163729.34 | V69: 15495.47 | AA69: =SUM(O69:W69) -> 179224.81 | AB69: =SUM(O69:Z69) -> 179224.81
A70: 46 | B70: M12-32 Ébénisterie de la chaudière inc. | C70: Ébénisterie de la Chaudière inc. | D70: Implantation | E70: Industriel, commercial et institutionnel | F70: 1 | G70: 12-Chaudière-Appalaches | H70: Saint-Isidore | I70: TE | J70: SU | K70: 51733.56083 | L70: 2014-06-04 | M70: 2015-04-01 | N70: 286316 | P70: 25866.78 | Q70: 25866.78 | AA70: =SUM(O70:W70) -> 51733.56 | AB70: =SUM(O70:Z70) -> 51733.56
A71: 47 | B71: Chauffage à la biomasse à la mine Éléonore - Approvisionnement | C71: EEYOU Bio énergie inc. | D71: Analyse | E71: Industriel, commercial et institutionnel | F71: 1 | G71: 08-Abitibi-Témiscamingue | H71: Rouyn-Noranda | I71: TE | J71: SU | K71: 25000 | L71: 2018-03-23T10:05:05 | M71: 2019-07-23 | N71: 120920 | T71: 12500 | U71: 12500 | AA71: =SUM(O71:W71) -> 25000 | AB71: =SUM(O71:Z71) -> 25000
A72: 48 | B72: Chauffage à la biomasse à la mine Éléonore - Faisabilité | C72: EEYOU Bio énergie inc. | D72: Analyse | E72: Industriel, commercial et institutionnel | F72: 1 | G72: 08-Abitibi-Témiscamingue | H72: Rouyn-Noranda | I72: TE | J72: SU | K72: 25000 | L72: 2018-03-23T09:56:25 | M72: 2019-07-23 | N72: 138580 | T72: 12500 | U72: 12500 | AA72: =SUM(O72:W72) -> 25000 | AB72: =SUM(O72:Z72) -> 25000
A73: 49 | B73: Chaufferie biomasse à l'usine Natrel, Amqui | C73: Énergie CFM inc. | D73: Analyse | E73: Industriel, commercial et institutionnel | F73: 1 | G73: 04-Mauricie | H73: La Tuque | I73: TE | J73: SU | K73: 12950 | L73: 2016-01-27 | M73: 2017-01-25 | N73: 25900 | R73: 12950 | AA73: =SUM(O73:W73) -> 12950 | AB73: =SUM(O73:Z73) -> 12950
A74: 50 | B74: Les Volailles S.B. inc. | C74: Énergies Sonic | D74: Analyse | E74: Agricole | F74: 1 | G74: 16-Montérégie | H74: La Présentation | I74: TE | J74: SU | K74: 7462.5 | L74: 2014-02-14 | M74: 2014-06-17 | N74: 13568 | P74: 6705 | AA74: =SUM(O74:W74) -> 6705 | AB74: =SUM(O74:Z74) -> 6705
A75: 51 | B75: GES - Évaporateurs - Érablière BFLD inc. | C75: Érablière BFLD inc. | D75: Implantation | E75: Agricole | F75: 1 | G75: 05-Estrie | H75: Saint-Robert-Bellarmin | I75: TE | J75: SU | K75: 92669.04 | L75: 2016-01-18 | M75: 2016-03-10 | N75: 227000 | Q75: 92669.04 | AA75: =SUM(O75:W75) -> 92669.04 | AB75: =SUM(O75:Z75) -> 92669.04
A76: 52 | B76: Acériculture-Évaporateur aux granules | C76: Érablière D.S. Gagnon inc. | D76: Implantation | E76: Agricole | F76: 1 | G76: 12-Chaudière-Appalaches | H76: Sainte-Perpétue | I76: TE | J76: SU | K76: 46169.86 | L76: 2019-10-10T10:29:09 | M76: 2020-01-27 | N76: 105777 | U76: 46169.86 | AA76: =SUM(O76:W76) -> 46169.86 | AB76: =SUM(O76:Z76) -> 46169.86
A77: 53 | B77: Économie de GES Érablière Rivière Noire | C77: Érablière de la rivière Noire inc. | D77: Implantation | E77: Agricole | F77: 1 | G77: 01-Bas-Saint-Laurent | H77: Saint-Athanase | I77: TE | J77: SU | K77: 117674.26 | L77: 2018-10-10T13:48:59 | M77: 2019-03-05 | N77: 267023 | T77: 117474.26 | AA77: =SUM(O77:W77) -> 117474.26 | AB77: =SUM(O77:Z77) -> 117474.26
A78: 54 | B78: Remplacement de l'évaporateur à l'huile par un équipement neuf CDL utilisant le granule | C78: Érablière du Reeke Brook (2011) inc. inc. | D78: Implantation | E78: Agricole | F78: 1 | G78: 01-Bas-Saint-Laurent | H78: Saint-Elzéar-de-Témiscouata | I78: TE | J78: SU | K78: 52259.91 | L78: 2014-06-04 | M78: 2015-01-08 | N78: 76407 | P78: 52259.91 | AA78: =SUM(O78:W78) -> 52259.91 | AB78: =SUM(O78:Z78) -> 52259.91
A79: 55 | B79: Acériculture-Évaporateur à biomasse | C79: Érablière du Soleil levant inc. | D79: Implantation | E79: Agricole | F79: 1 | G79: 01-Bas-Saint-Laurent | H79: Saint-Athanase | I79: TE | J79: SU | K79: 75816.25 | L79: 2020-02-20T11:09:53 | M79: 2020-06-25 | N79: 143624 | V79: 75816.25 | AA79: =SUM(O79:W79) -> 75816.25 | AB79: =SUM(O79:Z79) -> 75816.25
A80: 56 | B80: Économie des GES biomasse Érablière du Village | C80: Érablière du Village S.E.N.C | D80: Implantation | E80: Agricole | F80: 1 | G80: 17-Centre-du-Québec | H80: Sainte-Perpétue | I80: TE | J80: SU | K80: 18300.6285 | L80: 2019-07-24T14:49:42 | M80: 2019-04-01 | N80: 41000 | U80: 17429.17 | V80: 871.4585 | AA80: =SUM(O80:W80) -> 18300.6285 | AB80: =SUM(O80:Z80) -> 18300.6285
A81: 57 | B81: GES-Évaporateur-Érablière G.M.D. Roy | C81: Érablière G.M.D. Roy inc. | D81: Implantation | E81: Agricole | F81: 1 | G81: 05-Estrie | H81: Milan | I81: TE | J81: SU | K81: 42416.79 | L81: 2014-11-28 | M81: 2014-04-01 | N81: 102201 | P81: 42416.79 | AA81: =SUM(O81:W81) -> 42416.79 | AB81: =SUM(O81:Z81) -> 42416.79
A82: 58 | B82: GES - Érablière Jason Fecteau | C82: Érablière J.M. Fecteau | D82: Implantation | E82: Agricole | F82: 1 | G82: 05-Estrie | H82: Audet | I82: TE | J82: SU | K82: 16402.55166 | L82: 2015-06-08 | M82: 2015-08-09 | N82: 40723 | Q82: 16402.55 | AA82: =SUM(O82:W82) -> 16402.55 | AB82: =SUM(O82:Z82) -> 16402.55
A83: 59 | B83: Conversion des évaporateurs au mazout léger vers la biomasse résiduelle | C83: Érablière Jacques Bourdeau inc. | D83: Implantation | E83: Agricole | F83: 1 | G83: 16-Montérégie | H83: Franklin | I83: TE | J83: SU | K83: 100369.21 | L83: 2015-12-10 | M83: 2015-04-01 | N83: 138995 | Q83: 100369.21 | AA83: =SUM(O83:W83) -> 100369.21 | AB83: =SUM(O83:Z83) -> 100369.21
A84: 60 | B84: Remplacement de l’évaporateur actuel par un équipement utilisant le granule chez Érablière L.R.T. Inc. | C84: Érablière L.R.T. | D84: Implantation | E84: Agricole | F84: 1 | G84: 01-Bas-Saint-Laurent | H84: Biencourt | I84: TE | J84: SU | K84: 69322.31 | L84: 2018-09-05T10:19:26 | M84: 2021-02-07 | N84: 160292 | W84: 69322.31 | AA84: =SUM(O84:W84) -> 69322.31 | AB84: =SUM(O84:Z84) -> 69322.31
A85: 61 | B85: Remplacement d’un évaporateur à l’huile contre deux évaporateurs utilisant le granule | C85: Érablière la Coulée creuse inc. | D85: Implantation | E85: Agricole | F85: 1 | G85: 01-Bas-Saint-Laurent | H85: Saint-Athanase | I85: TE | J85: SU | K85: 118101.07 | L85: 2015-11-05 | M85: 2015-04-01 | N85: 240314 | Q85: 118101.07 | AA85: =SUM(O85:W85) -> 118101.07 | AB85: =SUM(O85:Z85) -> 118101.07
A86: 62 | B86: Acériculture-Évaporateur à biomasse | C86: Érablière la Coulée creuse inc. | D86: Implantation | E86: Agricole | F86: 1 | G86: 01-Bas-Saint-Laurent | H86: Saint-Athanase | I86: TE | J86: SU | K86: 84006.39 | L86: 2020-04-21T16:31:25 | M86: 2020-04-22 | N86: 113922 | V86: 84006.39 | AA86: =SUM(O86:W86) -> 84006.39 | AB86: =SUM(O86:Z86) -> 84006.39
A87: 63 | B87: Remplacement de l'évaporateur à l'huile pour un équipement aux Granules | C87: Érablière La Goudrelle | D87: Implantation | E87: Agricole | F87: 1 | G87: 01-Bas-Saint-Laurent | H87: Saint-Marcellin | I87: TE | J87: SU | K87: 38684 | L87: 2014-05-22 | M87: 2015-01-08 | N87: 44584 | P87: 30864.57 | AA87: =SUM(O87:W87) -> 30864.57 | AB87: =SUM(O87:Z87) -> 30864.57
A88: 64 | B88: Acériculture-Évaporateur aux granules | C88: Erablière LMK inc. | D88: Implantation | E88: Agricole | F88: 1 | G88: 17-Centre-du-Québec | H88: Saint-Ferdinand | I88: TE | J88: SU | K88: 60177.27 | L88: 2020-10-27T15:34:23 | M88: 2021-02-03 | N88: 190007 | V88: 60177.27 | AA88: =SUM(O88:W88) -> 60177.27 | AB88: =SUM(O88:Z88) -> 60177.27
A89: 65 | B89: Élimination de l'huile - Érablière LMK inc. | C89: Érablière LMK inc. | D89: Implantation | E89: Agricole | F89: 1 | G89: 17-Centre-du-Québec | H89: Saint-Pierre-Baptiste | I89: TE | J89: SU | K89: 48610.1039 | L89: 2018-05-07T09:11:28 | M89: 2018-05-22 | N89: 259621 | T89: 48610.1039 | AA89: =SUM(O89:W89) -> 48610.1039 | AB89: =SUM(O89:Z89) -> 48610.1039
A90: 66 | B90: Remplacement d’un évaporateur fonctionnant au mazout par un évaporateur fonctionnant au bois | C90: Érablière l'Or des Monts inc. | D90: Implantation | E90: Agricole | F90: 1 | G90: 05-Estrie | H90: La Patrie | I90: TE | J90: SU | K90: 107380.82 | L90: 2015-11-05 | M90: 2016-09-14 | N90: 157523 | Q90: 53690.4 | R90: 53690.42 | AA90: =SUM(O90:W90) -> 107380.82 | AB90: =SUM(O90:Z90) -> 107380.82
A91: 67 | B91: Remplacement d'un évaporateur au mazout par un évaporateur à la biomasse forestière résiduelle | C91: Érablière Luc et Mickael Breton S.E.N.C. | D91: Implantation | E91: Agricole | F91: 1 | G91: 17-Centre-du-Québec | H91: Inverness | I91: TE | J91: SU | K91: 20762.82 | L91: 2015-12-07 | M91: 2015-04-01 | N91: 83135 | Q91: 20762.82 | AA91: =SUM(O91:W91) -> 20762.82 | AB91: =SUM(O91:Z91) -> 20762.82
A92: 68 | B92: Acériculture-Évaporateur à biomasse | C92: Érablière Marcel Rancourt Inc. | D92: Implantation | E92: Agricole | F92: 1 | G92: 12-Chaudière-Appalaches | H92: Sainte-Perpétue | I92: TE | J92: SU | K92: 36152.28 | L92: 2020-05-27T14:31:43 | M92: 2020-10-06 | N92: 48203 | V92: 36152.28 | AA92: =SUM(O92:W92) -> 36152.28 | AB92: =SUM(O92:Z92) -> 36152.28
A93: 69 | B93: GES - Évaporateur - Érablière Marcel Vien | C93: Érablière Marcel Vien enrg | D93: Implantation | E93: Agricole | F93: 1 | G93: 12-Chaudière-Appalaches | H93: Sainte-Claire | I93: TE | J93: SU | K93: 58600.81 | L93: 2014-06-04 | M93: 2016-08-10 | N93: 147240 | Q93: 43950.6 | R93: 14650.21 | AA93: =SUM(O93:W93) -> 58600.81 | AB93: =SUM(O93:Z93) -> 58600.81
A94: 70 | B94: GES - Évaporateur - Érablière Martin Caron | C94: Érablière Martin Caron inc. | D94: Implantation | E94: Agricole | F94: 1 | G94: 12-Chaudière-Appalaches | H94: Sainte-Lucie-de-Beauregard | I94: TE | J94: SU | K94: 57715.33 | L94: 2015-12-02 | M94: 2015-04-01 | N94: 115500 | Q94: 57715.33 | AA94: =SUM(O94:W94) -> 57715.33 | AB94: =SUM(O94:Z94) -> 57715.33
A95: 71 | B95: Économie de GES Érablière Moreau inc. | C95: Érablière Moreau inc. | D95: Implantation | E95: Agricole | F95: 1 | G95: 17-Centre-du-Québec | H95: Tingwick | I95: TE | J95: SU | K95: 30850 | L95: 2018-05-16T09:56:59 | M95: 2018-04-01 | N95: 67486 | T95: 30850 | AA95: =SUM(O95:W95) -> 30850 | AB95: =SUM(O95:Z95) -> 30850
A96: 72 | B96: Acériculture-Évaporateur à biomasse | C96: Érablière Pagé-Savard et filles S.E.N.C. | D96: Implantation | E96: Agricole | F96: 1 | G96: 04-Mauricie | H96: Saint-Alexis-des-Monts | I96: TE | J96: SU | K96: 7838.124 | L96: 2019-10-03T07:29:28 | M96: 2020-09-15 | N96: 56262 | V96: 7838.124 | AA96: =SUM(O96:W96) -> 7838.124 | AB96: =SUM(O96:Z96) -> 7838.124
A97: 73 | B97: Remplacement du fourneau de l’évaporateur à l’huile actuel pour utiliser de la biomasse forestière résiduelle | C97: Érablière Paul Pettigrew inc. | D97: Implantation | E97: Agricole | F97: 1 | G97: 01-Bas-Saint-Laurent | H97: Saint-Juste-du-Lac | I97: TE | J97: SU | K97: 53742.52 | L97: 2016-02-02 | M97: 2018-04-27 | N97: 136913 | T97: 53742.52 | AA97: =SUM(O97:W97) -> 53742.52 | AB97: =SUM(O97:Z97) -> 53742.52
A98: 74 | B98: Acériculture-Évaporateur aux granules | C98: Érablière Simard & Côté S.E.N.C. | D98: Implantation | E98: Agricole | F98: 1 | G98: 05-Estrie | H98: Eastman | I98: TE | J98: SU | K98: 26688.91 | L98: 2020-05-28T11:53:03 | M98: 2021-01-19 | N98: 88220 | V98: 26688.91 | AA98: =SUM(O98:W98) -> 26688.91 | AB98: =SUM(O98:Z98) -> 26688.91
A99: 75 | B99: Économie de GES Érablière Seigneurie | C99: Érablière Sucrerie de la Seigneurie inc. | D99: Implantation | E99: Agricole | F99: 1 | G99: 12-Chaudière-Appalaches | H99: Saint-Janvier-de-Joly | I99: TE | J99: SU | K99: 22452.36716 | L99: 2018-05-25T15:07:56 | M99: 2018-09-13 | N99: 36576 | T99: 19826.85183 | AA99: =SUM(O99:W99) -> 19826.85183 | AB99: =SUM(O99:Z99) -> 19826.85183
A100: 76 | B100: Conversion de l'évaporateur au mazout vers la biomasse | C100: Érablières C.B.C | D100: Implantation | E100: Agricole | F100: 1 | G100: 12-Chaudière-Appalaches | H100: Saint-Édouard-de-Lotbinière | I100: TE | J100: SU | K100: 28992.49 | L100: 2019-01-08T11:30:43 | M100: 2018-04-01 | N100: 57985 | T100: 28992.49 | AA100: =SUM(O100:W100) -> 28992.49 | AB100: =SUM(O100:Z100) -> 28992.49
A101: 77 | B101: GES - Évaporateur - Érablières Lucan inc. | C101: Érablières Lucan inc. | D101: Implantation | E101: Agricole | F101: 1 | G101: 17-Centre-du-Québec | H101: Ham-Nord | I101: TE | J101: SU | K101: 61986.38 | L101: 2016-02-24 | M101: 2016-04-01 | N101: 112350 | R101: 61986.38 | AA101: =SUM(O101:W101) -> 61986.38 | AB101: =SUM(O101:Z101) -> 61986.38
A102: 78 | B102: Agrandissement de la surface de production-mesures d'efficacité énergétique-chauffage à la biomasse forestière résiduelle | C102: Excel-Serres ltée | D102: Analyse | E102: Agricole | F102: 1 | G102: 16-Montérégie | H102: Saint-Damase | I102: TE | J102: SU | K102: 10732.5 | L102: 2014-02-21 | M102: 2014-07-10 | N102: 21465 | P102: 10732.5 | AA102: =SUM(O102:W102) -> 10732.5 | AB102: =SUM(O102:Z102) -> 10732.5
A103: 79 | B103: Agrandissement de la surface de production - Chauffage à la biomasse forestière résiduelle - Mesures d'efficacité énergétique | C103: Excel-Serres ltée | D103: Implantation | E103: Agricole | F103: 1 | G103: 16-Montérégie | H103: Saint-Damase | I103: TE | J103: SU | K103: 1468511.95 | L103: 2015-03-31 | M103: 2017-10-11 | N103: 2467725 | Q103: 367127.9855 | R103: 734255.9709 | S103: 367127.9937 | AA103: =SUM(O103:W103) -> 1468511.95 | AB103: =SUM(O103:Z103) -> 1468511.95
A104: 80 | B104: Chauffage de l'atelier de soudure | C104: Fabrication Fransi inc. | D104: Implantation | E104: Industriel, commercial et institutionnel | F104: 1 | G104: 09-Côte-Nord | H104: Baie-Comeau | I104: AC | J104: SU | K104: 166110 | L104: 2018-12-06T09:01:45 | M104: 2019-04-01 | N104: 348900 | U104: 158200 | V104: 7910 | AA104: =SUM(O104:W104) -> 166110 | AB104: =SUM(O104:Z104) -> 166110
A105: 81 | B105: Remplacement du mazout comme source de chauffage, Étude technico-économique | C105: Fabrique St-Joseph-des-Monts | D105: Analyse | E105: Industriel, commercial et institutionnel | F105: 1 | G105: 05-Estrie | H105: La Patrie | I105: TE | J105: SU | K105: 5250 | L105: 2018-05-03T13:20:15 | M105: 2018-09-20 | N105: 10500 | T105: 5250 | AA105: =SUM(O105:W105) -> 5250 | AB105: =SUM(O105:Z105) -> 5250
A106: 82 | B106: Conversion du système de chauffage au mazout vers la biomasse forestière résiduelle | C106: Fabrique St-Joseph-des-Monts | D106: Implantation | E106: Industriel, commercial et institutionnel | F106: 1 | G106: 05-Estrie | H106: La Patrie | I106: TE | J106: SU | K106: 61150.73 | L106: 2018-10-15T13:42:06 | M106: 2018-04-01 | N106: 144328 | T106: 55358.69 | V106: 3057.5365 | AA106: =SUM(O106:W106) -> 58416.2265 | AB106: =SUM(O106:Z106) -> 58416.2265
A107: 83 | B107: Conversion du chauffage vers un chauffage aux granules de bois | C107: Faterra Capital inc. | D107: Implantation | E107: Agricole | F107: 1 | G107: 16-Montérégie | H107: Saint-Pie | I107: AC | J107: SU | K107: 594242.964 | L107: 2018-09-19T16:23:15 | M107: 2022-07-15 | N107: 1235500 | U107: 282972.84 | V107: 28297.284 | W107: 141486.42 | X107: 141486.42 | AA107: =SUM(O107:W107) -> 452756.544 | AB107: =SUM(O107:Z107) -> 594242.964
A108: 84 | B108: Installation d'une fournaise à air chaud dans un nouveau poulailler de dindons lourds | C108: Ferme à l'Oie inc. | D108: Implantation | E108: Agricole | F108: 1 | G108: 12-Chaudière-Appalaches | H108: Saint-Gervais | I108: TE | J108: SU | K108: 68283.42 | L108: 2016-10-18 | M108: 2018-04-01 | N108: 171070 | T108: 68283.42 | AA108: =SUM(O108:W108) -> 68283.42 | AB108: =SUM(O108:Z108) -> 68283.42
A109: 85 | B109: Convertion à la biomasse des 3 poulaillers existants et du quatrième poulailler à construire en 2018 | C109: Ferme avicole Girard inc. | D109: Implantation | E109: Agricole | F109: 1 | G109: 17-Centre-du-Québec | H109: Sainte-Perpétue | I109: TE | J109: SU | K109: 287931.525 | L109: 2018-09-17T08:58:00 | M109: 2020-04-01 | N109: 591613 | T109: 68555.12 | U109: 68555.12 | V109: 150821.285 | AA109: =SUM(O109:W109) -> 287931.525 | AB109: =SUM(O109:Z109) -> 287931.525
A110: 86 | B110: Conversion à la biomasse forestière résiduelle | C110: Ferme avicole Linor | D110: Implantation | E110: Agricole | F110: 1 | G110: 16-Montérégie | H110: Saint-Barnabé-Sud | I110: TE | J110: SU | K110: 231245.29 | L110: 2015-06-09 | M110: 2016-04-01 | N110: 701147 | Q110: 173433.96 | R110: 57811.33 | AA110: =SUM(O110:W110) -> 231245.29 | AB110: =SUM(O110:Z110) -> 231245.29
A111: 87 | B111: Conversion à la biomasse forestière résiduelle d’un poulailler | C111: Ferme Avicole Lise Grenier inc. | D111: Implantation | E111: Agricole | F111: 1 | G111: 04-Mauricie | H111: Saint-Boniface | I111: TE | J111: SU | K111: 125570.3 | L111: 2021-03-01T11:29:26 | M111: 2020-04-01 | N111: 329371 | V111: 125570.3 | AA111: =SUM(O111:W111) -> 125570.3 | AB111: =SUM(O111:Z111) -> 125570.3
A112: 88 | B112: Implantation de mesures d'efficacité énergétique | C112: Ferme Bédard et Blouin inc. | D112: Analyse | E112: Agricole | F112: 1 | G112: 03-Capitale-Nationale | H112: Québec | I112: TE | J112: SU | K112: 6150 | L112: 2021-03-18T10:41:53 | M112: 2021-06-11 | N112: 12300 | W112: 6150 | AA112: =SUM(O112:W112) -> 6150 | AB112: =SUM(O112:Z112) -> 6150
A113: 89 | B113: Conversion à la biomasse forestière résiduelle d’un poulailler | C113: Ferme Chair de Poule inc. | D113: Implantation | E113: Agricole | F113: 1 | G113: 14-Lanaudière | H113: Saint-Didace | I113: AC | J113: SU | K113: 418563.69 | L113: 2021-03-01T11:48:24 | M113: 2022-10-30 | N113: 775158 | W113: 313922.76 | X113: 104640.93 | AA113: =SUM(O113:W113) -> 313922.76 | AB113: =SUM(O113:Z113) -> 418563.69
A114: 90 | B114: Installation d’une chaudière Séquoia Blue Sky SP | C114: Ferme Deaunier inc. | D114: Implantation | E114: Agricole | F114: 1 | G114: 12-Chaudière-Appalaches | H114: Saint-Isidore | I114: TE | J114: SU | K114: 78958.7 | L114: 2019-10-02T14:47:19 | M114: 2020-04-01 | N114: 159786 | V114: 71377.215 | AA114: =SUM(O114:W114) -> 71377.215 | AB114: =SUM(O114:Z114) -> 71377.215
A115: 91 | B115: Conversion à la biomasse forestière résiduelle de poulaillers et séchoir à foin | C115: Ferme Denis & André Morin inc. | D115: Implantation | E115: Agricole | F115: 1 | G115: 14-Lanaudière | H115: Saint-Gabriel | I115: AC | J115: SU | K115: 265889.2425 | L115: 2018-11-06T15:43:10 | M115: 2023-05-01 | N115: 784300 | X115: 202582.2725 | Y115: 63306.97 | AA115: =SUM(O115:W115) -> 0 | AB115: =SUM(O115:Z115) -> 265889.2425
A116: 92 | B116: Conversion à la biomasse forestière des bouilleuses d’eau d’érable | C116: Ferme Denis Carrier inc. | D116: Implantation | E116: Agricole | F116: 1 | G116: 12-Chaudière-Appalaches | H116: Saint-Jean-de-Brébeuf | I116: TE | J116: SU | K116: 112033.95 | L116: 2019-08-19T14:55:49 | M116: 2019-04-01 | N116: 369487 | U116: 106699 | V116: 5334.95 | AA116: =SUM(O116:W116) -> 112033.95 | AB116: =SUM(O116:Z116) -> 112033.95
A117: 93 | B117: M14-08 Ferme du Ruisseau | C117: Ferme du Ruisseau Mirabel | D117: Implantation | E117: Agricole | F117: 1 | G117: 15-Laurentides | H117: Mirabel | I117: TE | J117: SU | K117: 285851.01 | L117: 2015-02-05 | M117: 2015-02-27 | N117: 525041 | P117: 285851.01 | AA117: =SUM(O117:W117) -> 285851.01 | AB117: =SUM(O117:Z117) -> 285851.01
A118: 94 | B118: Séchage du grain | C118: Ferme Gaudreau et Pariseau inc. | D118: Implantation | E118: Agricole | F118: 1 | G118: 05-Estrie | H118: Compton | I118: TE | J118: SU | K118: 49063.04 | L118: 2019-08-23T10:12:48 | M118: 2020-04-01 | N118: 96146 | V118: 49063.04 | AA118: =SUM(O118:W118) -> 49063.04 | AB118: =SUM(O118:Z118) -> 49063.04
A119: 95 | B119: Conversion à la biomasse forestière résiduelle d'un séchoir à grain | C119: Ferme Genlouis inc. | D119: Implantation | E119: Agricole | F119: 1 | G119: 16-Montérégie | H119: Yamaska | I119: AC | J119: SU | K119: 301004.298 | L119: 2019-01-29T09:37:47 | M119: 2020-04-01 | N119: 705472 | V119: 301004.298 | AA119: =SUM(O119:W119) -> 301004.298 | AB119: =SUM(O119:Z119) -> 301004.298
A120: 96 | B120: Conversion du chauffage au propane vers un chauffage aux granules de bois | C120: Ferme Gilles Desharnais inc. | D120: Implantation | E120: Agricole | F120: 1 | G120: 17-Centre-du-Québec | H120: Saint-Christophe-d'Arthabaska | I120: AC | J120: SU | K120: 323149.42 | L120: 2020-12-16T09:44:23 | M120: 2023-02-01 | N120: 644223 | W120: 246209.09 | X120: 76940.33 | AA120: =SUM(O120:W120) -> 246209.09 | AB120: =SUM(O120:Z120) -> 323149.42
A121: 97 | B121: Acériculture-Évaporateur aux granules | C121: Ferme Gratien Allard inc. | D121: Implantation | E121: Agricole | F121: 1 | G121: 15-Laurentides | H121: Kiamika | I121: TE | J121: SU | K121: 5640.13 | L121: 2020-05-28T10:46:25 | M121: 2020-06-17 | N121: 52628 | V121: 5640.13 | AA121: =SUM(O121:W121) -> 5640.13 | AB121: =SUM(O121:Z121) -> 5640.13
A122: 98 | B122: Acériculture-Évaporateur à biomasse | C122: Ferme Guillaume et Étienne Lessard S.E.N.C. | D122: Implantation | E122: Agricole | F122: 1 | G122: 12-Chaudière-Appalaches | H122: Saint-Honoré-de-Shenley | I122: TE | J122: SU | K122: 77830.05 | L122: 2020-06-04T15:27:03 | M122: 2020-10-01 | N122: 106253 | V122: 77830.05 | AA122: =SUM(O122:W122) -> 77830.05 | AB122: =SUM(O122:Z122) -> 77830.05
A123: 99 | B123: Projet de chauffage de serre à la biomasse forestière | C123: Ferme Hélandre et fils inc. | D123: Analyse | E123: Agricole | F123: 1 | G123: 17-Centre-du-Québec | H123: Bécancour | I123: TE | J123: SU | K123: 4000 | L123: 2021-03-01T15:36:43 | M123: 2021-06-17 | N123: 8000 | W123: 4000 | AA123: =SUM(O123:W123) -> 4000 | AB123: =SUM(O123:Z123) -> 4000
A124: 100 | B124: Conversion des systèmes de chauffage des poulaillers | C124: Ferme Hum-And-Son inc. | D124: Implantation | E124: Agricole | F124: 1 | G124: 12-Chaudière-Appalaches | H124: Saint-Malachie | I124: TE | J124: SU | K124: 85589.15 | L124: 2015-08-11 | M124: 2015-04-01 | N124: 280050 | Q124: 69817.39 | AA124: =SUM(O124:W124) -> 69817.39 | AB124: =SUM(O124:Z124) -> 69817.39
A125: 101 | B125: Conversion à la biomasse forestière et récupération de la chaleur de réfrigération. | C125: Ferme Irma inc. | D125: Implantation | E125: Agricole | F125: 1 | G125: 17-Centre-du-Québec | H125: Saint-Albert | I125: AC | J125: SU | K125: 87606.26739 | L125: 2020-10-09T13:08:18 | M125: 2022-04-15 | N125: 185456 | V125: 45888.99199 | W125: 41717.2754 | AA125: =SUM(O125:W125) -> 87606.26739 | AB125: =SUM(O125:Z125) -> 87606.26739
A126: 102 | B126: Conversion à la biomasse forestière résiduelle d’un poulailler | C126: Ferme J.G.C. inc. | D126: Implantation | E126: Agricole | F126: 1 | G126: 12-Chaudière-Appalaches | H126: Saint-Jules | I126: AC | J126: SU | K126: 47480.1495 | L126: 2020-01-23T11:24:36 | M126: 2020-04-01 | N126: 111850 | V126: 47480.1495 | AA126: =SUM(O126:W126) -> 47480.1495 | AB126: =SUM(O126:Z126) -> 47480.1495
A127: 103 | B127: Conversion partielle d'un système de séchage du grain vers la biomasse forestière résiduelle | C127: Ferme J.R.S. Maheux S.E.N.C. | D127: Implantation | E127: Agricole | F127: 1 | G127: 05-Estrie | H127: Val-Joli | I127: TE | J127: SU | K127: 50061.7845 | L127: 2018-11-27T08:52:52 | M127: 2018-04-01 | N127: 136299 | T127: 47677.89 | V127: 2383.8945 | AA127: =SUM(O127:W127) -> 50061.7845 | AB127: =SUM(O127:Z127) -> 50061.7845
A128: 104 | B128: Installation d'une fournaise à air chaud dans un complexe de serres | C128: Ferme Jean-Yves Gamelin inc. | D128: Implantation | E128: Agricole | F128: 1 | G128: 17-Centre-du-Québec | H128: Pierreville | I128: TE | J128: SU | K128: 93659.26963 | L128: 2017-03-21 | M128: 2018-12-06 | N128: 131999 | S128: 46829.63969 | T128: 46829.62994 | AA128: =SUM(O128:W128) -> 93659.26963 | AB128: =SUM(O128:Z128) -> 93659.26963
A129: 105 | B129: Conversion d'un poulailler au chauffage à la biomasse | C129: Ferme Larose & Frères inc. | D129: Implantation | E129: Agricole | F129: 1 | G129: 12-Chaudière-Appalaches | H129: Saint-Isidore | I129: TE | J129: SU | K129: 95677.5 | L129: 2016-10-07 | M129: 2017-04-01 | N129: 130950 | R129: 23919.38 | S129: 63925.46 | AA129: =SUM(O129:W129) -> 87844.84 | AB129: =SUM(O129:Z129) -> 87844.84
A130: 106 | B130: Conversion de 2 poulaillers au chauffage à la biomasse | C130: Ferme Larose & Frères inc. | D130: Implantation | E130: Agricole | F130: 1 | G130: 12-Chaudière-Appalaches | H130: Saint-Isidore | I130: TE | J130: SU | K130: 131877.5955 | L130: 2018-05-15T09:12:55 | M130: 2019-04-01 | N130: 267441 | T130: 31399.43 | U130: 94198.28 | V130: 6279.8855 | AA130: =SUM(O130:W130) -> 131877.5955 | AB130: =SUM(O130:Z130) -> 131877.5955
A131: 107 | B131: GES - Évaporateur Serge Labrie | C131: Ferme Le Ranch L inc. | D131: Implantation | E131: Agricole | F131: 1 | G131: 17-Centre-du-Québec | H131: Sainte-Sophie-d'Halifax | I131: TE | J131: SU | K131: 36440.07 | L131: 2015-12-15 | M131: 2016-02-09 | N131: 94379 | Q131: 36440.07 | AA131: =SUM(O131:W131) -> 36440.07 | AB131: =SUM(O131:Z131) -> 36440.07
A132: 108 | B132: Remplacement d'un évaporateur fonctionnant à l'huile par un évaporateur fonctionnant aux granules de bois | C132: Ferme Les Frères Beaulieu inc. | D132: Implantation | E132: Agricole | F132: 1 | G132: 16-Montérégie | H132: Ormstown | I132: TE | J132: SU | K132: 68637.18 | L132: 2015-11-05 | M132: 2016-02-13 | N132: 97315 | Q132: 68637.18 | AA132: =SUM(O132:W132) -> 68637.18 | AB132: =SUM(O132:Z132) -> 68637.18
A133: 109 | B133: Étude de faisabilité - chauffage d'un complexe de serres à la biomasse | C133: Ferme Les Grands Soleil | D133: Analyse | E133: Agricole | F133: 1 | G133: 05-Estrie | H133: Waterville | I133: TE | J133: SU | K133: 8662.5 | L133: 2020-10-09T12:40:32 | M133: 2021-01-29 | N133: 16500 | V133: 8662.5 | AA133: =SUM(O133:W133) -> 8662.5 | AB133: =SUM(O133:Z133) -> 8662.5
A134: 110 | B134: Chaudière Sequoia pour ferme Montagnard | C134: Ferme Montagnard 2011 inc. | D134: Implantation | E134: Agricole | F134: 1 | G134: 05-Estrie | H134: Saint-Romain | I134: TE | J134: SU | K134: 31965.2 | L134: 2015-10-29 | M134: 2015-04-01 | N134: 67714 | Q134: 31965.2 | AA134: =SUM(O134:W134) -> 31965.2 | AB134: =SUM(O134:Z134) -> 31965.2
A135: 111 | B135: Complexe de serres – Efficacité énergétique et conversion à la biomasse forestière résiduelle | C135: Ferme Nadeau 2006 inc. | D135: Implantation | E135: Agricole | F135: 1 | G135: 17-Centre-du-Québec | H135: Laurierville | I135: AC | J135: SU | K135: 136538.6107 | L135: 2019-08-29T14:57:12 | M135: 2019-04-01 | N135: 266452 | U135: 130036.7721 | V135: 6501.838606 | AA135: =SUM(O135:W135) -> 136538.6107 | AB135: =SUM(O135:Z135) -> 136538.6107
A136: 112 | B136: Conversion à la biomasse forestière résiduelle d’un poulailler | C136: Ferme Pierre Dufresne inc. | D136: Implantation | E136: Agricole | F136: 1 | G136: 14-Lanaudière | H136: Saint-Gabriel | I136: TE | J136: SU | K136: 48123.39 | L136: 2020-01-14T09:12:22 | M136: 2020-04-01 | N136: 106053 | V136: 48123.39 | AA136: =SUM(O136:W136) -> 48123.39 | AB136: =SUM(O136:Z136) -> 48123.39
A137: 113 | B137: Fournaise au bois Sky Blue | C137: Ferme Porcité inc. | D137: Implantation | E137: Agricole | F137: 1 | G137: 12-Chaudière-Appalaches | H137: Saint-Elzéar | I137: TE | J137: SU | K137: 31305.31 | L137: 2021-03-18T10:21:14 | M137: 2021-07-05 | N137: 73425 | W137: 31305.31 | AA137: =SUM(O137:W137) -> 31305.31 | AB137: =SUM(O137:Z137) -> 31305.31
A138: 114 | B138: Remplacement des évaporateurs actuels pour un équipement utilisant le granule de bois | C138: Ferme Prepierre ltée | D138: Implantation | E138: Agricole | F138: 1 | G138: 01-Bas-Saint-Laurent | H138: Témiscouata-sur-le-Lac | I138: TE | J138: SU | K138: 77996 | L138: 2019-03-21T12:45:29 | M138: 2020-08-24 | N138: 144768 | V138: 76284.05 | AA138: =SUM(O138:W138) -> 76284.05 | AB138: =SUM(O138:Z138) -> 76284.05
A139: 115 | B139: Conversion d'un séchoir à grain | C139: Ferme Rojoie inc. | D139: Implantation | E139: Agricole | F139: 1 | G139: 16-Montérégie | H139: Saint-Barnabé-Sud | I139: TE | J139: SU | K139: 281645.33 | L139: 2018-09-24T10:28:26 | M139: 2019-04-01 | N139: 593515 | T139: 70411.33 | U139: 211234 | AA139: =SUM(O139:W139) -> 281645.33 | AB139: =SUM(O139:Z139) -> 281645.33
A140: 116 | B140: Conversion à la biomasse forestière résiduelle | C140: Ferme S.C.J. Bérard inc. | D140: Implantation | E140: Agricole | F140: 1 | G140: 14-Lanaudière | H140: Saint-Barthélemy | I140: TE | J140: SU | K140: 133744.16 | L140: 2015-05-27 | M140: 2016-04-01 | N140: 325204 | P140: 33436.04 | Q140: 33436.04 | R140: 66872.08 | AA140: =SUM(O140:W140) -> 133744.16 | AB140: =SUM(O140:Z140) -> 133744.16
A141: 117 | B141: Conversion à la biomasse forestière résiduelle | C141: Ferme S.C.J. Bérard inc. | D141: Implantation | E141: Agricole | F141: 1 | G141: 14-Lanaudière | H141: Saint-Barthélemy | I141: TE | J141: SU | K141: 42397.4 | L141: 2018-06-21T09:25:18 | M141: 2019-02-28 | N141: 104031 | T141: 42397.4 | AA141: =SUM(O141:W141) -> 42397.4 | AB141: =SUM(O141:Z141) -> 42397.4
A142: 118 | B142: Conversion à la biomasse forestière résiduelle d’un poulailler | C142: Ferme Sébastien Lamy inc. | D142: Implantation | E142: Agricole | F142: 1 | G142: 04-Mauricie | H142: Trois-Rivières | I142: AC | J142: SU | K142: 253354.815 | L142: 2020-01-08T15:53:32 | M142: 2022-02-01 | N142: 816853 | U142: 60322.58 | V142: 12064.515 | W142: 180967.72 | AA142: =SUM(O142:W142) -> 253354.815 | AB142: =SUM(O142:Z142) -> 253354.815
A143: 119 | B143: Chaufferie biomasse - Ferme St-Jude | C143: Ferme St-Jude, société en commandite | D143: Implantation | E143: Agricole | F143: 1 | G143: 16-Montérégie | H143: Rigaud | I143: TE | J143: SU | K143: 594104.66 | L143: 2016-02-10 | M143: 2017-04-01 | N143: 911609 | R143: 148526.16 | S143: 445578.5 | AA143: =SUM(O143:W143) -> 594104.66 | AB143: =SUM(O143:Z143) -> 594104.66
A144: 120 | B144: Conversion à la biomasse forestière résiduelle d’un poulailler | C144: Ferme Viagrico inc. | D144: Implantation | E144: Agricole | F144: 1 | G144: 16-Montérégie | H144: Saint-Marc-sur-Richelieu | I144: AC | J144: SU | K144: 76198.26 | L144: 2021-02-08T15:23:18 | M144: 2022-09-30 | N144: 214063 | W144: 58055.81 | X144: 18142.45 | AA144: =SUM(O144:W144) -> 58055.81 | AB144: =SUM(O144:Z144) -> 76198.26
A145: 121 | B145: Utilisation de planures comme combustible d'appoint à la chaudière de biomasse | C145: Fibrek S.E.N.C. | D145: Implantation | E145: Industriel, commercial et institutionnel | F145: 1 | G145: 02-Saguenay--Lac-Saint-Jean | H145: Saint-Félicien | I145: AC | J145: SU | K145: 3150000 | L145: 2020-08-20T10:39:42 | M145: 2022-10-01 | N145: 17820836 | V145: 900000 | W145: 1500000 | X145: 750000 | AA145: =SUM(O145:W145) -> 2400000 | AB145: =SUM(O145:Z145) -> 3150000
A146: 122 | B146: Projet de réseau de chaleur au 230, avenue St-Jérome | C146: FIDEL (Fonds d'innovation et de développement économique local de la Matanie) | D146: Analyse | E146: Industriel, commercial et institutionnel | F146: 1 | G146: 01-Bas-Saint-Laurent | H146: Matane | I146: TE | J146: SU | K146: 8437.5 | L146: 2018-04-12T08:37:46 | M146: 2018-06-12 | N146: 18300 | T146: 8437.5 | AA146: =SUM(O146:W146) -> 8437.5 | AB146: =SUM(O146:Z146) -> 8437.5
A147: 123 | B147: Installation d'une chaudière 6000 kW vapeur haute pression | C147: Forex inc. | D147: Implantation | E147: Industriel, commercial et institutionnel | F147: 1 | G147: 15-Laurentides | H147: Mont-Laurier | I147: TE | J147: SU | K147: 806154.78 | L147: 2019-03-21T10:01:16 | M147: 2020-04-01 | N147: 1882910 | U147: 397000 | V147: 409154.78 | AA147: =SUM(O147:W147) -> 806154.78 | AB147: =SUM(O147:Z147) -> 806154.78
A148: 124 | B148: Conversion de deux poulaillers au chauffage à la biomasse | C148: Fraisière Sylvie et Gilles Arsenault inc. | D148: Implantation | E148: Agricole | F148: 1 | G148: 16-Montérégie | H148: Acton Vale | I148: AC | J148: SU | K148: 165777.15 | L148: 2018-09-19T13:51:00 | M148: 2023-12-30 | N148: 321366 | X148: 126306.4 | Y148: 39470.75 | AA148: =SUM(O148:W148) -> 0 | AB148: =SUM(O148:Z148) -> 165777.15
A149: 125 | B149: Remplacement du système de chauffage au propane par un équipement à la biomasse forestière résiduelle chez Alcide Ouellet et Fils inc., de Cacouna. | C149: Garage Alcide Ouellet inc. | D149: Implantation | E149: Industriel, commercial et institutionnel | F149: 1 | G149: 01-Bas-Saint-Laurent | H149: Cacouna | I149: TE | J149: SU | K149: 32900.75 | L149: 2018-02-16T15:28:52 | M149: 2019-07-22 | N149: 68945 | U149: 32900.75 | AA149: =SUM(O149:W149) -> 32900.75 | AB149: =SUM(O149:Z149) -> 32900.75
A150: 126 | B150: Chauffage biomasse Gare La Santé | C150: Gare La Santé inc. | D150: Implantation | E150: Industriel, commercial et institutionnel | F150: 1 | G150: 12-Chaudière-Appalaches | H150: La Guadeloupe | I150: TE | J150: SU | K150: 37476.01406 | L150: 2014-11-24 | M150: 2015-03-23 | N150: 115820 | P150: 37476.01 | AA150: =SUM(O150:W150) -> 37476.01 | AB150: =SUM(O150:Z150) -> 37476.01
A151: 127 | B151: Conversion à la biomasse du garage de Germain Autos à Saint-Raymond | C151: Germain Chevrolet Buick GMC inc. | D151: Analyse | E151: Industriel, commercial et institutionnel | F151: 1 | G151: 03-Capitale-Nationale | H151: Saint-Raymond | I151: TE | J151: SU | K151: 5180 | L151: 2014-07-09 | M151: 2014-11-06 | N151: 10360 | P151: 5180 | AA151: =SUM(O151:W151) -> 5180 | AB151: =SUM(O151:Z151) -> 5180
A152: 128 | B152: GES-Evaporateur - Gestion D. Desnoyers inc. | C152: Gestion D. Desnoyers inc. | D152: Implantation | E152: Agricole | F152: 1 | G152: 12-Chaudière-Appalaches | H152: Saint-Lazare-de-Bellechasse | I152: TE | J152: SU | K152: 21058.03567 | L152: 2014-03-24 | M152: 2015-02-16 | N152: 48532 | P152: 21043.4 | AA152: =SUM(O152:W152) -> 21043.4 | AB152: =SUM(O152:Z152) -> 21043.4
A153: 129 | B153: Remplacement de l’évaporateur actuel pour un équipement utilisant la biomasse forestière résiduelle | C153: Gestion Émilien Ouellet ( Érablière du Lac Sutherland) | D153: Implantation | E153: Agricole | F153: 1 | G153: 01-Bas-Saint-Laurent | H153: Saint-Marc-du-Lac-Long | I153: TE | J153: SU | K153: 49176.27 | L153: 2018-05-16T09:45:48 | M153: 2019-08-16 | N153: 116727 | U153: 49176.27 | AA153: =SUM(O153:W153) -> 49176.27 | AB153: =SUM(O153:Z153) -> 49176.27
A154: 130 | B154: Projet de conversion à la biomasse et efficacité énergétique d’un complexe de serres | C154: Gestion horticole Normand Francoeur | D154: Analyse | E154: Agricole | F154: 1 | G154: 17-Centre-du-Québec | H154: Saint-Lucien | I154: TE | J154: SU | K154: 7436 | L154: 2017-11-01T10:08:50 | M154: 2018-03-20 | N154: 14872 | S154: 7436 | AA154: =SUM(O154:W154) -> 7436 | AB154: =SUM(O154:Z154) -> 7436
A155: 131 | B155: Projet de conversion à la biomasse et efficacité énergétique d’un complexe de serres | C155: Gestion horticole Normand Francoeur | D155: Implantation | E155: Agricole | F155: 1 | G155: 17-Centre-du-Québec | H155: Saint-Lucien | I155: TE | J155: SU | K155: 179529.8085 | L155: 2018-06-26T09:54:14 | M155: 2019-04-01 | N155: 376570 | T155: 85490.38 | U155: 85490.39 | V155: 8549.0385 | AA155: =SUM(O155:W155) -> 179529.8085 | AB155: =SUM(O155:Z155) -> 179529.8085
A156: 132 | B156: Chauffage à la biomasse chez Excavation Steve Leblanc | C156: Gestion Steve Leblanc inc. | D156: Implantation | E156: Industriel, commercial et institutionnel | F156: 1 | G156: 05-Estrie | H156: Ascot Corner | I156: AC | J156: SU | K156: 80375.02 | L156: 2021-02-16T10:39:08 | M156: 2022-11-30 | N156: 213000 | W156: 61238.11 | X156: 19136.91 | AA156: =SUM(O156:W156) -> 61238.11 | AB156: =SUM(O156:Z156) -> 80375.02
A157: 133 | B157: Implantation d'un deuxième séchoir alimenté à la biomasse | C157: Granules L.G. inc. | D157: Implantation | E157: Industriel, commercial et institutionnel | F157: 1 | G157: 02-Saguenay--Lac-Saint-Jean | H157: Saint-Félicien | I157: AC | J157: SU | K157: 1467312 | L157: 2020-03-27T15:35:22 | M157: 2022-02-15 | N157: 3205180 | U157: 349360 | V157: 419232 | W157: 698720 | AA157: =SUM(O157:W157) -> 1467312 | AB157: =SUM(O157:Z157) -> 1467312
A158: 134 | B158: Conditionnement (séchage et densification) de biomasse forestière | C158: Groupe Cyclofor Plus inc. | D158: Implantation | E158: Industriel, commercial et institutionnel | F158: 1 | G158: 08-Abitibi-Témiscamingue | H158: La Sarre | I158: AC | J158: SU | K158: 555500 | L158: 2018-06-20T15:53:29 | M158: 2023-12-10 | N158: 1584000 | X158: 287000 | Y158: 268500 | AA158: =SUM(O158:W158) -> 0 | AB158: =SUM(O158:Z158) -> 555500
A159: 135 | B159: Remplacement de la chaudière de 2000 kW à l'huile #6 par une série de chaudières à la biomasse forestière résiduelle | C159: Groupe Lebel inc. | D159: Implantation | E159: Industriel, commercial et institutionnel | F159: 1 | G159: 01-Bas-Saint-Laurent | H159: Dégelis | I159: TE | J159: SU | K159: 612937.5 | L159: 2018-07-03T15:50:01 | M159: 2021-01-18 | N159: 2519186 | U159: 291875 | V159: 321062.5 | AA159: =SUM(O159:W159) -> 612937.5 | AB159: =SUM(O159:Z159) -> 612937.5
A160: 136 | B160: Lebel Énergie | C160: Groupe Lebel inc. | D160: Analyse | E160: Industriel, commercial et institutionnel | F160: 1 | G160: 01-Bas-Saint-Laurent | H160: Cacouna | I160: TE | J160: SU | K160: 13000 | L160: 2019-08-29T09:09:42 | M160: 2019-10-17 | N160: 26000 | U160: 13000 | AA160: =SUM(O160:W160) -> 13000 | AB160: =SUM(O160:Z160) -> 13000
A161: 137 | B161: Centrale thermique à la biomasse forestière résiduelle pour une usine de granules | C161: Groupe Lebel inc. | D161: Implantation | E161: Industriel, commercial et institutionnel | F161: 1 | G161: 01-Bas-Saint-Laurent | H161: Cacouna | I161: AC | J161: SU | K161: 1751045.78 | L161: 2021-03-22T10:56:34 | M161: 2023-09-01 | N161: 7058848 | W161: 500298.79 | X161: 833831.32 | Y161: 416915.67 | AA161: =SUM(O161:W161) -> 500298.79 | AB161: =SUM(O161:Z161) -> 1751045.78
A162: 138 | B162: Installation d'une chaufferie à la biomasse forestière résiduelle | C162: Groupe Urbn inc. | D162: Implantation | E162: Industriel, commercial et institutionnel | F162: 1 | G162: 01-Bas-Saint-Laurent | H162: Rimouski | I162: AC | J162: SU | K162: 121070.25 | L162: 2018-12-06T09:28:24 | M162: 2019-04-01 | N162: 230610 | U162: 115305 | V162: 5765.25 | AA162: =SUM(O162:W162) -> 121070.25 | AB162: =SUM(O162:Z162) -> 121070.25
A163: 139 | B163: Étude de faisabilité conversion vers biomasse forestière résiduelle et mesures d'efficacité énergétique | C163: Jardins Paquette inc. | D163: Analyse | E163: Agricole | F163: 1 | G163: 05-Estrie | H163: Lac-Brome | I163: TE | J163: SU | K163: 18437.5 | L163: 2014-02-21 | M163: 2015-01-29 | N163: 35750 | P163: 17872.5 | AA163: =SUM(O163:W163) -> 17872.5 | AB163: =SUM(O163:Z163) -> 17872.5
A164: 140 | B164: Implantation vers biomasse forestière résiduelle et mesures d'efficacité énergétique | C164: Jardins Paquette inc. | D164: Implantation | E164: Agricole | F164: 1 | G164: 05-Estrie | H164: Lac-Brome | I164: TE | J164: SU | K164: 2016444.62 | L164: 2016-03-23 | M164: 2018-12-03 | N164: 2884533 | R164: 504111.16 | S164: 1008222.32 | T164: 504111.14 | AA164: =SUM(O164:W164) -> 2016444.62 | AB164: =SUM(O164:Z164) -> 2016444.62
A165: 141 | B165: Serre de potés fleuris – Efficacité énergétique et conversion à la biomasse forestière résiduelle | C165: Jardins Paquette inc. | D165: Implantation | E165: Agricole | F165: 1 | G165: 05-Estrie | H165: Lac-Brome | I165: AC | J165: SU | K165: 63739.56934 | L165: 2020-12-23T13:53:10 | M165: 2022-11-15 | N165: 137048 | W165: 48563.47826 | X165: 15176.09108 | AA165: =SUM(O165:W165) -> 48563.47826 | AB165: =SUM(O165:Z165) -> 63739.56934
A166: 142 | B166: Production de vapeur à partir de la biomasse forestière résiduelle - Analyse | C166: La Centrale de chauffage S.E.N.C. | D166: Analyse | E166: Industriel, commercial et institutionnel | F166: 1 | G166: 02-Saguenay--Lac-Saint-Jean | H166: Saguenay | I166: TE | J166: SU | K166: 30750 | L166: 2018-08-03T09:12:49 | M166: 2018-11-15 | N166: 67974.68 | T166: 29164.51 | AA166: =SUM(O166:W166) -> 29164.51 | AB166: =SUM(O166:Z166) -> 29164.51
A167: 143 | B167: Implantation - Production de vapeur à partir de la biomasse forestière résiduelle | C167: La Centrale de chauffage S.E.N.C. | D167: Implantation | E167: Industriel, commercial et institutionnel | F167: 1 | G167: 02-Saguenay--Lac-Saint-Jean | H167: Saguenay | I167: AC | J167: SU | K167: 1490826.83 | L167: 2019-02-28T11:17:27 | M167: 2023-12-30 | N167: 4701000 | V167: 425950.52 | X167: 709917.54 | Y167: 354958.77 | AA167: =SUM(O167:W167) -> 425950.52 | AB167: =SUM(O167:Z167) -> 1490826.83
A168: 144 | B168: Remplacement de l'évaporateur à l'huile pour un équipement aux Granules | C168: La Coulée d’Élixir inc. | D168: Implantation | E168: Agricole | F168: 1 | G168: 11-Gaspésie--Îles-de-la-Madeleine | H168: Marsoui | I168: TE | J168: SU | K168: 77797.14 | L168: 2014-06-04 | M168: 2015-01-08 | N168: 100095 | P168: 75071.62 | AA168: =SUM(O168:W168) -> 75071.62 | AB168: =SUM(O168:Z168) -> 75071.62
A169: 145 | B169: Église de La Doré - Conversion à la biomasse | C169: La Fabrique de la paroisse de Notre-Dame-de-la-Doré | D169: Implantation | E169: Industriel, commercial et institutionnel | F169: 1 | G169: 02-Saguenay--Lac-Saint-Jean | H169: La Doré | I169: TE | J169: SU | K169: 74602.75 | L169: 2015-12-04 | M169: 2017-07-12 | N169: 111000 | Q169: 18650.69 | R169: 37301.38 | S169: 18650.68 | AA169: =SUM(O169:W169) -> 74602.75 | AB169: =SUM(O169:Z169) -> 74602.75
A170: 146 | B170: Conversion des systèmes de chauffage de l’église et du presbytère vers la biomasse forestière résiduelle | C170: La Fabrique de la paroisse de Notre-Dame-de-l'Assomption | D170: Implantation | E170: Industriel, commercial et institutionnel | F170: 1 | G170: 03-Capitale-Nationale | H170: Les Éboulements | I170: TE | J170: SU | K170: 98228.64 | L170: 2015-08-25 | M170: 2015-04-01 | N170: 147000 | Q170: 98228.64 | AA170: =SUM(O170:W170) -> 98228.64 | AB170: =SUM(O170:Z170) -> 98228.64
A171: 147 | B171: Chauffage à la biomasse de l'église et du presbytère de Amqui | C171: La Fabrique de la paroisse de Saint-Benoit-Labre | D171: Implantation | E171: Industriel, commercial et institutionnel | F171: 1 | G171: 01-Bas-Saint-Laurent | H171: Amqui | I171: AC | J171: SU | K171: 102638.6 | L171: 2021-03-01T14:14:13 | M171: 2022-12-12 | N171: 238000 | W171: 78200.83 | X171: 24437.77 | AA171: =SUM(O171:W171) -> 78200.83 | AB171: =SUM(O171:Z171) -> 102638.6
A172: 148 | B172: Convertir le chauffage mazout de l'église Sainte-Blandine par des équipements de chauffage utilisant de la biomasse forestière résiduelle | C172: La Fabrique de la paroisse de Sainte-Blandine | D172: Implantation | E172: Industriel, commercial et institutionnel | F172: 1 | G172: 01-Bas-Saint-Laurent | H172: Rimouski | I172: TE | J172: SU | K172: 62678.95 | L172: 2015-11-25 | M172: 2016-09-08 | N172: 110669 | R172: 62678.95 | AA172: =SUM(O172:W172) -> 62678.95 | AB172: =SUM(O172:Z172) -> 62678.95
A173: 149 | B173: Conversion des systèmes de chauffage de l’église et du presbytère vers la biomasse forestière résiduelle. | C173: La Fabrique de la paroisse de Sainte-Kateri-Tekakwitha | D173: Implantation | E173: Industriel, commercial et institutionnel | F173: 1 | G173: 12-Chaudière-Appalaches | H173: Lac-Etchemin | I173: TE | J173: SU | K173: 74147.37 | L173: 2014-03-05 | M173: 2014-04-01 | N173: 136558 | P173: 74147.37 | AA173: =SUM(O173:W173) -> 74147.37 | AB173: =SUM(O173:Z173) -> 74147.37
A174: 150 | B174: Remplacement du système de chauffage à l'huile par du chauffage aux granules à l'Église de Dégelis | C174: La Fabrique de la paroisse de Sainte-Rose-du-Dégelis | D174: Implantation | E174: Industriel, commercial et institutionnel | F174: 1 | G174: 01-Bas-Saint-Laurent | H174: Dégelis | I174: TE | J174: SU | K174: 64625 | L174: 2018-05-31T11:08:53 | M174: 2018-04-01 | N174: 129250 | T174: 64625 | AA174: =SUM(O174:W174) -> 64625 | AB174: =SUM(O174:Z174) -> 64625
A175: 151 | B175: Remplacement de la chaudière utilisant l'huile à chauffage par de nouvelles utilisant le granule | C175: La fabrique de la paroisse Marie-Médiatrice d'Escourt | D175: Implantation | E175: Industriel, commercial et institutionnel | F175: 1 | G175: 01-Bas-Saint-Laurent | H175: Pohénégamook | I175: TE | J175: SU | K175: 60225.06 | L175: 2018-11-09T08:45:23 | M175: 2019-04-09 | N175: 130600 | U175: 60225.06 | AA175: =SUM(O175:W175) -> 60225.06 | AB175: =SUM(O175:Z175) -> 60225.06
A176: 152 | B176: Fabrique de la Paroisse de Saint-Germain-de-Grantham | C176: La Fabrique de la paroisse Notre-Dame-de-Lourdes | D176: Implantation | E176: Industriel, commercial et institutionnel | F176: 1 | G176: 17-Centre-du-Québec | H176: Saint-Germain-de-Grantham | I176: TE | J176: SU | K176: 38723.59 | L176: 2015-11-11 | M176: 2015-04-01 | N176: 77500 | Q176: 38723.59 | AA176: =SUM(O176:W176) -> 38723.59 | AB176: =SUM(O176:Z176) -> 38723.59
A177: 153 | B177: Acériculture-Évaporateur à biomasse | C177: La Griffe d'Érable inc. | D177: Implantation | E177: Agricole | F177: 1 | G177: 17-Centre-du-Québec | H177: Saint-Léonard-d'Aston | I177: TE | J177: SU | K177: 43932.77 | L177: 2019-12-02T11:51:37 | M177: 2019-12-04 | N177: 66612 | U177: 43932.77 | AA177: =SUM(O177:W177) -> 43932.77 | AB177: =SUM(O177:Z177) -> 43932.77
A178: 154 | B178: Analyse de faisabilité - Utilisation de la biomasse pour le chauffage des bâtiments - Municipalité de Saint-Marcellin | C178: La Municipalité de la paroisse de Saint-Marcellin | D178: Analyse | E178: Industriel, commercial et institutionnel | F178: 1 | G178: 01-Bas-Saint-Laurent | H178: Saint-Marcellin | I178: TE | J178: SU | K178: 6000 | L178: 2015-06-18 | M178: 2015-04-01 | N178: 12000 | Q178: 6000 | AA178: =SUM(O178:W178) -> 6000 | AB178: =SUM(O178:Z178) -> 6000
A179: 155 | B179: Serre de production fruitière chauffée à la biomasse | C179: La Vallée du Moulin Inc. | D179: Analyse | E179: Agricole | F179: 1 | G179: 05-Estrie | H179: Ulverton | I179: TE | J179: SU | K179: 11800 | L179: 2017-11-06T10:50:50 | M179: 2018-07-16 | N179: 23600 | T179: 11800 | AA179: =SUM(O179:W179) -> 11800 | AB179: =SUM(O179:Z179) -> 11800
A180: 156 | B180: Serre de production fruitière chauffée à la biomasse | C180: La Vallée du Moulin Inc. | D180: Implantation | E180: Agricole | F180: 1 | G180: 05-Estrie | H180: Ulverton | I180: TE | J180: SU | K180: 165230.1 | L180: 2019-01-18T14:19:39 | M180: 2019-04-01 | N180: 346355 | U180: 157362 | V180: 7868.1 | AA180: =SUM(O180:W180) -> 165230.1 | AB180: =SUM(O180:Z180) -> 165230.1
A181: 157 | B181: Centre commercial et écuries – Conversion à la biomasse forestière résiduelle | C181: L'Acadien Bricoleur inc. | D181: Implantation | E181: Industriel, commercial et institutionnel | F181: 1 | G181: 17-Centre-du-Québec | H181: Bécancour | I181: AC | J181: SU | K181: 76095.74 | L181: 2021-03-18T13:30:43 | M181: 2022-01-10 | N181: 149060 | W181: 76095.74 | AA181: =SUM(O181:W181) -> 76095.74 | AB181: =SUM(O181:Z181) -> 76095.74
A182: 158 | B182: Système de chauffage biomasse air forcé | C182: Lauzon-Planchers de Bois Exclusifs inc. | D182: Analyse | E182: Industriel, commercial et institutionnel | F182: 1 | G182: 07-Outaouais | H182: Thurso | I182: TE | J182: SU | K182: 10885 | L182: 2017-11-06T09:54:50 | M182: 2017-12-20 | N182: 9500 | S182: 4750 | AA182: =SUM(O182:W182) -> 4750 | AB182: =SUM(O182:Z182) -> 4750
A183: 159 | B183: Élimination des GES en remplaçant le mazout par l'implantation d'équipements opérant à la biomasse forestière résiduelle et aux granules de bois | C183: Le Sainte-Hélène, Auberge & Spa Nordique inc. | D183: Implantation | E183: Industriel, commercial et institutionnel | F183: 1 | G183: 17-Centre-du-Québec | H183: Sainte-Hélène-de-Chester | I183: TE | J183: SU | K183: 106013.5965 | L183: 2019-03-21T14:47:15 | M183: 2019-04-01 | N183: 210904 | U183: 100965.33 | V183: 5048.2665 | AA183: =SUM(O183:W183) -> 106013.5965 | AB183: =SUM(O183:Z183) -> 106013.5965
A184: 160 | B184: Réduction des GES à l'Érablière du Domaine Bouvoie inc. | C184: L'érablière du Domaine Bouvoie inc. | D184: Implantation | E184: Agricole | F184: 1 | G184: 01-Bas-Saint-Laurent | H184: Saint-Athanase | I184: TE | J184: SU | K184: 30755.62807 | L184: 2020-01-22T14:43:13 | M184: 2019-04-01 | N184: 58583 | U184: 29291.07435 | V184: 1464.553718 | AA184: =SUM(O184:W184) -> 30755.62807 | AB184: =SUM(O184:Z184) -> 30755.62807
A185: 161 | B185: Remplacement d'un évaporateur fonctionnant à l'huile par un évaporateur fonctionnant à la biomasse forestière résiduelle | C185: L'Érablière Poirier & Guay SENC. | D185: Implantation | E185: Agricole | F185: 1 | G185: 17-Centre-du-Québec | H185: Saint-Christophe-d'Arthabaska | I185: TE | J185: SU | K185: 23102.59 | L185: 2015-12-11 | M185: 2016-03-29 | N185: 50341 | Q185: 23102.59 | AA185: =SUM(O185:W185) -> 23102.59 | AB185: =SUM(O185:Z185) -> 23102.59
A186: 162 | B186: Étude de faisabilité pour un projet de conversion à la biomasse forestière résiduelle | C186: Les Entreprises Claudelaine ltée | D186: Analyse | E186: Industriel, commercial et institutionnel | F186: 1 | G186: 17-Centre-du-Québec | H186: Bécancour | I186: TE | J186: SU | K186: 20100 | L186: 2014-07-04 | M186: 2014-04-01 | N186: 40200 | P186: 20100 | AA186: =SUM(O186:W186) -> 20100 | AB186: =SUM(O186:Z186) -> 20100
A187: 163 | B187: Conversion à la biomasse forestière résiduelle | C187: Les Entreprises Claudelaine ltée | D187: Implantation | E187: Industriel, commercial et institutionnel | F187: 1 | G187: 17-Centre-du-Québec | H187: Bécancour | I187: TE | J187: SU | K187: 799701.57 | L187: 2014-12-01 | M187: 2014-04-01 | N187: 1590189 | P187: 799701.57 | AA187: =SUM(O187:W187) -> 799701.57 | AB187: =SUM(O187:Z187) -> 799701.57
A188: 164 | B188: Implantation de chaudières à la biomasse | C188: Les entreprises Interco inc. | D188: Implantation | E188: Industriel, commercial et institutionnel | F188: 1 | G188: 17-Centre-du-Québec | H188: Saint-Eugène | I188: AC | J188: SU | K188: 261423.75 | L188: 2020-08-24T10:49:34 | M188: 2022-12-17 | N188: 497950 | V188: 74692.5 | X188: 124487.5 | Y188: 62243.75 | AA188: =SUM(O188:W188) -> 74692.5 | AB188: =SUM(O188:Z188) -> 261423.75
A189: 165 | B189: M12-12 Équipements Raymond E. Laliberté | C189: Les Équipements de ferme Raymond E. Laliberté inc. | D189: Implantation | E189: Industriel, commercial et institutionnel | F189: 1 | G189: 12-Chaudière-Appalaches | H189: Saint-Henri | I189: TE | J189: SU | K189: 69036.73 | L189: 2014-06-04 | M189: 2018-03-14 | N189: 173068 | P189: 17259.18 | S189: 51777.55 | AA189: =SUM(O189:W189) -> 69036.73 | AB189: =SUM(O189:Z189) -> 69036.73
A190: 166 | B190: Acériculture-Évaporateur à biomasse | C190: Les Fermes M & R Guilbault inc. | D190: Implantation | E190: Agricole | F190: 1 | G190: 14-Lanaudière | H190: Saint-Esprit | I190: TE | J190: SU | K190: 16024.61 | L190: 2020-10-19T15:34:06 | M190: 2021-03-15 | N190: 74767 | V190: 16024.61 | AA190: =SUM(O190:W190) -> 16024.61 | AB190: =SUM(O190:Z190) -> 16024.61
A191: 167 | B191: Réseau de chauffage - 200, chemin des Industries, Lavaltrie | C191: Les Immeubles Marc Saulnier inc. | D191: Implantation | E191: Industriel, commercial et institutionnel | F191: 1 | G191: 14-Lanaudière | H191: Lavaltrie | I191: AC | J191: SU | K191: 209389.95 | L191: 2019-10-03T09:40:29 | M191: 2022-04-29 | N191: 406838 | U191: 49854.75 | V191: 59825.7 | W191: 49854.75 | X191: 49854.75 | AA191: =SUM(O191:W191) -> 159535.2 | AB191: =SUM(O191:Z191) -> 209389.95
A192: 168 | B192: Conversion à la biomasse forestière résiduelle d’un séchoir de bois bûches | C192: Les Immeubles Marc Saulnier inc. | D192: Implantation | E192: Industriel, commercial et institutionnel | F192: 1 | G192: 14-Lanaudière | H192: Lavaltrie | I192: AC | J192: SU | K192: 131038.21 | L192: 2021-02-02T14:07:47 | M192: 2022-02-28 | N192: 261549 | W192: 131038.21 | AA192: =SUM(O192:W192) -> 131038.21 | AB192: =SUM(O192:Z192) -> 131038.21
A193: 169 | B193: Chauffage à la biomasse forestière résiduelle - condos industriels | C193: Les Investissements Bernard Guay inc. | D193: Implantation | E193: Industriel, commercial et institutionnel | F193: 1 | G193: 15-Laurentides | H193: Lachute | I193: AC | J193: SU | K193: 152929.35 | L193: 2018-08-07T13:13:22 | M193: 2021-03-31 | N193: 291294 | V193: 80105.85 | W193: 72823.5 | AA193: =SUM(O193:W193) -> 152929.35 | AB193: =SUM(O193:Z193) -> 152929.35
A194: 170 | B194: Projet de chauffage de serres à la biomasse forestière | C194: Les Jardins du Petit-Pré 2.0 inc. | D194: Analyse | E194: Industriel, commercial et institutionnel | F194: 1 | G194: 03-Capitale-Nationale | H194: Château-Richer | I194: TE | J194: SU | K194: 5722.5 | L194: 2021-03-18T10:27:03 | M194: 2021-04-19 | N194: 10900 | W194: 5722.5 | AA194: =SUM(O194:W194) -> 5722.5 | AB194: =SUM(O194:Z194) -> 5722.5
A195: 171 | B195: Économie de GES Érablière Guy Laflamme | C195: Les Patios et Planchers G. L. inc. | D195: Implantation | E195: Industriel, commercial et institutionnel | F195: 1 | G195: 17-Centre-du-Québec | H195: Sainte-Sophie-d'Halifax | I195: TE | J195: SU | K195: 21057.29 | L195: 2019-09-27T08:56:12 | M195: 2020-04-01 | N195: 40003 | V195: 21054.1545 | AA195: =SUM(O195:W195) -> 21054.1545 | AB195: =SUM(O195:Z195) -> 21054.1545
A196: 172 | B196: Chauffage à la biomasse forestière résiduelle - Les Productions horticoles Demers inc. | C196: Les Productions horticoles Demers inc. | D196: Implantation | E196: Agricole | F196: 1 | G196: 12-Chaudière-Appalaches | H196: Lévis | I196: TE | J196: SU | K196: 1442812.5 | L196: 2014-12-10 | M196: 2015-04-01 | N196: 1923750 | P196: 721406.25 | Q196: 721406.25 | AA196: =SUM(O196:W196) -> 1442812.5 | AB196: =SUM(O196:Z196) -> 1442812.5
A197: 173 | B197: Conversion à la biomasse forestière résiduelle des séchoirs à bois | C197: Les Séchoirs St-Gabriel | D197: Analyse | E197: Agricole | F197: 1 | G197: 14-Lanaudière | H197: Saint-Gabriel | I197: TE | J197: SU | K197: 13285 | L197: 2015-09-11 | M197: 2015-04-01 | N197: 26570 | Q197: 13285 | AA197: =SUM(O197:W197) -> 13285 | AB197: =SUM(O197:Z197) -> 13285
A198: 174 | B198: Complexe de serres haute efficacité | C198: Les Serres Bergeron enr. | D198: Analyse | E198: Agricole | F198: 1 | G198: 15-Laurentides | H198: Notre-Dame-du-Laus | I198: TE | J198: SU | K198: 5407.5 | L198: 2021-03-18T10:38:47 | M198: 2021-04-27 | N198: 10300 | W198: 5407.5 | AA198: =SUM(O198:W198) -> 5407.5 | AB198: =SUM(O198:Z198) -> 5407.5
A199: 175 | B199: Nouvelles Infrastructures de production-Mesures d'efficacité énergétique et chauffage à la biomasse forestière résiduelle | C199: Les Serres Biologico inc. | D199: Analyse | E199: Agricole | F199: 1 | G199: 15-Laurentides | H199: Sainte-Sophie | I199: TE | J199: SU | K199: 15262.5 | L199: 2014-02-21 | M199: 2014-10-21 | N199: 30525 | P199: 15262.5 | AA199: =SUM(O199:W199) -> 15262.5 | AB199: =SUM(O199:Z199) -> 15262.5
A200: 176 | B200: Serres Gallichan - Chaufferie à la biomasse | C200: Les Serres Gallichan ltée | D200: Implantation | E200: Agricole | F200: 1 | G200: 08-Abitibi-Témiscamingue | H200: Gallichan | I200: TE | J200: SU | K200: 429400.46 | L200: 2016-03-23 | M200: 2019-03-19 | N200: 782062 | S200: 322050.36 | T200: 107350.1 | AA200: =SUM(O200:W200) -> 429400.46 | AB200: =SUM(O200:Z200) -> 429400.46
A201: 177 | B201: Nouveau complexe de serres de 10 ha chauffé à la biomasse forestière résiduelle | C201: Les Serres Lefort inc. | D201: Implantation | E201: Agricole | F201: 1 | G201: 16-Montérégie | H201: Sainte-Clotilde | I201: TE | J201: SU | K201: 3235350 | L201: 2014-06-12 | M201: 2016-04-01 | N201: 11721000 | Q201: 808837.5 | R201: 2426512.5 | AA201: =SUM(O201:W201) -> 3235350 | AB201: =SUM(O201:Z201) -> 3235350
A202: 178 | B202: Agrandissement de la surface de production - mesures d'efficacité énergétique - chauffage à la biomasse forestière résiduelle | C202: Les Serres Royales inc. | D202: Analyse | E202: Agricole | F202: 1 | G202: 15-Laurentides | H202: Saint-Jérôme | I202: TE | J202: SU | K202: 12652.5 | L202: 2014-09-16 | M202: 2014-10-15 | N202: 25305 | P202: 12652.5 | AA202: =SUM(O202:W202) -> 12652.5 | AB202: =SUM(O202:Z202) -> 12652.5
A203: 179 | B203: Nouvelles infrastructures de production - Mesures d'efficacité énergétique et chauffage à la biomasse forestière résiduelle | C203: Les Serres Sagami inc. | D203: Analyse | E203: Agricole | F203: 1 | G203: 16-Montérégie | H203: Sainte-Marthe | I203: TE | J203: SU | K203: 15267.5 | L203: 2014-02-21 | M203: 2014-07-10 | N203: 30535 | P203: 15267.5 | AA203: =SUM(O203:W203) -> 15267.5 | AB203: =SUM(O203:Z203) -> 15267.5
A204: 180 | B204: Nouvelles infrastructures de production - Mesures d'efficacité énergétique - Chauffage à la biomasse forestière résiduelle | C204: Les Serres Sagami St-Janvier Inc. | D204: Analyse | E204: Agricole | F204: 1 | G204: 15-Laurentides | H204: Mirabel | I204: TE | J204: SU | K204: 14637.5 | L204: 2014-02-21 | M204: 2014-07-09 | N204: 29275 | P204: 14637.5 | AA204: =SUM(O204:W204) -> 14637.5 | AB204: =SUM(O204:Z204) -> 14637.5
A205: 181 | B205: Projet d'expansion chauffée à la biomasse | C205: Les Serres Stéphane Bertrand inc. | D205: Implantation | E205: Agricole | F205: 1 | G205: 15-Laurentides | H205: Mirabel | I205: TE | J205: SU | K205: 2339136.869 | L205: 2014-05-21 | M205: 2015-04-01 | N205: 4883520 | P205: 1169568.425 | Q205: 1169568.443 | AA205: =SUM(O205:W205) -> 2339136.869 | AB205: =SUM(O205:Z205) -> 2339136.869
A206: 182 | B206: Chauffage à biomasse à la serre de recherche | C206: Les Tourbières Berger Ltée | D206: Implantation | E206: Industriel, commercial et institutionnel | F206: 1 | G206: 01-Bas-Saint-Laurent | H206: Saint-Modeste | I206: TE | J206: SU | K206: 219149.3399 | L206: 2019-01-25T08:43:12 | M206: 2019-04-01 | N206: 580862 | U206: 207177.7736 | V206: 10957.46699 | AA206: =SUM(O206:W206) -> 218135.2406 | AB206: =SUM(O206:Z206) -> 218135.2406
A207: 183 | B207: Conversion thermique vers la biomasse forestière résiduelle (chauffage et procédés de transformation) | C207: Les Viandes biologiques de Charlevoix inc. | D207: Implantation | E207: Industriel, commercial et institutionnel | F207: 1 | G207: 03-Capitale-Nationale | H207: Saint-Urbain | I207: TE | J207: SU | K207: 586100.697 | L207: 2018-12-03T10:07:06 | M207: 2019-04-01 | N207: 1517762 | T207: 279095.56 | U207: 279095.58 | V207: 27909.557 | AA207: =SUM(O207:W207) -> 586100.697 | AB207: =SUM(O207:Z207) -> 586100.697
A208: 184 | B208: Les Volailles S.B. inc. - Réseau de chaleur | C208: Les Volailles S.B. inc. | D208: Implantation | E208: Agricole | F208: 1 | G208: 16-Montérégie | H208: La Présentation | I208: TE | J208: SU | K208: 229112.66 | L208: 2015-01-14 | M208: 2015-04-01 | N208: 781606 | Q208: 229112.66 | AA208: =SUM(O208:W208) -> 229112.66 | AB208: =SUM(O208:Z208) -> 229112.66
A209: 185 | B209: Serre de fraise – Efficacité énergétique et conversion à la biomasse forestière résiduelle | C209: Les Volailles S.B. inc. | D209: Implantation | E209: Agricole | F209: 1 | G209: 16-Montérégie | H209: La Présentation | I209: TE | J209: SU | K209: 65168.41369 | L209: 2019-10-28T11:45:19 | M209: 2020-04-01 | N209: 130627 | U209: 31032.58436 | V209: 34135.82933 | AA209: =SUM(O209:W209) -> 65168.41369 | AB209: =SUM(O209:Z209) -> 65168.41369
A210: 186 | B210: Installation d'un système de chauffage à la biomasse forestière | C210: Levaco inc. | D210: Implantation | E210: Industriel, commercial et institutionnel | F210: 1 | G210: 12-Chaudière-Appalaches | H210: Saint-Antoine-de-Tilly | I210: TE | J210: SU | K210: 75187.14 | L210: 2018-06-26T09:35:30 | M210: 2019-04-01 | N210: 241609 | T210: 17901.7 | U210: 53705.1 | V210: 3580.34 | AA210: =SUM(O210:W210) -> 75187.14 | AB210: =SUM(O210:Z210) -> 75187.14
A211: 187 | B211: Installation d'une chaudière à la biomasse pour le chauffage des bâtiments | C211: Litière Ouellet | D211: Analyse | E211: Industriel, commercial et institutionnel | F211: 1 | G211: 01-Bas-Saint-Laurent | H211: L'Isle-Verte | I211: TE | J211: SU | K211: 12500 | L211: 2019-09-13T15:49:10 | M211: 2020-04-07 | N211: 25000 | V211: 12500 | AA211: =SUM(O211:W211) -> 12500 | AB211: =SUM(O211:Z211) -> 12500
A212: 188 | B212: Augmentation de la production d'énergie chez LVL Global | C212: LVL Global inc. | D212: Implantation | E212: Industriel, commercial et institutionnel | F212: 1 | G212: 08-Abitibi-Témiscamingue | H212: Ville-Marie | I212: AC | J212: SU | K212: 676987.5 | L212: 2018-03-29T13:52:06 | M212: 2022-07-29 | N212: 1774500 | U212: 161187.5 | V212: 32237.5 | W212: 322375 | X212: 161187.5 | AA212: =SUM(O212:W212) -> 515800 | AB212: =SUM(O212:Z212) -> 676987.5
A213: 189 | B213: Remplacement du fourneau de l’évaporateur à l’huile pour un fourneau D & G aux granules | C213: Machinerie L.A.M. inc. | D213: Implantation | E213: Industriel, commercial et institutionnel | F213: 1 | G213: 17-Centre-du-Québec | H213: Inverness | I213: TE | J213: SU | K213: 68349.32 | L213: 2015-12-03 | M213: 2015-04-01 | N213: 115076 | Q213: 68349.32 | AA213: =SUM(O213:W213) -> 68349.32 | AB213: =SUM(O213:Z213) -> 68349.32
A214: 190 | B214: Remplacement d’un évaporateur à l’huile pour un évaporateur aux granules | C214: Mesurage J. Robert inc. | D214: Implantation | E214: Industriel, commercial et institutionnel | F214: 1 | G214: 01-Bas-Saint-Laurent | H214: Auclair | I214: TE | J214: SU | K214: 65323.46 | L214: 2015-12-23 | M214: 2015-04-01 | N214: 116047 | Q214: 65323.46 | AA214: =SUM(O214:W214) -> 65323.46 | AB214: =SUM(O214:Z214) -> 65323.46
A215: 191 | B215: Projet de conversion de chauffage à la biomasse | C215: Métaltek Laser inc. | D215: Implantation | E215: Industriel, commercial et institutionnel | F215: 1 | G215: 17-Centre-du-Québec | H215: Bécancour | I215: AC | J215: SU | K215: 146175.75 | L215: 2020-07-15T08:27:26 | M215: 2022-06-01 | N215: 283600 | V215: 41764.5 | W215: 69607.5 | X215: 34803.75 | AA215: =SUM(O215:W215) -> 111372 | AB215: =SUM(O215:Z215) -> 146175.75
... 64 more rows

Sheet GES
B2: =Utilitaire!E8 -> Plan d'action 2013-2020 sur les changements climatiques
B3: ="Action " & Accueil!D58 -> Action en cours
B4: =Accueil!D55 -> 24.1.1 | C4: =Accueil!E55 -> Soutien au développement des bioénergies pour réduire les émissions de GES à court terme – Programme Biomasse forestière résiduelle - Volet TEQ
B5: Ministère porteur : | C5: =Accueil!$D$65 -> MERN (SITE)
B6: GES
B19: Informations en date du : | D19: 2022-03-31
B20: Potentiel de réduction des GES évalué lors de la sélection des projets de cette action : | G20: Oui | I20: Réductions réelles quantifiables des émissions de GES attendues pour cette action : | O20: Oui
F22: ÉVALUATION DU POTENTIEL DE RÉDUCTION ET D'ÉVITEMENT D'ÉMISSIONS DE GES À TERME. | H22: DÉTAIL DES ÉMISSIONS DE GES RÉDUITES OU ÉVITÉES (en tonnes éq. CO2)
B23: Nom du projet | C23: Nom du requérant ou du bénéficiaire | D23: Région administrative | E23: Montant engagé ($) | F23: Potentiel de réduction des GES sur une base annuelle | G23: Horizon temporel pour la réalisation du potentiel | H23: Coût/tonne estimé | I23: Type d'émission | J23: Émissions rapportées dans l'inventaire | K23: Durée du projet | L23: Émissions | N23: Vérifiées | P23: 2013-2014 | R23: 2014-2015 | T23: 2015-2016 | V23: 2016-2017 | X23: 2017-2018 | Z23: 2018-2019 | AB23: 2019-2020 | AD23: 2020-2021 | AF23: 2021-2022 | AH23: 2022-2023 | AJ23: 2023-2024 | AL23: 2024-2025
F24: (tonnes éq. CO2) | H24: $ ------------ tonnes éq. CO2 | K24: (années) | L24: Réduites | M24: Évitées | N24: Tierce partie | O24: M/O | P24: Vérifié | Q24: Non vérifié | R24: Vérifié | S24: Non vérifié | T24: Vérifié | U24: Non vérifié | V24: Vérifié | W24: Non vérifié | X24: Vérifié | Y24: Non vérifié | Z24: Vérifié | AA24: Non vérifié | AB24: Vérifié | AC24: Non vérifié | AD24: Vérifié | AE24: Non vérifié | AF24: Vérifié | AG24: Non vérifié | AH24: Vérifié | AI24: Non vérifié | AJ24: Vérifié | AK24: Non vérifié | AL24: Vérifié | AM24: Non vérifié
B25: =IF(LEN('Détail des projets'!B25)=0,"",'Détail des projets'!B25) -> Installation d'un système de chauffage de serre à la biomasse forestière | C25: ='Détail des projets'!C25 -> 4076061 Canada inc. | D25: =IF(LEN('Détail des projets'!G25)=0,"",'Détail des projets'!G25) -> 12-Chaudière-Appalaches | E25: =IF(LEN('Détail des projets'!K25)=0,"",'Détail des projets'!K25) -> 59909.85 | F25: 46.11908089 | G25: À la fin du projet (suite au dernier versement) | H25: 61.85834463 | I25: QC-Québec | J25: Oui | K25: 25 | L25: 0 | M25: 46.11908089 | N25: Non | O25: Oui | P25: 0 | R25: 0 | T25: 0 | V25: 0 | X25: 0 | Z25: 0 | AB25: 0 | AD25: 0 | AF25: 0
B26: =IF(LEN('Détail des projets'!B26)=0,"",'Détail des projets'!B26) -> Remplacement - Évaporateur - Érablière O'Maple | C26: =IF(LEN('Détail des projets'!C26)=0,"",'Détail des projets'!C26) -> 8401381 Canada inc. | D26: =IF(LEN('Détail des projets'!G26)=0,"",'Détail des projets'!G26) -> 14-Lanaudière | E26: =IF(LEN('Détail des projets'!K26)=0,"",'Détail des projets'!K26) -> 87741.84 | F26: 69.32004076 | G26: À la fin du projet (suite au dernier versement) | H26: 63.28748443 | I26: QC-Québec | J26: Oui | K26: 15 | L26: 0 | M26: 69.32004076 | N26: Non | O26: Oui | P26: 0 | R26: 0 | T26: 0 | V26: 0 | X26: 9.84874896 | Z26: 68.94124272 | AB26: 69.13064174 | AD26: 68.94124272 | AF26: 68.94124272
B27: =IF(LEN('Détail des projets'!B27)=0,"",'Détail des projets'!B27) -> Élimination des GES en remplaçant le mazout par l'implantation d'équipements opérant à la biomasse forestière résiduelle | C27: =IF(LEN('Détail des projets'!C27)=0,"",'Détail des projets'!C27) -> 9080-7454 Québec inc. / Plomberie Denis Carignan inc. | D27: =IF(LEN('Détail des projets'!G27)=0,"",'Détail des projets'!G27) -> 17-Centre-du-Québec | E27: =IF(LEN('Détail des projets'!K27)=0,"",'Détail des projets'!K27) -> 43566.75 | F27: 34.61559674 | G27: À la fin du projet (suite au dernier versement) | H27: 47.19703411 | I27: QC-Québec | J27: Oui | K27: 25 | L27: 0 | M27: 34.61559674 | N27: Non | O27: Oui | P27: 0 | R27: 0 | T27: 0 | V27: 0 | X27: 3.215656527 | Z27: 34.42644047 | AB27: 34.5210186 | AD27: 34.42644047 | AF27: 34.42644047
B28: =IF(LEN('Détail des projets'!B28)=0,"",'Détail des projets'!B28) -> Remplacement du fourneau de l’évaporateur à l’huile actuel pour utiliser de la biomasse forestière résiduelle | C28: =IF(LEN('Détail des projets'!C28)=0,"",'Détail des projets'!C28) -> 9087-4264 Québec inc. | D28: =IF(LEN('Détail des projets'!G28)=0,"",'Détail des projets'!G28) -> 01-Bas-Saint-Laurent | E28: =IF(LEN('Détail des projets'!K28)=0,"",'Détail des projets'!K28) -> 81247.28 | F28: 88.34072096 | G28: À la fin du projet (suite au dernier versement) | H28: 45.98518051 | I28: QC-Québec | J28: Oui | K28: 20 | L28: 0 | M28: 88.34072096 | N28: Non | O28: Oui | P28: 0 | R28: 0 | T28: 0 | V28: 73.61726747 | X28: 87.85798478 | Z28: 87.85798478 | AB28: 88.09935287 | AD28: 87.85798478 | AF28: 87.85798478
B29: =IF(LEN('Détail des projets'!B29)=0,"",'Détail des projets'!B29) -> Remplacer l'évaporateur à l'huile par un équipement complet aux granules Dominion & Grimm | C29: =IF(LEN('Détail des projets'!C29)=0,"",'Détail des projets'!C29) -> 9095-4827 Québec inc. | D29: =IF(LEN('Détail des projets'!G29)=0,"",'Détail des projets'!G29) -> 01-Bas-Saint-Laurent | E29: =IF(LEN('Détail des projets'!K29)=0,"",'Détail des projets'!K29) -> 48020.05 | F29: 46.71990719 | G29: À la fin du projet (suite au dernier versement) | H29: 51.39142273 | I29: QC-Québec | J29: Oui | K29: 20 | L29: 0 | M29: 46.71990719 | N29: Non | O29: Oui | P29: 2.042400314 | R29: 46.46460715 | T29: 46.59225717 | V29: 46.46460715 | X29: 46.46460715 | Z29: 46.46460715 | AB29: 46.59225717 | AD29: 46.46460715 | AF29: 46.46460715
B30: =IF(LEN('Détail des projets'!B30)=0,"",'Détail des projets'!B30) -> GES - Évaporateur - Érablière de la Tour | C30: =IF(LEN('Détail des projets'!C30)=0,"",'Détail des projets'!C30) -> 9119-8416 Québec inc. (Érablière de la Tour) | D30: =IF(LEN('Détail des projets'!G30)=0,"",'Détail des projets'!G30) -> 01-Bas-Saint-Laurent | E30: =IF(LEN('Détail des projets'!K30)=0,"",'Détail des projets'!K30) -> 95690.83389 | F30: 81.33794726 | G30: À la fin du projet (suite au dernier versement) | H30: 58.82299297 | I30: QC-Québec | J30: Oui | K30: 15 | L30: 0 | M30: 81.33794726 | N30: Non | O30: Oui | P30: 0 | R30: 11.33397626 | T30: 81.11571244 | V30: 80.89347761 | X30: 80.89347761 | Z30: 80.89347761 | AB30: 81.11571244 | AD30: 80.89347761 | AF30: 80.89347761
B31: =IF(LEN('Détail des projets'!B31)=0,"",'Détail des projets'!B31) -> Remplacement équipement de chauffage propane par équipement de chauffage à la biomasse forestière résiduelle/granules de bois | C31: =IF(LEN('Détail des projets'!C31)=0,"",'Détail des projets'!C31) -> 9170-4429 Québec inc. | D31: =IF(LEN('Détail des projets'!G31)=0,"",'Détail des projets'!G31) -> 16-Montérégie | E31: =IF(LEN('Détail des projets'!K31)=0,"",'Détail des projets'!K31) -> 40875 | F31: 32.77959579 | G31: À la fin du projet (suite au dernier versement) | H31: 62.34823679 | I31: QC-Québec | J31: Oui | K31: 25 | L31: 0 | M31: 32.77959579 | N31: Non | O31: Oui | P31: 0 | R31: 0 | T31: 0 | V31: 0 | X31: 17.374977 | Z31: 32.60047231 | AB31: 32.69003405 | AD31: 32.60047231 | AF31: 32.60047231
B32: =IF(LEN('Détail des projets'!B32)=0,"",'Détail des projets'!B32) -> Conversion du système de chauffage à la granule de bois | C32: =IF(LEN('Détail des projets'!C32)=0,"",'Détail des projets'!C32) -> 9263-2280 Québec inc. | D32: =IF(LEN('Détail des projets'!G32)=0,"",'Détail des projets'!G32) -> 03-Capitale-Nationale | E32: =IF(LEN('Détail des projets'!K32)=0,"",'Détail des projets'!K32) -> 14769.94 | F32: 11.81595262 | G32: À la fin du projet (suite au dernier versement) | H32: 62.49999674 | I32: QC-Québec | J32: Oui | K32: 20 | L32: 0 | M32: 11.81595262 | N32: Non | O32: Oui | P32: 0 | R32: 0 | T32: 0 | V32: 0 | X32: 0 | Z32: 5.262295838 | AB32: 11.78366859 | AD32: 11.75138457 | AF32: 11.75138457
B33: =IF(LEN('Détail des projets'!B33)=0,"",'Détail des projets'!B33) -> Élimination des GES générés par le chauffage propane en implantant de nouveaux équipements brûlant la biomasse forestière type bois-bûche. | C33: =IF(LEN('Détail des projets'!C33)=0,"",'Détail des projets'!C33) -> 9274-2949 Québec inc. (Bar Le Cavreau) | D33: =IF(LEN('Détail des projets'!G33)=0,"",'Détail des projets'!G33) -> 12-Chaudière-Appalaches | E33: =IF(LEN('Détail des projets'!K33)=0,"",'Détail des projets'!K33) -> 18730.23 | F33: 14.27064789 | G33: À la fin du projet (suite au dernier versement) | H33: 62.5000005 | I33: QC-Québec | J33: Oui | K33: 20 | L33: 0 | M33: 14.27064789 | N33: Non | O33: Oui | P33: 0 | R33: 0 | T33: 0 | V33: 0 | X33: 0 | Z33: 0 | AB33: 0 | AD33: 0 | AF33: 0
B34: =IF(LEN('Détail des projets'!B34)=0,"",'Détail des projets'!B34) -> Chaufferie à la biomasse - Meunerie Unicoop | C34: =IF(LEN('Détail des projets'!C34)=0,"",'Détail des projets'!C34) -> 9290-1974 Québec inc. | D34: =IF(LEN('Détail des projets'!G34)=0,"",'Détail des projets'!G34) -> 12-Chaudière-Appalaches | E34: =IF(LEN('Détail des projets'!K34)=0,"",'Détail des projets'!K34) -> 931038.83 | F34: 0 | G34: À la fin du projet (suite au dernier versement) | I34: QC-Québec | J34: Oui | K34: 20 | L34: 0 | M34: 0 | N34: Non | O34: Oui | P34: 0 | R34: 0 | T34: 0 | V34: 0 | X34: 0 | Z34: 0 | AB34: 0 | AD34: 0 | AF34: 0
B35: =IF(LEN('Détail des projets'!B35)=0,"",'Détail des projets'!B35) -> Installation d'évaporateurs d'eau d'érable | C35: =IF(LEN('Détail des projets'!C35)=0,"",'Détail des projets'!C35) -> 9293-8950 Québec inc. | D35: =IF(LEN('Détail des projets'!G35)=0,"",'Détail des projets'!G35) -> 03-Capitale-Nationale | E35: =IF(LEN('Détail des projets'!K35)=0,"",'Détail des projets'!K35) -> 281483.1973 | F35: 163.8440102 | G35: À la fin du projet (suite au dernier versement) | H35: 68.71979856 | I35: QC-Québec | J35: Oui | K35: 20 | L35: 0 | M35: 163.8440102 | N35: Non | O35: Oui | P35: 0 | R35: 0 | T35: 0 | V35: 3.581289841 | X35: 162.9486878 | Z35: 162.9486878 | AB35: 163.396349 | AD35: 162.9486878 | AF35: 162.9486878
B36: =IF(LEN('Détail des projets'!B36)=0,"",'Détail des projets'!B36) -> Production de granules de bois avec séchage à la biomasse forestière résiduelle | C36: =IF(LEN('Détail des projets'!C36)=0,"",'Détail des projets'!C36) -> 9301-9826 Québec inc., (La Granaudière) | D36: =IF(LEN('Détail des projets'!G36)=0,"",'Détail des projets'!G36) -> 14-Lanaudière | E36: =IF(LEN('Détail des projets'!K36)=0,"",'Détail des projets'!K36) -> 1820253.75 | F36: 7536.853911 | G36: À la fin du projet (suite au dernier versement) | H36: 11.50065412 | I36: QC-Québec | J36: Oui | K36: 20 | L36: 0 | M36: 7536.853911 | N36: Non | O36: Oui | P36: 0 | R36: 0 | T36: 0 | V36: 0 | X36: 0 | Z36: 0 | AB36: 0 | AD36: 0 | AF36: 0
B37: =IF(LEN('Détail des projets'!B37)=0,"",'Détail des projets'!B37) -> Migration d'équipements au mazout vers la biomasse forestière résiduelle. | C37: =IF(LEN('Détail des projets'!C37)=0,"",'Détail des projets'!C37) -> 9334-4265 Québec inc. | D37: =IF(LEN('Détail des projets'!G37)=0,"",'Détail des projets'!G37) -> 07-Outaouais | E37: =IF(LEN('Détail des projets'!K37)=0,"",'Détail des projets'!K37) -> 38213.51 | F37: 30.57081155 | G37: À la fin du projet (suite au dernier versement) | H37: 62.49999274 | I37: QC-Québec | J37: Oui | K37: 20 | L37: 0 | M37: 30.57081155 | N37: Non | O37: Oui | P37: 0 | R37: 0 | T37: 0 | V37: 0 | X37: 4.844554836 | Z37: 30.40375794 | AB37: 30.48728474 | AD37: 30.40375794 | AF37: 30.40375794
B38: =IF(LEN('Détail des projets'!B38)=0,"",'Détail des projets'!B38) -> Mise en place d'un projet de chauffage à la biomasse forestière | C38: =IF(LEN('Détail des projets'!C38)=0,"",'Détail des projets'!C38) -> 9337-4247 Québec inc. | D38: =IF(LEN('Détail des projets'!G38)=0,"",'Détail des projets'!G38) -> 17-Centre-du-Québec | E38: =IF(LEN('Détail des projets'!K38)=0,"",'Détail des projets'!K38) -> 440212.35 | F38: 314.8864904 | G38: À la fin du projet (suite au dernier versement) | H38: 62.49999953 | I38: QC-Québec | J38: Oui | K38: 20 | L38: 0 | M38: 314.8864904 | N38: Non | O38: Oui | P38: 0 | R38: 0 | T38: 0 | V38: 0 | X38: 0 | Z38: 0 | AB38: 156.5828996 | AD38: 313.1657992 | AF38: 313.1657992
B39: =IF(LEN('Détail des projets'!B39)=0,"",'Détail des projets'!B39) -> Implantation du système de chauffage à la biomasse | C39: =IF(LEN('Détail des projets'!C39)=0,"",'Détail des projets'!C39) -> 9384-7572 Québec inc. | D39: =IF(LEN('Détail des projets'!G39)=0,"",'Détail des projets'!G39) -> 15-Laurentides | E39: =IF(LEN('Détail des projets'!K39)=0,"",'Détail des projets'!K39) -> 75700 | F39: 55.35950024 | G39: À la fin du projet (suite au dernier versement) | H39: 51.27846147 | I39: QC-Québec | J39: Oui | K39: 20 | L39: 0 | M39: 55.35950024 | N39: Non | O39: Oui | P39: 0 | R39: 0 | T39: 0 | V39: 0 | X39: 0 | Z39: 0 | AB39: 8.167795117 | AD39: 55.05698931 | AF39: 55.05698931
B40: =IF(LEN('Détail des projets'!B40)=0,"",'Détail des projets'!B40) -> Chauffage du 29 Brillant, Matane | C40: =IF(LEN('Détail des projets'!C40)=0,"",'Détail des projets'!C40) -> Acier Bouffard | D40: =IF(LEN('Détail des projets'!G40)=0,"",'Détail des projets'!G40) -> 01-Bas-Saint-Laurent | E40: =IF(LEN('Détail des projets'!K40)=0,"",'Détail des projets'!K40) -> 43874.6385 | F40: 33.42829724 | G40: À la fin du projet (suite au dernier versement) | H40: 62.49999769 | I40: QC-Québec | J40: Oui | K40: 25 | L40: 0 | M40: 33.42829724 | N40: Non | O40: Oui | P40: 0 | R40: 0 | T40: 0 | V40: 0 | X40: 0 | Z40: 0 | AB40: 0 | AD40: 0 | AF40: 0
B41: =IF(LEN('Détail des projets'!B41)=0,"",'Détail des projets'!B41) -> Conversion vers un chauffage aux granules de bois (site St-Bernard) | C41: =IF(LEN('Détail des projets'!C41)=0,"",'Détail des projets'!C41) -> Agri-Oeufs inc. | D41: =IF(LEN('Détail des projets'!G41)=0,"",'Détail des projets'!G41) -> 16-Montérégie | E41: =IF(LEN('Détail des projets'!K41)=0,"",'Détail des projets'!K41) -> 181621.5135 | F41: 138.3782923 | G41: À la fin du projet (suite au dernier versement) | H41: 62.50000169 | I41: QC-Québec | J41: Oui | K41: 20 | L41: 0 | M41: 138.3782923 | N41: Non | O41: Oui | P41: 0 | R41: 0 | T41: 0 | V41: 0 | X41: 0 | Z41: 0 | AB41: 0 | AD41: 0 | AF41: 0
B42: =IF(LEN('Détail des projets'!B42)=0,"",'Détail des projets'!B42) -> Transformation d’un séchoir à grains à la biomasse | C42: =IF(LEN('Détail des projets'!C42)=0,"",'Détail des projets'!C42) -> Agriscar coopérative agricole | D42: =IF(LEN('Détail des projets'!G42)=0,"",'Détail des projets'!G42) -> 01-Bas-Saint-Laurent | E42: =IF(LEN('Détail des projets'!K42)=0,"",'Détail des projets'!K42) -> 266576.29 | F42: 213.2610348 | G42: À la fin du projet (suite au dernier versement) | H42: 62.49999919 | I42: QC-Québec | J42: Oui | K42: 20 | L42: 0 | M42: 213.2610348 | N42: Non | O42: Oui | P42: 0 | R42: 0 | T42: 0 | V42: 0 | X42: 103.1344348 | Z42: 212.0956739 | AB42: 212.6783543 | AD42: 212.0956739 | AF42: 212.0956739
B43: =IF(LEN('Détail des projets'!B43)=0,"",'Détail des projets'!B43) -> Projet de chauffage des serres de Sainte-Irène | C43: =IF(LEN('Détail des projets'!C43)=0,"",'Détail des projets'!C43) -> Alliances Forestières Nemtayé | D43: =IF(LEN('Détail des projets'!G43)=0,"",'Détail des projets'!G43) -> 01-Bas-Saint-Laurent | E43: =IF(LEN('Détail des projets'!K43)=0,"",'Détail des projets'!K43) -> 145162.5 | F43: 168.9317676 | G43: À la fin du projet (suite au dernier versement) | H43: 40.91888754 | I43: QC-Québec | J43: Oui | K43: 20 | L43: 0 | M43: 168.9317676 | N43: Non | O43: Oui | P43: 0 | R43: 0 | T43: 0 | V43: 0 | X43: 0 | Z43: 0 | AB43: 0 | AD43: 0 | AF43: 0
B44: =IF(LEN('Détail des projets'!B44)=0,"",'Détail des projets'!B44) -> Remplacement d'un évaporateur aux granules pour éviter la remise en fonction d'un évaporateur au mazout. | C44: =IF(LEN('Détail des projets'!C44)=0,"",'Détail des projets'!C44) -> Aménagement Forestier BeauFor inc. | D44: =IF(LEN('Détail des projets'!G44)=0,"",'Détail des projets'!G44) -> 01-Bas-Saint-Laurent | E44: =IF(LEN('Détail des projets'!K44)=0,"",'Détail des projets'!K44) -> 21221.45 | F44: 19.89762336 | G44: À la fin du projet (suite au dernier versement) | H44: 53.32659489 | I44: QC-Québec | J44: Oui | K44: 20 | L44: 0 | M44: 19.89762336 | N44: Non | O44: Oui | P44: 0 | R44: 0 | T44: 0 | V44: 0 | X44: 0 | Z44: 0.05436509114 | AB44: 19.84325827 | AD44: 19.78889318 | AF44: 19.78889318
B45: =IF(LEN('Détail des projets'!B45)=0,"",'Détail des projets'!B45) -> Appalaches Nature inc., nouvelle usine à Thetford Mines | C45: =IF(LEN('Détail des projets'!C45)=0,"",'Détail des projets'!C45) -> Appalaches Nature Inc. | D45: =IF(LEN('Détail des projets'!G45)=0,"",'Détail des projets'!G45) -> 12-Chaudière-Appalaches | E45: =IF(LEN('Détail des projets'!K45)=0,"",'Détail des projets'!K45) -> 261288.825 | F45: 288.2013257 | G45: À la fin du projet (suite au dernier versement) | H45: 43.17233784 | I45: QC-Québec | J45: Oui | K45: 25 | L45: 0 | M45: 288.2013257 | N45: Non | O45: Oui | P45: 0 | R45: 0 | T45: 0 | V45: 0 | X45: 0 | Z45: 0 | AB45: 0 | AD45: 0 | AF45: 0
B46: =IF(LEN('Détail des projets'!B46)=0,"",'Détail des projets'!B46) -> Serre de légumes – Efficacité énergétique et conversion à la biomasse forestière résiduelle | C46: =IF(LEN('Détail des projets'!C46)=0,"",'Détail des projets'!C46) -> Auberge Amaryllis inc. | D46: =IF(LEN('Détail des projets'!G46)=0,"",'Détail des projets'!G46) -> 11-Gaspésie--Îles-de-la-Madeleine | E46: =IF(LEN('Détail des projets'!K46)=0,"",'Détail des projets'!K46) -> 53270.14398 | F46: 40.04390794 | G46: À la fin du projet (suite au dernier versement) | H46: 63.34730183 | I46: QC-Québec | J46: Oui | K46: 20 | L46: 0 | M46: 40.04390794 | N46: Non | O46: Oui | P46: 0 | R46: 0 | T46: 0 | V46: 0 | X46: 0 | Z46: 0 | AB46: 0.5470479227 | AD46: 39.82508877 | AF46: 39.82508877
B47: =IF(LEN('Détail des projets'!B47)=0,"",'Détail des projets'!B47) -> Chaufferie à la biomasse et réseau de chaleur - Eau sanitaire, chambres et trottoirs extérieurs | C47: =IF(LEN('Détail des projets'!C47)=0,"",'Détail des projets'!C47) -> Auberge l'Ambassadeur inc. | D47: =IF(LEN('Détail des projets'!G47)=0,"",'Détail des projets'!G47) -> 01-Bas-Saint-Laurent | E47: =IF(LEN('Détail des projets'!K47)=0,"",'Détail des projets'!K47) -> 5625 | F47: 0 | G47: À la fin du projet (suite au dernier versement) | I47: QC-Québec | J47: Oui | K47: 0 | L47: 0 | M47: 0 | N47: Non | O47: Oui
B48: =IF(LEN('Détail des projets'!B48)=0,"",'Détail des projets'!B48) -> Projet de réseau chaleur St-Jacques de Montcalm | C48: =IF(LEN('Détail des projets'!C48)=0,"",'Détail des projets'!C48) -> Bio-Chaleur Solutions | D48: =IF(LEN('Détail des projets'!G48)=0,"",'Détail des projets'!G48) -> 14-Lanaudière | E48: =IF(LEN('Détail des projets'!K48)=0,"",'Détail des projets'!K48) -> 8000 | F48: 0 | G48: À la fin du projet (suite au dernier versement) | I48: QC-Québec | J48: Oui | K48: 0 | L48: 0 | M48: 0 | N48: Non | O48: Oui
B49: =IF(LEN('Détail des projets'!B49)=0,"",'Détail des projets'!B49) -> Intégration d'une centrale de cogénération à la biomasse forestière et utilisation de la vapeur pour le séchage du bois | C49: =IF(LEN('Détail des projets'!C49)=0,"",'Détail des projets'!C49) -> Bioénergie Sacré-Coeur S.E.C. | D49: =IF(LEN('Détail des projets'!G49)=0,"",'Détail des projets'!G49) -> 09-Côte-Nord | E49: =IF(LEN('Détail des projets'!K49)=0,"",'Détail des projets'!K49) -> 10250 | F49: 0 | G49: À la fin du projet (suite au dernier versement) | I49: QC-Québec | J49: Oui | K49: 25 | L49: 0 | M49: 0 | N49: Non | O49: Oui
B50: =IF(LEN('Détail des projets'!B50)=0,"",'Détail des projets'!B50) -> Augmentation de la production chez Bois de Foyer I.G.L. | C50: =IF(LEN('Détail des projets'!C50)=0,"",'Détail des projets'!C50) -> Bois de foyer I.G.L. (2012) | D50: =IF(LEN('Détail des projets'!G50)=0,"",'Détail des projets'!G50) -> 12-Chaudière-Appalaches | E50: =IF(LEN('Détail des projets'!K50)=0,"",'Détail des projets'!K50) -> 981251.25 | F50: 1160.301796 | G50: À la fin du projet (suite au dernier versement) | H50: 40.27077281 | I50: QC-Québec | J50: Oui | K50: 20 | L50: 0 | M50: 1160.301796 | N50: Non | O50: Oui | P50: 0 | R50: 0 | T50: 0 | V50: 0 | X50: 0 | Z50: 0 | AB50: 0 | AD50: 0 | AF50: 0
B51: =IF(LEN('Détail des projets'!B51)=0,"",'Détail des projets'!B51) -> Remplacement de chaufferie vapeur base pression | C51: =IF(LEN('Détail des projets'!C51)=0,"",'Détail des projets'!C51) -> Bois de sciage Lafontaine inc. | D51: =IF(LEN('Détail des projets'!G51)=0,"",'Détail des projets'!G51) -> 12-Chaudière-Appalaches | E51: =IF(LEN('Détail des projets'!K51)=0,"",'Détail des projets'!K51) -> 11000 | F51: 0 | G51: À la fin du projet (suite au dernier versement) | I51: QC-Québec | J51: Oui | L51: 0 | M51: 0 | N51: Non | O51: Oui
B52: =IF(LEN('Détail des projets'!B52)=0,"",'Détail des projets'!B52) -> Remplacement de chaufferie vapeur basse pression | C52: =IF(LEN('Détail des projets'!C52)=0,"",'Détail des projets'!C52) -> Bois de sciage Lafontaine inc. | D52: =IF(LEN('Détail des projets'!G52)=0,"",'Détail des projets'!G52) -> 12-Chaudière-Appalaches | E52: =IF(LEN('Détail des projets'!K52)=0,"",'Détail des projets'!K52) -> 945000 | F52: 7855.730682 | G52: À la fin du projet (suite au dernier versement) | H52: 5.728302283 | I52: QC-Québec | J52: Oui | K52: 25 | L52: 0 | M52: 7855.730682 | N52: Non | O52: Oui | P52: 0 | R52: 0 | T52: 0 | V52: 0 | X52: 0 | Z52: 0 | AB52: 0 | AD52: 0 | AF52: 0
B53: =IF(LEN('Détail des projets'!B53)=0,"",'Détail des projets'!B53) -> Acériculture-Évaporateur à biomasse | C53: =IF(LEN('Détail des projets'!C53)=0,"",'Détail des projets'!C53) -> Cabane à sucre Jacques Grégoire | D53: =IF(LEN('Détail des projets'!G53)=0,"",'Détail des projets'!G53) -> 14-Lanaudière | E53: =IF(LEN('Détail des projets'!K53)=0,"",'Détail des projets'!K53) -> 53299.22 | F53: 40.608928 | G53: À la fin du projet (suite au dernier versement) | H53: 62.5 | I53: QC-Québec | J53: Oui | K53: 20 | L53: 40.608928 | M53: 40.608928 | N53: Non | O53: Oui | P53: 0 | R53: 0 | T53: 0 | V53: 0 | X53: 0 | Z53: 0 | AB53: 0 | AD53: 2.662880524 | AF53: 40.38702129
B54: =IF(LEN('Détail des projets'!B54)=0,"",'Détail des projets'!B54) -> Étude de faisabilité technique pour le chauffage à la biomasse forestière d'un réseau chaleur au parc industriel de SCJC, bâtiments existants et futurs | C54: =IF(LEN('Détail des projets'!C54)=0,"",'Détail des projets'!C54) -> Carbonaxion Bioénergies inc. | D54: =IF(LEN('Détail des projets'!G54)=0,"",'Détail des projets'!G54) -> 03-Capitale-Nationale | E54: =IF(LEN('Détail des projets'!K54)=0,"",'Détail des projets'!K54) -> 18330 | F54: 0 | G54: À la fin du projet (suite au dernier versement) | I54: QC-Québec | J54: Oui | K54: 0 | L54: 0 | M54: 0 | N54: Non | O54: Oui
B55: =IF(LEN('Détail des projets'!B55)=0,"",'Détail des projets'!B55) -> Remplacement d’un système de chauffage au propane par un système à la biomasse forestière | C55: =IF(LEN('Détail des projets'!C55)=0,"",'Détail des projets'!C55) -> Carbonaxion Bioénergies inc. | D55: =IF(LEN('Détail des projets'!G55)=0,"",'Détail des projets'!G55) -> 03-Capitale-Nationale | E55: =IF(LEN('Détail des projets'!K55)=0,"",'Détail des projets'!K55) -> 161503.45 | F55: 129.2027592 | G55: À la fin du projet (suite au dernier versement) | H55: 62.50000041 | I55: QC-Québec | J55: Oui | K55: 0 | L55: 0 | M55: 129.2027592 | N55: Non | O55: Oui | P55: 0 | R55: 0 | T55: 0 | V55: 0 | X55: 0 | Z55: -0.3530130031 | AB55: 0 | AD55: 0 | AF55: 0
B56: =IF(LEN('Détail des projets'!B56)=0,"",'Détail des projets'!B56) -> Conversion au chauffage à la biomasse chez Aviculture KDEM | C56: =IF(LEN('Détail des projets'!C56)=0,"",'Détail des projets'!C56) -> Carbonaxion Bioénergies inc. | D56: =IF(LEN('Détail des projets'!G56)=0,"",'Détail des projets'!G56) -> 03-Capitale-Nationale | E56: =IF(LEN('Détail des projets'!K56)=0,"",'Détail des projets'!K56) -> 21807.975 | F56: 0 | G56: À la fin du projet (suite au dernier versement) | I56: QC-Québec | J56: Oui | L56: 0 | M56: 0 | N56: Non | O56: Oui
B57: =IF(LEN('Détail des projets'!B57)=0,"",'Détail des projets'!B57) -> Réseau de chaleur Baie-Saint-Paul | C57: =IF(LEN('Détail des projets'!C57)=0,"",'Détail des projets'!C57) -> Centre de gestion du complexe PFM | D57: =IF(LEN('Détail des projets'!G57)=0,"",'Détail des projets'!G57) -> 03-Capitale-Nationale | E57: =IF(LEN('Détail des projets'!K57)=0,"",'Détail des projets'!K57) -> 461931.89 | F57: 351.9481043 | G57: À la fin du projet (suite au dernier versement) | H57: 62.49999995 | I57: QC-Québec | J57: Oui | K57: 20 | L57: 0 | M57: 351.9481043 | N57: Non | O57: Oui | P57: 0 | R57: 0 | T57: 0 | V57: 0 | X57: 0 | Z57: 0 | AB57: 0 | AD57: 0 | AF57: 0
B58: =IF(LEN('Détail des projets'!B58)=0,"",'Détail des projets'!B58) -> Implantation d'une chaufferie à la biomasse forestière résiduelle au CSSS des Etchemins | C58: =IF(LEN('Détail des projets'!C58)=0,"",'Détail des projets'!C58) -> Centre de santé et des services sociaux des Etchemins | D58: =IF(LEN('Détail des projets'!G58)=0,"",'Détail des projets'!G58) -> 12-Chaudière-Appalaches | E58: =IF(LEN('Détail des projets'!K58)=0,"",'Détail des projets'!K58) -> 1095321.58 | F58: 1664.551226 | G58: À la fin du projet (suite au dernier versement) | H58: 32.90140799 | I58: QC-Québec | J58: Oui | K58: 25 | L58: 0 | M58: 1664.551226 | N58: Non | O58: Oui | P58: 0 | R58: 0 | T58: 159.1783959 | V58: 1655.455317 | X58: 1655.455317 | Z58: 1655.455317 | AB58: 1660.003271 | AD58: 1655.455317 | AF58: 1655.455317
B59: =IF(LEN('Détail des projets'!B59)=0,"",'Détail des projets'!B59) -> École secondaire Louis-Joseph-Papineau | C59: =IF(LEN('Détail des projets'!C59)=0,"",'Détail des projets'!C59) -> Centre de services scolaire au Coeur-des-Vallées | D59: =IF(LEN('Détail des projets'!G59)=0,"",'Détail des projets'!G59) -> 07-Outaouais | E59: =IF(LEN('Détail des projets'!K59)=0,"",'Détail des projets'!K59) -> 595922.7 | F59: 464.7008502 | G59: À la fin du projet (suite au dernier versement) | H59: 64.11895951 | I59: QC-Québec | J59: Oui | K59: 25 | L59: 0 | M59: 464.7008502 | N59: Non | O59: Oui | P59: 0 | R59: 0 | T59: 0 | V59: 0 | X59: 0 | Z59: 0 | AB59: 463.4311758 | AD59: 462.1615013 | AF59: 462.1615013
B60: =IF(LEN('Détail des projets'!B60)=0,"",'Détail des projets'!B60) -> Étude de faisabilité en vue de l'implantation de chaudières à la biomasse forestière résiduelle à l'École forestière et de technologie du bois de Duchesnay | C60: =IF(LEN('Détail des projets'!C60)=0,"",'Détail des projets'!C60) -> Centre de services scolaire de la Capitale | D60: =IF(LEN('Détail des projets'!G60)=0,"",'Détail des projets'!G60) -> 03-Capitale-Nationale | E60: =IF(LEN('Détail des projets'!K60)=0,"",'Détail des projets'!K60) -> 13250 | F60: 0 | G60: À la fin du projet (suite au dernier versement) | I60: QC-Québec | J60: Oui | K60: 0 | L60: 0 | M60: 0 | N60: Non | O60: Oui
B61: =IF(LEN('Détail des projets'!B61)=0,"",'Détail des projets'!B61) -> Chauffage à la biomasse forestière résiduelle de l'hôpital de la ville de Mont-Laurier | C61: =IF(LEN('Détail des projets'!C61)=0,"",'Détail des projets'!C61) -> Centre intégré de santé et des services sociaux des Laurentides | D61: =IF(LEN('Détail des projets'!G61)=0,"",'Détail des projets'!G61) -> 15-Laurentides | E61: =IF(LEN('Détail des projets'!K61)=0,"",'Détail des projets'!K61) -> 10775 | F61: 0 | G61: À la fin du projet (suite au dernier versement) | I61: QC-Québec | J61: Oui | L61: 0 | M61: 0 | N61: Non | O61: Oui
B62: =IF(LEN('Détail des projets'!B62)=0,"",'Détail des projets'!B62) -> Acériculture-Évaporateur à la biomasse | C62: =IF(LEN('Détail des projets'!C62)=0,"",'Détail des projets'!C62) -> Chalet des Érables | D62: =IF(LEN('Détail des projets'!G62)=0,"",'Détail des projets'!G62) -> 05-Estrie | E62: =IF(LEN('Détail des projets'!K62)=0,"",'Détail des projets'!K62) -> 10706.5245 | F62: 8.157351589 | G62: À la fin du projet (suite au dernier versement) | H62: 62.50000315 | I62: QC-Québec | J62: Oui | K62: 20 | L62: 8.157351589 | M62: 8.157351589 | N62: Non | O62: Oui | P62: 0 | R62: 0 | T62: 0 | V62: 0 | X62: 0 | Z62: 0 | AB62: 0 | AD62: 3.343176881 | AF62: 8.112775897
B63: =IF(LEN('Détail des projets'!B63)=0,"",'Détail des projets'!B63) -> Centre d’Expertise et de Formation – Conversion à la biomasse forestière résiduelle | C63: =IF(LEN('Détail des projets'!C63)=0,"",'Détail des projets'!C63) -> Chambre de commerce secteur ouest de Portneuf | D63: =IF(LEN('Détail des projets'!G63)=0,"",'Détail des projets'!G63) -> 03-Capitale-Nationale | E63: =IF(LEN('Détail des projets'!K63)=0,"",'Détail des projets'!K63) -> 244968.49 | F63: 186.6426545 | G63: À la fin du projet (suite au dernier versement) | H63: 62.50000051 | I63: QC-Québec | J63: Oui | K63: 25 | L63: 0 | M63: 186.6426545 | N63: Non | O63: Oui | P63: 0 | R63: 0 | T63: 0 | V63: 0 | X63: 0 | Z63: 0 | AB63: 0 | AD63: 0 | AF63: 0
B64: =IF(LEN('Détail des projets'!B64)=0,"",'Détail des projets'!B64) -> Conversion du système au mazout actuel à un système à la biomasse forestière résiduelle | C64: =IF(LEN('Détail des projets'!C64)=0,"",'Détail des projets'!C64) -> CISSS du Bas-Saint-Laurent - Hôpital Notre-Dame-de-Fatima | D64: =IF(LEN('Détail des projets'!G64)=0,"",'Détail des projets'!G64) -> 01-Bas-Saint-Laurent | E64: =IF(LEN('Détail des projets'!K64)=0,"",'Détail des projets'!K64) -> 997191.6939 | F64: 1431.737142 | G64: À la fin du projet (suite au dernier versement) | H64: 34.824538 | I64: QC-Québec | J64: Oui | K64: 20 | L64: 0 | M64: 1431.737142 | N64: Non | O64: Oui | P64: 0 | R64: 0 | T64: 1134.436533 | V64: 1423.913441 | X64: 1423.913441 | Z64: 1423.913441 | AB64: 1427.825292 | AD64: 1423.913441 | AF64: 1423.913441
B65: =IF(LEN('Détail des projets'!B65)=0,"",'Détail des projets'!B65) -> Analyse énergétique à l'École forestière La Tuque | C65: =IF(LEN('Détail des projets'!C65)=0,"",'Détail des projets'!C65) -> Coopérative forestière du Haut Saint-Maurice | D65: =IF(LEN('Détail des projets'!G65)=0,"",'Détail des projets'!G65) -> 04-Mauricie | E65: =IF(LEN('Détail des projets'!K65)=0,"",'Détail des projets'!K65) -> 11357.5 | F65: 0 | G65: À la fin du projet (suite au dernier versement) | I65: QC-Québec | J65: Oui | K65: 25 | L65: 0 | M65: 0 | N65: Non | O65: Oui
B66: =IF(LEN('Détail des projets'!B66)=0,"",'Détail des projets'!B66) -> Réseau chaleur Sainte-Paule | C66: =IF(LEN('Détail des projets'!C66)=0,"",'Détail des projets'!C66) -> Corporation de développement de Sainte-Paule | D66: =IF(LEN('Détail des projets'!G66)=0,"",'Détail des projets'!G66) -> 01-Bas-Saint-Laurent | E66: =IF(LEN('Détail des projets'!K66)=0,"",'Détail des projets'!K66) -> 11250 | F66: 0 | G66: À la fin du projet (suite au dernier versement) | I66: QC-Québec | J66: Oui | K66: 30 | L66: 0 | M66: 0 | N66: Non | O66: Oui
B67: =IF(LEN('Détail des projets'!B67)=0,"",'Détail des projets'!B67) -> Acériculture-Évaporateur à biomasse | C67: =IF(LEN('Détail des projets'!C67)=0,"",'Détail des projets'!C67) -> Daisy Dumas | D67: =IF(LEN('Détail des projets'!G67)=0,"",'Détail des projets'!G67) -> 12-Chaudière-Appalaches | E67: =IF(LEN('Détail des projets'!K67)=0,"",'Détail des projets'!K67) -> 4856.16 | F67: 3.699924551 | G67: À la fin du projet (suite au dernier versement) | H67: 62.50005826 | I67: QC-Québec | J67: Oui | K67: 20 | L67: 3.699924551 | M67: 3.699924551 | N67: Non | O67: Oui | P67: 0 | R67: 0 | T67: 0 | V67: 0 | X67: 0 | Z67: 0 | AB67: 0 | AD67: 1.2231991 | AF67: 3.679706384
B68: =IF(LEN('Détail des projets'!B68)=0,"",'Détail des projets'!B68) -> Conversion à la biomasse des installations de séchage de fibre et de chauffage des installations | C68: =IF(LEN('Détail des projets'!C68)=0,"",'Détail des projets'!C68) -> Damabois inc. | D68: =IF(LEN('Détail des projets'!G68)=0,"",'Détail des projets'!G68) -> 01-Bas-Saint-Laurent | E68: =IF(LEN('Détail des projets'!K68)=0,"",'Détail des projets'!K68) -> 644505 | F68: 530.9286393 | G68: À la fin du projet (suite au dernier versement) | H68: 60.69601 | I68: QC-Québec | J68: Oui | K68: 20 | L68: 0 | M68: 530.9286393 | N68: Non | O68: Oui | P68: 0 | R68: 0 | T68: 0 | V68: 0 | X68: 281.4211913 | Z68: 528.0273899 | AB68: 529.4780146 | AD68: 528.0273899 | AF68: 528.0273899
B69: =IF(LEN('Détail des projets'!B69)=0,"",'Détail des projets'!B69) -> Projet Biomasse - Usine de pâtes alimentaires | C69: =IF(LEN('Détail des projets'!C69)=0,"",'Détail des projets'!C69) -> Décorticage JPL inc. | D69: =IF(LEN('Détail des projets'!G69)=0,"",'Détail des projets'!G69) -> 04-Mauricie | E69: =IF(LEN('Détail des projets'!K69)=0,"",'Détail des projets'!K69) -> 327458.68 | F69: 0 | G69: À la fin du projet (suite au dernier versement) | I69: QC-Québec | J69: Oui | K69: 20 | L69: 0 | M69: 0 | N69: Non | O69: Oui | P69: 0 | R69: 0 | T69: 0 | V69: 0 | X69: 0 | Z69: 0 | AB69: 0 | AD69: 0 | AF69: 0
B70: =IF(LEN('Détail des projets'!B70)=0,"",'Détail des projets'!B70) -> M12-32 Ébénisterie de la chaudière inc. | C70: =IF(LEN('Détail des projets'!C70)=0,"",'Détail des projets'!C70) -> Ébénisterie de la Chaudière inc. | D70: =IF(LEN('Détail des projets'!G70)=0,"",'Détail des projets'!G70) -> 12-Chaudière-Appalaches | E70: =IF(LEN('Détail des projets'!K70)=0,"",'Détail des projets'!K70) -> 51733.56083 | F70: 75.45188752 | G70: À la fin du projet (suite au dernier versement) | H70: 34.28248232 | I70: QC-Québec | J70: Oui | K70: 20 | L70: 0 | M70: 75.45188752 | N70: Non | O70: Oui | P70: 0 | R70: 0 | T70: 24.94447647 | V70: 75.03958212 | X70: 75.03958212 | Z70: 75.03958212 | AB70: 75.24573482 | AD70: 75.03958212 | AF70: 75.03958212
B71: =IF(LEN('Détail des projets'!B71)=0,"",'Détail des projets'!B71) -> Chauffage à la biomasse à la mine Éléonore - Approvisionnement | C71: =IF(LEN('Détail des projets'!C71)=0,"",'Détail des projets'!C71) -> EEYOU Bio énergie inc. | D71: =IF(LEN('Détail des projets'!G71)=0,"",'Détail des projets'!G71) -> 08-Abitibi-Témiscamingue | E71: =IF(LEN('Détail des projets'!K71)=0,"",'Détail des projets'!K71) -> 25000 | F71: 0 | G71: À la fin du projet (suite au dernier versement) | I71: QC-Québec | J71: Oui | K71: 0 | L71: 0 | M71: 0 | N71: Non | O71: Oui
B72: =IF(LEN('Détail des projets'!B72)=0,"",'Détail des projets'!B72) -> Chauffage à la biomasse à la mine Éléonore - Faisabilité | C72: =IF(LEN('Détail des projets'!C72)=0,"",'Détail des projets'!C72) -> EEYOU Bio énergie inc. | D72: =IF(LEN('Détail des projets'!G72)=0,"",'Détail des projets'!G72) -> 08-Abitibi-Témiscamingue | E72: =IF(LEN('Détail des projets'!K72)=0,"",'Détail des projets'!K72) -> 25000 | F72: 0 | G72: À la fin du projet (suite au dernier versement) | I72: QC-Québec | J72: Oui | K72: 0 | L72: 0 | M72: 0 | N72: Non | O72: Oui
B73: =IF(LEN('Détail des projets'!B73)=0,"",'Détail des projets'!B73) -> Chaufferie biomasse à l'usine Natrel, Amqui | C73: =IF(LEN('Détail des projets'!C73)=0,"",'Détail des projets'!C73) -> Énergie CFM inc. | D73: =IF(LEN('Détail des projets'!G73)=0,"",'Détail des projets'!G73) -> 04-Mauricie | E73: =IF(LEN('Détail des projets'!K73)=0,"",'Détail des projets'!K73) -> 12950 | F73: 0 | G73: À la fin du projet (suite au dernier versement) | I73: QC-Québec | J73: Oui | K73: 0 | L73: 0 | M73: 0 | N73: Non | O73: Oui
B74: =IF(LEN('Détail des projets'!B74)=0,"",'Détail des projets'!B74) -> Les Volailles S.B. inc. | C74: =IF(LEN('Détail des projets'!C74)=0,"",'Détail des projets'!C74) -> Énergies Sonic | D74: =IF(LEN('Détail des projets'!G74)=0,"",'Détail des projets'!G74) -> 16-Montérégie | E74: =IF(LEN('Détail des projets'!K74)=0,"",'Détail des projets'!K74) -> 7462.5 | F74: 0 | G74: À la fin du projet (suite au dernier versement) | I74: QC-Québec | J74: Oui | K74: 20 | L74: 0 | M74: 0 | N74: Non | O74: Oui
B75: =IF(LEN('Détail des projets'!B75)=0,"",'Détail des projets'!B75) -> GES - Évaporateurs - Érablière BFLD inc. | C75: =IF(LEN('Détail des projets'!C75)=0,"",'Détail des projets'!C75) -> Érablière BFLD inc. | D75: =IF(LEN('Détail des projets'!G75)=0,"",'Détail des projets'!G75) -> 05-Estrie | E75: =IF(LEN('Détail des projets'!K75)=0,"",'Détail des projets'!K75) -> 92669.04 | F75: 74.2383059 | G75: À la fin du projet (suite au dernier versement) | H75: 62.41321706 | I75: QC-Québec | J75: Oui | K75: 20 | L75: 0 | M75: 74.2383059 | N75: Non | O75: Oui | P75: 0 | R75: 0 | T75: 9.533334364 | V75: 73.8326321 | X75: 73.8326321 | Z75: 73.8326321 | AB75: 74.035469 | AD75: 73.8326321 | AF75: 73.8326321
B76: =IF(LEN('Détail des projets'!B76)=0,"",'Détail des projets'!B76) -> Acériculture-Évaporateur aux granules | C76: =IF(LEN('Détail des projets'!C76)=0,"",'Détail des projets'!C76) -> Érablière D.S. Gagnon inc. | D76: =IF(LEN('Détail des projets'!G76)=0,"",'Détail des projets'!G76) -> 12-Chaudière-Appalaches | E76: =IF(LEN('Détail des projets'!K76)=0,"",'Détail des projets'!K76) -> 46169.86 | F76: 36.93588662 | G76: À la fin du projet (suite au dernier versement) | H76: 62.50000233 | I76: QC-Québec | J76: Oui | K76: 20 | L76: 36.93588662 | M76: 36.93588662 | N76: Non | O76: Oui | P76: 0 | R76: 0 | T76: 0 | V76: 0 | X76: 0 | Z76: 0 | AB76: 6.761487442 | AD76: 36.73405118 | AF76: 36.73405118
B77: =IF(LEN('Détail des projets'!B77)=0,"",'Détail des projets'!B77) -> Économie de GES Érablière Rivière Noire | C77: =IF(LEN('Détail des projets'!C77)=0,"",'Détail des projets'!C77) -> Érablière de la rivière Noire inc. | D77: =IF(LEN('Détail des projets'!G77)=0,"",'Détail des projets'!G77) -> 01-Bas-Saint-Laurent | E77: =IF(LEN('Détail des projets'!K77)=0,"",'Détail des projets'!K77) -> 117674.26 | F77: 173.2108654 | G77: À la fin du projet (suite au dernier versement) | H77: 33.91076529 | I77: QC-Québec | J77: Oui | K77: 15 | L77: 0 | M77: 173.2108654 | N77: Non | O77: Oui | P77: 0 | R77: 0 | T77: 0 | V77: 0 | X77: 0 | Z77: 14.19761191 | AB77: 172.7376116 | AD77: 172.2643579 | AF77: 172.2643579
B78: =IF(LEN('Détail des projets'!B78)=0,"",'Détail des projets'!B78) -> Remplacement de l'évaporateur à l'huile par un équipement neuf CDL utilisant le granule | C78: =IF(LEN('Détail des projets'!C78)=0,"",'Détail des projets'!C78) -> Érablière du Reeke Brook (2011) inc. inc. | D78: =IF(LEN('Détail des projets'!G78)=0,"",'Détail des projets'!G78) -> 01-Bas-Saint-Laurent | E78: =IF(LEN('Détail des projets'!K78)=0,"",'Détail des projets'!K78) -> 52259.91 | F78: 50.43649981 | G78: À la fin du projet (suite au dernier versement) | H78: 51.80762959 | I78: QC-Québec | J78: Oui | K78: 20 | L78: 0 | M78: 50.43649981 | N78: Non | O78: Oui | P78: 0.4134139329 | R78: 50.16089052 | T78: 50.29869517 | V78: 50.16089052 | X78: 50.16089052 | Z78: 50.16089052 | AB78: 50.29869517 | AD78: 50.16089052 | AF78: 50.16089052
B79: =IF(LEN('Détail des projets'!B79)=0,"",'Détail des projets'!B79) -> Acériculture-Évaporateur à biomasse | C79: =IF(LEN('Détail des projets'!C79)=0,"",'Détail des projets'!C79) -> Érablière du Soleil levant inc. | D79: =IF(LEN('Détail des projets'!G79)=0,"",'Détail des projets'!G79) -> 01-Bas-Saint-Laurent | E79: =IF(LEN('Détail des projets'!K79)=0,"",'Détail des projets'!K79) -> 75816.25 | F79: 57.76475833 | G79: À la fin du projet (suite au dernier versement) | H79: 62.50000181 | I79: QC-Québec | J79: Oui | K79: 20 | L79: 57.76475833 | M79: 57.76475833 | N79: Non | O79: Oui | P79: 0 | R79: 0 | T79: 0 | V79: 0 | X79: 0 | Z79: 0 | AB79: 4.734816257 | AD79: 57.44910391 | AF79: 57.44910391
B80: =IF(LEN('Détail des projets'!B80)=0,"",'Détail des projets'!B80) -> Économie des GES biomasse Érablière du Village | C80: =IF(LEN('Détail des projets'!C80)=0,"",'Détail des projets'!C80) -> Érablière du Village S.E.N.C | D80: =IF(LEN('Détail des projets'!G80)=0,"",'Détail des projets'!G80) -> 17-Centre-du-Québec | E80: =IF(LEN('Détail des projets'!K80)=0,"",'Détail des projets'!K80) -> 18300.6285 | F80: 13.943337 | G80: À la fin du projet (suite au dernier versement) | H80: 62.49999553 | I80: QC-Québec | J80: Oui | K80: 20 | L80: 0 | M80: 13.943337 | N80: Non | O80: Oui | P80: 0 | R80: 0 | T80: 0 | V80: 0 | X80: 0 | Z80: 0 | AB80: 5.828772023 | AD80: 13.8671439 | AF80: 13.8671439
B81: =IF(LEN('Détail des projets'!B81)=0,"",'Détail des projets'!B81) -> GES-Évaporateur-Érablière G.M.D. Roy | C81: =IF(LEN('Détail des projets'!C81)=0,"",'Détail des projets'!C81) -> Érablière G.M.D. Roy inc. | D81: =IF(LEN('Détail des projets'!G81)=0,"",'Détail des projets'!G81) -> 05-Estrie | E81: =IF(LEN('Détail des projets'!K81)=0,"",'Détail des projets'!K81) -> 42416.79 | F81: 34.01811897 | G81: À la fin du projet (suite au dernier versement) | H81: 62.34440834 | I81: QC-Québec | J81: Oui | K81: 15 | L81: 0 | M81: 34.01811897 | N81: Non | O81: Oui | P81: 0 | R81: 3.90371857 | T81: 33.92517329 | V81: 33.83222761 | X81: 33.83222761 | Z81: 33.83222761 | AB81: 33.92517329 | AD81: 33.83222761 | AF81: 33.83222761
B82: =IF(LEN('Détail des projets'!B82)=0,"",'Détail des projets'!B82) -> GES - Érablière Jason Fecteau | C82: =IF(LEN('Détail des projets'!C82)=0,"",'Détail des projets'!C82) -> Érablière J.M. Fecteau | D82: =IF(LEN('Détail des projets'!G82)=0,"",'Détail des projets'!G82) -> 05-Estrie | E82: =IF(LEN('Détail des projets'!K82)=0,"",'Détail des projets'!K82) -> 16402.55166 | F82: 13.12204132 | G82: À la fin du projet (suite au dernier versement) | H82: 62.49999369 | I82: QC-Québec | J82: Oui | K82: 15 | L82: 0 | M82: 13.12204132 | N82: Non | O82: Oui | P82: 0 | R82: 0 | T82: 13.08618875 | V82: 13.05033618 | X82: 13.05033618 | Z82: 13.05033618 | AB82: 13.08618875 | AD82: 13.05033618 | AF82: 13.05033618
B83: =IF(LEN('Détail des projets'!B83)=0,"",'Détail des projets'!B83) -> Conversion des évaporateurs au mazout léger vers la biomasse résiduelle | C83: =IF(LEN('Détail des projets'!C83)=0,"",'Détail des projets'!C83) -> Érablière Jacques Bourdeau inc. | D83: =IF(LEN('Détail des projets'!G83)=0,"",'Détail des projets'!G83) -> 16-Montérégie | E83: =IF(LEN('Détail des projets'!K83)=0,"",'Détail des projets'!K83) -> 100369.21 | F83: 81.09685134 | G83: À la fin du projet (suite au dernier versement) | H83: 61.88231006 | I83: QC-Québec | J83: Oui | K83: 25 | L83: 0 | M83: 81.09685134 | N83: Non | O83: Oui | P83: 0 | R83: 0 | T83: 0.2215760966 | V83: 80.65369915 | X83: 80.65369915 | Z83: 80.65369915 | AB83: 80.87527525 | AD83: 80.65369915 | AF83: 80.65369915
B84: =IF(LEN('Détail des projets'!B84)=0,"",'Détail des projets'!B84) -> Remplacement de l’évaporateur actuel par un équipement utilisant le granule chez Érablière L.R.T. Inc. | C84: =IF(LEN('Détail des projets'!C84)=0,"",'Détail des projets'!C84) -> Érablière L.R.T. | D84: =IF(LEN('Détail des projets'!G84)=0,"",'Détail des projets'!G84) -> 01-Bas-Saint-Laurent | E84: =IF(LEN('Détail des projets'!K84)=0,"",'Détail des projets'!K84) -> 69322.31 | F84: 66.7278766 | G84: À la fin du projet (suite au dernier versement) | H84: 49.4705162 | I84: QC-Québec | J84: Oui | K84: 20 | L84: 0 | M84: 66.7278766 | N84: Non | O84: Oui | P84: 0 | R84: 0 | T84: 0 | V84: 0 | X84: 0 | Z84: 0 | AB84: 9.662779945 | AD84: 66.36324339 | AF84: 66.36324339
B85: =IF(LEN('Détail des projets'!B85)=0,"",'Détail des projets'!B85) -> Remplacement d’un évaporateur à l’huile contre deux évaporateurs utilisant le granule | C85: =IF(LEN('Détail des projets'!C85)=0,"",'Détail des projets'!C85) -> Érablière la Coulée creuse inc. | D85: =IF(LEN('Détail des projets'!G85)=0,"",'Détail des projets'!G85) -> 01-Bas-Saint-Laurent | E85: =IF(LEN('Détail des projets'!K85)=0,"",'Détail des projets'!K85) -> 118101.07 | F85: 41.1221408 | G85: À la fin du projet (suite au dernier versement) | H85: 143.5979106 | I85: QC-Québec | J85: Oui | K85: 20 | L85: 0 | M85: 41.1221408 | N85: Non | O85: Oui | P85: 0 | R85: 0 | T85: 0 | V85: 0 | X85: 0 | Z85: 39.21209601 | AB85: 41.00978522 | AD85: 40.89742965 | AF85: 40.89742965
B86: =IF(LEN('Détail des projets'!B86)=0,"",'Détail des projets'!B86) -> Acériculture-Évaporateur à biomasse | C86: =IF(LEN('Détail des projets'!C86)=0,"",'Détail des projets'!C86) -> Érablière la Coulée creuse inc. | D86: =IF(LEN('Détail des projets'!G86)=0,"",'Détail des projets'!G86) -> 01-Bas-Saint-Laurent | E86: =IF(LEN('Détail des projets'!K86)=0,"",'Détail des projets'!K86) -> 84006.39 | F86: 67.20510809 | G86: À la fin du projet (suite au dernier versement) | H86: 62.50000363 | I86: QC-Québec | J86: Oui | K86: 20 | L86: 67.20510809 | M86: 67.20510809 | N86: Non | O86: Oui | P86: 0 | R86: 0 | T86: 0 | V86: 0 | X86: 0 | Z86: 0 | AB86: 0 | AD86: 62.98183627 | AF86: 66.83786707
B87: =IF(LEN('Détail des projets'!B87)=0,"",'Détail des projets'!B87) -> Remplacement de l'évaporateur à l'huile pour un équipement aux Granules | C87: =IF(LEN('Détail des projets'!C87)=0,"",'Détail des projets'!C87) -> Érablière La Goudrelle | D87: =IF(LEN('Détail des projets'!G87)=0,"",'Détail des projets'!G87) -> 01-Bas-Saint-Laurent | E87: =IF(LEN('Détail des projets'!K87)=0,"",'Détail des projets'!K87) -> 38684 | F87: 51.04633211 | G87: À la fin du projet (suite au dernier versement) | H87: 30.23191748 | I87: QC-Québec | J87: Oui | K87: 20 | L87: 0 | M87: 51.04633211 | N87: Non | O87: Oui | P87: 1.53417938 | R87: 50.7673904 | T87: 50.90686125 | V87: 50.7673904 | X87: 50.7673904 | Z87: 50.7673904 | AB87: 50.90686125 | AD87: 50.7673904 | AF87: 50.7673904
B88: =IF(LEN('Détail des projets'!B88)=0,"",'Détail des projets'!B88) -> Acériculture-Évaporateur aux granules | C88: =IF(LEN('Détail des projets'!C88)=0,"",'Détail des projets'!C88) -> Erablière LMK inc. | D88: =IF(LEN('Détail des projets'!G88)=0,"",'Détail des projets'!G88) -> 17-Centre-du-Québec | E88: =IF(LEN('Détail des projets'!K88)=0,"",'Détail des projets'!K88) -> 60177.27 | F88: 45.84935287 | G88: À la fin du projet (suite au dernier versement) | H88: 62.49999881 | I88: QC-Québec | J88: Oui | K88: 20 | L88: 45.84935287 | M88: 45.84935287 | N88: Non | O88: Oui | P88: 0 | R88: 0 | T88: 0 | V88: 0 | X88: 0 | Z88: 0 | AB88: 0 | AD88: 7.015201532 | AF88: 45.59880996
B89: =IF(LEN('Détail des projets'!B89)=0,"",'Détail des projets'!B89) -> Élimination de l'huile - Érablière LMK inc. | C89: =IF(LEN('Détail des projets'!C89)=0,"",'Détail des projets'!C89) -> Érablière LMK inc. | D89: =IF(LEN('Détail des projets'!G89)=0,"",'Détail des projets'!G89) -> 17-Centre-du-Québec | E89: =IF(LEN('Détail des projets'!K89)=0,"",'Détail des projets'!K89) -> 48610.1039 | F89: 38.88779584 | G89: À la fin du projet (suite au dernier versement) | H89: 62.50046172 | I89: QC-Québec | J89: Oui | K89: 20 | L89: 0 | M89: 38.88779584 | N89: Non | O89: Oui | P89: 0 | R89: 0 | T89: 0 | V89: 0 | X89: 4.35628314 | Z89: 38.67529422 | AB89: 38.78154503 | AD89: 38.67529422 | AF89: 38.67529422
B90: =IF(LEN('Détail des projets'!B90)=0,"",'Détail des projets'!B90) -> Remplacement d’un évaporateur fonctionnant au mazout par un évaporateur fonctionnant au bois | C90: =IF(LEN('Détail des projets'!C90)=0,"",'Détail des projets'!C90) -> Érablière l'Or des Monts inc. | D90: =IF(LEN('Détail des projets'!G90)=0,"",'Détail des projets'!G90) -> 05-Estrie | E90: =IF(LEN('Détail des projets'!K90)=0,"",'Détail des projets'!K90) -> 107380.82 | F90: 90.04480725 | G90: À la fin du projet (suite au dernier versement) | H90: 59.62632565 | I90: QC-Québec | J90: Oui | K90: 20 | L90: 0 | M90: 90.04480725 | N90: Non | O90: Oui | P90: 0 | R90: 0 | T90: 0 | V90: 48.71276458 | X90: 89.55275912 | Z90: 89.55275912 | AB90: 89.79878318 | AD90: 89.55275912 | AF90: 89.55275912
B91: =IF(LEN('Détail des projets'!B91)=0,"",'Détail des projets'!B91) -> Remplacement d'un évaporateur au mazout par un évaporateur à la biomasse forestière résiduelle | C91: =IF(LEN('Détail des projets'!C91)=0,"",'Détail des projets'!C91) -> Érablière Luc et Mickael Breton S.E.N.C. | D91: =IF(LEN('Détail des projets'!G91)=0,"",'Détail des projets'!G91) -> 17-Centre-du-Québec | E91: =IF(LEN('Détail des projets'!K91)=0,"",'Détail des projets'!K91) -> 20762.82 | F91: 21.024429 | G91: À la fin du projet (suite au dernier versement) | H91: 49.37784518 | I91: QC-Québec | J91: Oui | K91: 20 | L91: 0 | M91: 21.024429 | N91: Non | O91: Oui | P91: 0 | R91: 0 | T91: 0.9765445163 | V91: 20.90954141 | X91: 20.90954141 | Z91: 20.90954141 | AB91: 20.9669852 | AD91: 20.90954141 | AF91: 20.90954141
B92: =IF(LEN('Détail des projets'!B92)=0,"",'Détail des projets'!B92) -> Acériculture-Évaporateur à biomasse | C92: =IF(LEN('Détail des projets'!C92)=0,"",'Détail des projets'!C92) -> Érablière Marcel Rancourt Inc. | D92: =IF(LEN('Détail des projets'!G92)=0,"",'Détail des projets'!G92) -> 12-Chaudière-Appalaches | E92: =IF(LEN('Détail des projets'!K92)=0,"",'Détail des projets'!K92) -> 36152.28 | F92: 27.70909062 | G92: À la fin du projet (suite au dernier versement) | H92: 62.49999409 | I92: QC-Québec | J92: Oui | K92: 20 | L92: 27.70909062 | M92: 27.70909062 | N92: Non | O92: Oui | P92: 0 | R92: 0 | T92: 0 | V92: 0 | X92: 0 | Z92: 0 | AB92: 0 | AD92: 13.32459003 | AF92: 27.55767483
B93: =IF(LEN('Détail des projets'!B93)=0,"",'Détail des projets'!B93) -> GES - Évaporateur - Érablière Marcel Vien | C93: =IF(LEN('Détail des projets'!C93)=0,"",'Détail des projets'!C93) -> Érablière Marcel Vien enrg | D93: =IF(LEN('Détail des projets'!G93)=0,"",'Détail des projets'!G93) -> 12-Chaudière-Appalaches | E93: =IF(LEN('Détail des projets'!K93)=0,"",'Détail des projets'!K93) -> 58600.81 | F93: 73.14039469 | G93: À la fin du projet (suite au dernier versement) | H93: 40.06049383 | I93: QC-Québec | J93: Oui | K93: 15 | L93: 0 | M93: 73.14039469 | N93: Non | O93: Oui | P93: 0 | R93: 0 | T93: 5.995114319 | V93: 72.74072041 | X93: 72.74072041 | Z93: 72.74072041 | AB93: 72.94055755 | AD93: 72.74072041 | AF93: 72.74072041
B94: =IF(LEN('Détail des projets'!B94)=0,"",'Détail des projets'!B94) -> GES - Évaporateur - Érablière Martin Caron | C94: =IF(LEN('Détail des projets'!C94)=0,"",'Détail des projets'!C94) -> Érablière Martin Caron inc. | D94: =IF(LEN('Détail des projets'!G94)=0,"",'Détail des projets'!G94) -> 12-Chaudière-Appalaches | E94: =IF(LEN('Détail des projets'!K94)=0,"",'Détail des projets'!K94) -> 57715.33 | F94: 46.17226739 | G94: À la fin du projet (suite au dernier versement) | H94: 62.49999541 | I94: QC-Québec | J94: Oui | K94: 15 | L94: 0 | M94: 46.17226739 | N94: Non | O94: Oui | P94: 0 | R94: 0 | T94: 4.415380762 | V94: 45.91995992 | X94: 45.91995992 | Z94: 45.91995992 | AB94: 46.04611366 | AD94: 45.91995992 | AF94: 45.91995992
B95: =IF(LEN('Détail des projets'!B95)=0,"",'Détail des projets'!B95) -> Économie de GES Érablière Moreau inc. | C95: =IF(LEN('Détail des projets'!C95)=0,"",'Détail des projets'!C95) -> Érablière Moreau inc. | D95: =IF(LEN('Détail des projets'!G95)=0,"",'Détail des projets'!G95) -> 17-Centre-du-Québec | E95: =IF(LEN('Détail des projets'!K95)=0,"",'Détail des projets'!K95) -> 30850 | F95: 28.0746323 | G95: À la fin du projet (suite au dernier versement) | H95: 54.94283891 | I95: QC-Québec | J95: Oui | K95: 15 | L95: 0 | M95: 28.0746323 | N95: Non | O95: Oui | P95: 0 | R95: 0 | T95: 0 | V95: 0 | X95: 0 | Z95: 4.448985447 | AB95: 27.99792566 | AD95: 27.92121901 | AF95: 27.92121901
B96: =IF(LEN('Détail des projets'!B96)=0,"",'Détail des projets'!B96) -> Acériculture-Évaporateur à biomasse | C96: =IF(LEN('Détail des projets'!C96)=0,"",'Détail des projets'!C96) -> Érablière Pagé-Savard et filles S.E.N.C. | D96: =IF(LEN('Détail des projets'!G96)=0,"",'Détail des projets'!G96) -> 04-Mauricie | E96: =IF(LEN('Détail des projets'!K96)=0,"",'Détail des projets'!K96) -> 7838.124 | F96: 5.971901176 | G96: À la fin du projet (suite au dernier versement) | H96: 62.50002955 | I96: QC-Québec | J96: Oui | K96: 20 | L96: 5.971901176 | M96: 5.971901176 | N96: Non | O96: Oui | P96: 0 | R96: 0 | T96: 0 | V96: 0 | X96: 0 | Z96: 0 | AB96: 0.4895000964 | AD96: 5.939267836 | AF96: 5.939267836
B97: =IF(LEN('Détail des projets'!B97)=0,"",'Détail des projets'!B97) -> Remplacement du fourneau de l’évaporateur à l’huile actuel pour utiliser de la biomasse forestière résiduelle | C97: =IF(LEN('Détail des projets'!C97)=0,"",'Détail des projets'!C97) -> Érablière Paul Pettigrew inc. | D97: =IF(LEN('Détail des projets'!G97)=0,"",'Détail des projets'!G97) -> 01-Bas-Saint-Laurent | E97: =IF(LEN('Détail des projets'!K97)=0,"",'Détail des projets'!K97) -> 53742.52 | F97: 42.99401519 | G97: À la fin du projet (suite au dernier versement) | H97: 62.50000118 | I97: QC-Québec | J97: Oui | K97: 20 | L97: 0 | M97: 42.99401519 | N97: Non | O97: Oui | P97: 0 | R97: 0 | T97: 0 | V97: 0 | X97: 3.524099606 | Z97: 42.75907521 | AB97: 42.8765452 | AD97: 42.75907521 | AF97: 42.75907521
B98: =IF(LEN('Détail des projets'!B98)=0,"",'Détail des projets'!B98) -> Acériculture-Évaporateur aux granules | C98: =IF(LEN('Détail des projets'!C98)=0,"",'Détail des projets'!C98) -> Érablière Simard & Côté S.E.N.C. | D98: =IF(LEN('Détail des projets'!G98)=0,"",'Détail des projets'!G98) -> 05-Estrie | E98: =IF(LEN('Détail des projets'!K98)=0,"",'Détail des projets'!K98) -> 26688.91 | F98: 20.33440989 | G98: À la fin du projet (suite au dernier versement) | H98: 62.4999942 | I98: QC-Québec | J98: Oui | K98: 20 | L98: 20.33440989 | M98: 20.33440989 | N98: Non | O98: Oui | P98: 0 | R98: 0 | T98: 0 | V98: 0 | X98: 0 | Z98: 0 | AB98: 0 | AD98: 4.38912126 | AF98: 20.22329289
B99: =IF(LEN('Détail des projets'!B99)=0,"",'Détail des projets'!B99) -> Économie de GES Érablière Seigneurie | C99: =IF(LEN('Détail des projets'!C99)=0,"",'Détail des projets'!C99) -> Érablière Sucrerie de la Seigneurie inc. | D99: =IF(LEN('Détail des projets'!G99)=0,"",'Détail des projets'!G99) -> 12-Chaudière-Appalaches | E99: =IF(LEN('Détail des projets'!K99)=0,"",'Détail des projets'!K99) -> 22452.36716 | F99: 26.24793324 | G99: À la fin du projet (suite au dernier versement) | H99: 37.7684057 | I99: QC-Québec | J99: Oui | K99: 16.43017387 | L99: 0 | M99: 26.24793324 | N99: Non | O99: Oui | P99: 0 | R99: 0 | T99: 0 | V99: 0 | X99: 2.151469938 | Z99: 26.10450191 | AB99: 26.17621758 | AD99: 26.10450191 | AF99: 26.10450191
B100: =IF(LEN('Détail des projets'!B100)=0,"",'Détail des projets'!B100) -> Conversion de l'évaporateur au mazout vers la biomasse | C100: =IF(LEN('Détail des projets'!C100)=0,"",'Détail des projets'!C100) -> Érablières C.B.C | D100: =IF(LEN('Détail des projets'!G100)=0,"",'Détail des projets'!G100) -> 12-Chaudière-Appalaches | E100: =IF(LEN('Détail des projets'!K100)=0,"",'Détail des projets'!K100) -> 28992.49 | F100: 24.64000104 | G100: À la fin du projet (suite au dernier versement) | H100: 58.83216066 | I100: QC-Québec | J100: Oui | K100: 15 | L100: 0 | M100: 24.64000104 | N100: Non | O100: Oui | P100: 0 | R100: 0 | T100: 0 | V100: 0 | X100: 0 | Z100: 1.077158516 | AB100: 24.57267864 | AD100: 24.50535623 | AF100: 24.50535623
B101: =IF(LEN('Détail des projets'!B101)=0,"",'Détail des projets'!B101) -> GES - Évaporateur - Érablières Lucan inc. | C101: =IF(LEN('Détail des projets'!C101)=0,"",'Détail des projets'!C101) -> Érablières Lucan inc. | D101: =IF(LEN('Détail des projets'!G101)=0,"",'Détail des projets'!G101) -> 17-Centre-du-Québec | E101: =IF(LEN('Détail des projets'!K101)=0,"",'Détail des projets'!K101) -> 61986.38 | F101: 49.58910121 | G101: À la fin du projet (suite au dernier versement) | H101: 62.50000351 | I101: QC-Québec | J101: Oui | K101: 15 | L101: 0 | M101: 49.58910121 | N101: Non | O101: Oui | P101: 0 | R101: 0 | T101: 0 | V101: 0 | X101: 8.94229694 | Z101: 49.31812252 | AB101: 49.45361186 | AD101: 49.31812252 | AF101: 49.31812252
B102: =IF(LEN('Détail des projets'!B102)=0,"",'Détail des projets'!B102) -> Agrandissement de la surface de production-mesures d'efficacité énergétique-chauffage à la biomasse forestière résiduelle | C102: =IF(LEN('Détail des projets'!C102)=0,"",'Détail des projets'!C102) -> Excel-Serres ltée | D102: =IF(LEN('Détail des projets'!G102)=0,"",'Détail des projets'!G102) -> 16-Montérégie | E102: =IF(LEN('Détail des projets'!K102)=0,"",'Détail des projets'!K102) -> 10732.5 | F102: 0 | G102: À la fin du projet (suite au dernier versement) | I102: QC-Québec | J102: Oui | K102: 18.97101402 | L102: 0 | M102: 0 | N102: Non | O102: Oui
B103: =IF(LEN('Détail des projets'!B103)=0,"",'Détail des projets'!B103) -> Agrandissement de la surface de production - Chauffage à la biomasse forestière résiduelle - Mesures d'efficacité énergétique | C103: =IF(LEN('Détail des projets'!C103)=0,"",'Détail des projets'!C103) -> Excel-Serres ltée | D103: =IF(LEN('Détail des projets'!G103)=0,"",'Détail des projets'!G103) -> 16-Montérégie | E103: =IF(LEN('Détail des projets'!K103)=0,"",'Détail des projets'!K103) -> 1468511.95 | F103: 1274.293508 | G103: À la fin du projet (suite au dernier versement) | H103: 57.62063216 | I103: QC-Québec | J103: Oui | K103: 18.93969727 | L103: 0 | M103: 1274.293508 | N103: Non | O103: Oui | P103: 0 | R103: 0 | T103: 0 | V103: 369.0576828 | X103: 1267.330156 | Z103: 1267.330156 | AB103: 1270.811832 | AD103: 1267.330156 | AF103: 1267.330156
B104: =IF(LEN('Détail des projets'!B104)=0,"",'Détail des projets'!B104) -> Chauffage de l'atelier de soudure | C104: =IF(LEN('Détail des projets'!C104)=0,"",'Détail des projets'!C104) -> Fabrication Fransi inc. | D104: =IF(LEN('Détail des projets'!G104)=0,"",'Détail des projets'!G104) -> 09-Côte-Nord | E104: =IF(LEN('Détail des projets'!K104)=0,"",'Détail des projets'!K104) -> 166110 | F104: 224.4188343 | G104: À la fin du projet (suite au dernier versement) | H104: 35.24659606 | I104: QC-Québec | J104: Oui | K104: 20 | L104: 0 | M104: 224.4188343 | N104: Non | O104: Oui | P104: 0 | R104: 0 | T104: 0 | V104: 0 | X104: 0 | Z104: 0 | AB104: 0 | AD104: 0 | AF104: 0
B105: =IF(LEN('Détail des projets'!B105)=0,"",'Détail des projets'!B105) -> Remplacement du mazout comme source de chauffage, Étude technico-économique | C105: =IF(LEN('Détail des projets'!C105)=0,"",'Détail des projets'!C105) -> Fabrique St-Joseph-des-Monts | D105: =IF(LEN('Détail des projets'!G105)=0,"",'Détail des projets'!G105) -> 05-Estrie | E105: =IF(LEN('Détail des projets'!K105)=0,"",'Détail des projets'!K105) -> 5250 | F105: 0 | G105: À la fin du projet (suite au dernier versement) | I105: QC-Québec | J105: Oui | L105: 0 | M105: 0 | N105: Non | O105: Oui
B106: =IF(LEN('Détail des projets'!B106)=0,"",'Détail des projets'!B106) -> Conversion du système de chauffage au mazout vers la biomasse forestière résiduelle | C106: =IF(LEN('Détail des projets'!C106)=0,"",'Détail des projets'!C106) -> Fabrique St-Joseph-des-Monts | D106: =IF(LEN('Détail des projets'!G106)=0,"",'Détail des projets'!G106) -> 05-Estrie | E106: =IF(LEN('Détail des projets'!K106)=0,"",'Détail des projets'!K106) -> 61150.73 | F106: 91.1943487 | G106: À la fin du projet (suite au dernier versement) | H106: 30.35203979 | I106: QC-Québec | J106: Oui | K106: 20 | L106: 0 | M106: 91.1943487 | N106: Non | O106: Oui | P106: 0 | R106: 0 | T106: 0 | V106: 0 | X106: 0 | Z106: 26.41147804 | AB106: 90.94518381 | AD106: 90.69601893 | AF106: 90.69601893
B107: =IF(LEN('Détail des projets'!B107)=0,"",'Détail des projets'!B107) -> Conversion du chauffage vers un chauffage aux granules de bois | C107: =IF(LEN('Détail des projets'!C107)=0,"",'Détail des projets'!C107) -> Faterra Capital inc. | D107: =IF(LEN('Détail des projets'!G107)=0,"",'Détail des projets'!G107) -> 16-Montérégie | E107: =IF(LEN('Détail des projets'!K107)=0,"",'Détail des projets'!K107) -> 594242.964 | F107: 452.7565405 | G107: À la fin du projet (suite au dernier versement) | H107: 62.50000048 | I107: QC-Québec | J107: Oui | K107: 20 | L107: 0 | M107: 452.7565405 | N107: Non | O107: Oui | P107: 0 | R107: 0 | T107: 0 | V107: 0 | X107: 0 | Z107: 0 | AB107: 0 | AD107: 0 | AF107: 0
B108: =IF(LEN('Détail des projets'!B108)=0,"",'Détail des projets'!B108) -> Installation d'une fournaise à air chaud dans un nouveau poulailler de dindons lourds | C108: =IF(LEN('Détail des projets'!C108)=0,"",'Détail des projets'!C108) -> Ferme à l'Oie inc. | D108: =IF(LEN('Détail des projets'!G108)=0,"",'Détail des projets'!G108) -> 12-Chaudière-Appalaches | E108: =IF(LEN('Détail des projets'!K108)=0,"",'Détail des projets'!K108) -> 68283.42 | F108: 54.62673419 | G108: À la fin du projet (suite au dernier versement) | H108: 62.50000207 | I108: QC-Québec | J108: Oui | K108: 20 | L108: 0 | M108: 54.62673419 | N108: Non | O108: Oui | P108: 0 | R108: 0 | T108: 0 | V108: 0 | X108: 0 | Z108: 27.01486035 | AB108: 54.47748082 | AD108: 54.32822745 | AF108: 54.32822745
B109: =IF(LEN('Détail des projets'!B109)=0,"",'Détail des projets'!B109) -> Convertion à la biomasse des 3 poulaillers existants et du quatrième poulailler à construire en 2018 | C109: =IF(LEN('Détail des projets'!C109)=0,"",'Détail des projets'!C109) -> Ferme avicole Girard inc. | D109: =IF(LEN('Détail des projets'!G109)=0,"",'Détail des projets'!G109) -> 17-Centre-du-Québec | E109: =IF(LEN('Détail des projets'!K109)=0,"",'Détail des projets'!K109) -> 287931.525 | F109: 253.1893924 | G109: À la fin du projet (suite au dernier versement) | H109: 54.15323632 | I109: QC-Québec | J109: Oui | K109: 20 | L109: 0 | M109: 253.1893924 | N109: Non | O109: Oui | P109: 0 | R109: 0 | T109: 0 | V109: 0 | X109: 0 | Z109: 0 | AB109: 0 | AD109: 122.4440504 | AF109: 251.8058438
B110: =IF(LEN('Détail des projets'!B110)=0,"",'Détail des projets'!B110) -> Conversion à la biomasse forestière résiduelle | C110: =IF(LEN('Détail des projets'!C110)=0,"",'Détail des projets'!C110) -> Ferme avicole Linor | D110: =IF(LEN('Détail des projets'!G110)=0,"",'Détail des projets'!G110) -> 16-Montérégie | E110: =IF(LEN('Détail des projets'!K110)=0,"",'Détail des projets'!K110) -> 231245.29 | F110: 90.64521527 | G110: À la fin du projet (suite au dernier versement) | H110: 127.5551552 | I110: QC-Québec | J110: Oui | K110: 20 | L110: 0 | M110: 90.64521527 | N110: Non | O110: Oui | P110: 0 | R110: 0 | T110: 0 | V110: 53.49553688 | X110: 90.14988622 | Z110: 90.14988622 | AB110: 90.39755075 | AD110: 90.14988622 | AF110: 90.14988622
B111: =IF(LEN('Détail des projets'!B111)=0,"",'Détail des projets'!B111) -> Conversion à la biomasse forestière résiduelle d’un poulailler | C111: =IF(LEN('Détail des projets'!C111)=0,"",'Détail des projets'!C111) -> Ferme Avicole Lise Grenier inc. | D111: =IF(LEN('Détail des projets'!G111)=0,"",'Détail des projets'!G111) -> 04-Mauricie | E111: =IF(LEN('Détail des projets'!K111)=0,"",'Détail des projets'!K111) -> 125570.3 | F111: 126.3048755 | G111: À la fin du projet (suite au dernier versement) | H111: 47.34209964 | I111: QC-Québec | J111: Oui | K111: 25 | L111: 0 | M111: 126.3048755 | N111: Non | O111: Oui | P111: 0 | R111: 0 | T111: 0 | V111: 0 | X111: 0 | Z111: 0 | AB111: 0 | AD111: 61.77205659 | AF111: 125.6146849
B112: =IF(LEN('Détail des projets'!B112)=0,"",'Détail des projets'!B112) -> Implantation de mesures d'efficacité énergétique | C112: =IF(LEN('Détail des projets'!C112)=0,"",'Détail des projets'!C112) -> Ferme Bédard et Blouin inc. | D112: =IF(LEN('Détail des projets'!G112)=0,"",'Détail des projets'!G112) -> 03-Capitale-Nationale | E112: =IF(LEN('Détail des projets'!K112)=0,"",'Détail des projets'!K112) -> 6150 | F112: 0 | G112: À la fin du projet (suite au dernier versement) | I112: QC-Québec | J112: Oui | M112: 0 | N112: Non | O112: Oui
B113: =IF(LEN('Détail des projets'!B113)=0,"",'Détail des projets'!B113) -> Conversion à la biomasse forestière résiduelle d’un poulailler | C113: =IF(LEN('Détail des projets'!C113)=0,"",'Détail des projets'!C113) -> Ferme Chair de Poule inc. | D113: =IF(LEN('Détail des projets'!G113)=0,"",'Détail des projets'!G113) -> 14-Lanaudière | E113: =IF(LEN('Détail des projets'!K113)=0,"",'Détail des projets'!K113) -> 418563.69 | F113: 334.8509492 | G113: À la fin du projet (suite au dernier versement) | H113: 62.50000053 | I113: QC-Québec | J113: Oui | K113: 25 | L113: 0 | M113: 334.8509492 | N113: Non | O113: Oui | P113: 0 | R113: 0 | T113: 0 | V113: 0 | X113: 0 | Z113: 0 | AB113: 0 | AD113: 0 | AF113: 0
B114: =IF(LEN('Détail des projets'!B114)=0,"",'Détail des projets'!B114) -> Installation d’une chaudière Séquoia Blue Sky SP | C114: =IF(LEN('Détail des projets'!C114)=0,"",'Détail des projets'!C114) -> Ferme Deaunier inc. | D114: =IF(LEN('Détail des projets'!G114)=0,"",'Détail des projets'!G114) -> 12-Chaudière-Appalaches | E114: =IF(LEN('Détail des projets'!K114)=0,"",'Détail des projets'!K114) -> 78958.7 | F114: 53.9434141 | G114: À la fin du projet (suite au dernier versement) | H114: 62.5000022 | I114: QC-Québec | J114: Oui | K114: 20 | L114: 0 | M114: 53.9434141 | N114: Non | O114: Oui | P114: 0 | R114: 0 | T114: 0 | V114: 0 | X114: 0 | Z114: 0 | AB114: 18.42329717 | AD114: 53.64864135 | AF114: 53.64864135
B115: =IF(LEN('Détail des projets'!B115)=0,"",'Détail des projets'!B115) -> Conversion à la biomasse forestière résiduelle de poulaillers et séchoir à foin | C115: =IF(LEN('Détail des projets'!C115)=0,"",'Détail des projets'!C115) -> Ferme Denis & André Morin inc. | D115: =IF(LEN('Détail des projets'!G115)=0,"",'Détail des projets'!G115) -> 14-Lanaudière | E115: =IF(LEN('Détail des projets'!K115)=0,"",'Détail des projets'!K115) -> 265889.2425 | F115: 202.5822766 | G115: À la fin du projet (suite au dernier versement) | H115: 62.5 | I115: QC-Québec | J115: Oui | K115: 20 | L115: 0 | M115: 202.5822766 | N115: Non | O115: Oui | P115: 0 | R115: 0 | T115: 0 | V115: 0 | X115: 0 | Z115: 0 | AB115: 0 | AD115: 0 | AF115: 0
B116: =IF(LEN('Détail des projets'!B116)=0,"",'Détail des projets'!B116) -> Conversion à la biomasse forestière des bouilleuses d’eau d’érable | C116: =IF(LEN('Détail des projets'!C116)=0,"",'Détail des projets'!C116) -> Ferme Denis Carrier inc. | D116: =IF(LEN('Détail des projets'!G116)=0,"",'Détail des projets'!G116) -> 12-Chaudière-Appalaches | E116: =IF(LEN('Détail des projets'!K116)=0,"",'Détail des projets'!K116) -> 112033.95 | F116: 110.7001811 | G116: À la fin du projet (suite au dernier versement) | H116: 48.19278474 | I116: QC-Québec | J116: Oui | K116: 25 | L116: 0 | M116: 110.7001811 | N116: Non | O116: Oui | P116: 0 | R116: 0 | T116: 0 | V116: 0 | X116: 0 | Z116: 3.327054624 | AB116: 110.3977216 | AD116: 110.0952621 | AF116: 110.0952621
B117: =IF(LEN('Détail des projets'!B117)=0,"",'Détail des projets'!B117) -> M14-08 Ferme du Ruisseau | C117: =IF(LEN('Détail des projets'!C117)=0,"",'Détail des projets'!C117) -> Ferme du Ruisseau Mirabel | D117: =IF(LEN('Détail des projets'!G117)=0,"",'Détail des projets'!G117) -> 15-Laurentides | E117: =IF(LEN('Détail des projets'!K117)=0,"",'Détail des projets'!K117) -> 285851.01 | F117: 256.4801507 | G117: À la fin du projet (suite au dernier versement) | H117: 55.7257568 | I117: QC-Québec | J117: Oui | K117: 20 | L117: 0 | M117: 256.4801507 | N117: Non | O117: Oui | P117: 0 | R117: 105.1148158 | T117: 255.7793852 | V117: 255.0786198 | X117: 255.0786198 | Z117: 255.0786198 | AB117: 255.7793852 | AD117: 255.0786198 | AF117: 255.0786198
B118: =IF(LEN('Détail des projets'!B118)=0,"",'Détail des projets'!B118) -> Séchage du grain | C118: =IF(LEN('Détail des projets'!C118)=0,"",'Détail des projets'!C118) -> Ferme Gaudreau et Pariseau inc. | D118: =IF(LEN('Détail des projets'!G118)=0,"",'Détail des projets'!G118) -> 05-Estrie | E118: =IF(LEN('Détail des projets'!K118)=0,"",'Détail des projets'!K118) -> 49063.04 | F118: 37.38136293 | G118: À la fin du projet (suite au dernier versement) | H118: 62.4999951 | I118: QC-Québec | J118: Oui | K118: 20 | L118: 0 | M118: 37.38136293 | N118: Non | O118: Oui | P118: 0 | R118: 0 | T118: 0 | V118: 0 | X118: 0 | Z118: 0 | AB118: 0 | AD118: 16.54584917 | AF118: 37.17709319
B119: =IF(LEN('Détail des projets'!B119)=0,"",'Détail des projets'!B119) -> Conversion à la biomasse forestière résiduelle d'un séchoir à grain | C119: =IF(LEN('Détail des projets'!C119)=0,"",'Détail des projets'!C119) -> Ferme Genlouis inc. | D119: =IF(LEN('Détail des projets'!G119)=0,"",'Détail des projets'!G119) -> 16-Montérégie | E119: =IF(LEN('Détail des projets'!K119)=0,"",'Détail des projets'!K119) -> 301004.298 | F119: 229.336611 | G119: À la fin du projet (suite au dernier versement) | H119: 62.49999918 | I119: QC-Québec | J119: Oui | K119: 25 | L119: 0 | M119: 229.336611 | N119: Non | O119: Oui | P119: 0 | R119: 0 | T119: 0 | V119: 0 | X119: 0 | Z119: 0 | AB119: 0 | AD119: 0 | AF119: 0
B120: =IF(LEN('Détail des projets'!B120)=0,"",'Détail des projets'!B120) -> Conversion du chauffage au propane vers un chauffage aux granules de bois | C120: =IF(LEN('Détail des projets'!C120)=0,"",'Détail des projets'!C120) -> Ferme Gilles Desharnais inc. | D120: =IF(LEN('Détail des projets'!G120)=0,"",'Détail des projets'!G120) -> 17-Centre-du-Québec | E120: =IF(LEN('Détail des projets'!K120)=0,"",'Détail des projets'!K120) -> 323149.42 | F120: 305.7598164 | G120: À la fin du projet (suite au dernier versement) | H120: 50.32730487 | I120: QC-Québec | J120: Oui | K120: 19 | L120: 0 | M120: 305.7598164 | N120: Non | O120: Oui | P120: 0 | R120: 0 | T120: 0 | V120: 0 | X120: 0 | Z120: 0 | AB120: 0 | AD120: 0 | AF120: 0
B121: =IF(LEN('Détail des projets'!B121)=0,"",'Détail des projets'!B121) -> Acériculture-Évaporateur aux granules | C121: =IF(LEN('Détail des projets'!C121)=0,"",'Détail des projets'!C121) -> Ferme Gratien Allard inc. | D121: =IF(LEN('Détail des projets'!G121)=0,"",'Détail des projets'!G121) -> 15-Laurentides | E121: =IF(LEN('Détail des projets'!K121)=0,"",'Détail des projets'!K121) -> 5640.13 | F121: 4.51210461 | G121: À la fin du projet (suite au dernier versement) | H121: 62.49999155 | I121: QC-Québec | J121: Oui | K121: 20 | L121: 4.51210461 | M121: 4.51210461 | N121: Non | O121: Oui | P121: 0 | R121: 0 | T121: 0 | V121: 0 | X121: 0 | Z121: 0 | AB121: 0.1972504748 | AD121: 4.487448301 | AF121: 4.487448301
B122: =IF(LEN('Détail des projets'!B122)=0,"",'Détail des projets'!B122) -> Acériculture-Évaporateur à biomasse | C122: =IF(LEN('Détail des projets'!C122)=0,"",'Détail des projets'!C122) -> Ferme Guillaume et Étienne Lessard S.E.N.C. | D122: =IF(LEN('Détail des projets'!G122)=0,"",'Détail des projets'!G122) -> 12-Chaudière-Appalaches | E122: =IF(LEN('Détail des projets'!K122)=0,"",'Détail des projets'!K122) -> 77830.05 | F122: 59.2990904 | G122: À la fin du projet (suite au dernier versement) | H122: 62.49999747 | I122: QC-Québec | J122: Oui | K122: 20 | L122: 59.2990904 | M122: 59.2990904 | N122: Non | O122: Oui | P122: 0 | R122: 0 | T122: 0 | V122: 0 | X122: 0 | Z122: 0 | AB122: 0 | AD122: 30.94570018 | AF122: 58.97505166
B123: =IF(LEN('Détail des projets'!B123)=0,"",'Détail des projets'!B123) -> Projet de chauffage de serre à la biomasse forestière | C123: =IF(LEN('Détail des projets'!C123)=0,"",'Détail des projets'!C123) -> Ferme Hélandre et fils inc. | D123: =IF(LEN('Détail des projets'!G123)=0,"",'Détail des projets'!G123) -> 17-Centre-du-Québec | E123: =IF(LEN('Détail des projets'!K123)=0,"",'Détail des projets'!K123) -> 4000 | F123: 0 | G123: À la fin du projet (suite au dernier versement) | I123: QC-Québec | J123: Oui | L123: 0 | M123: 0 | N123: Non | O123: Oui
B124: =IF(LEN('Détail des projets'!B124)=0,"",'Détail des projets'!B124) -> Conversion des systèmes de chauffage des poulaillers | C124: =IF(LEN('Détail des projets'!C124)=0,"",'Détail des projets'!C124) -> Ferme Hum-And-Son inc. | D124: =IF(LEN('Détail des projets'!G124)=0,"",'Détail des projets'!G124) -> 12-Chaudière-Appalaches | E124: =IF(LEN('Détail des projets'!K124)=0,"",'Détail des projets'!K124) -> 85589.15 | F124: 55.85391173 | G124: À la fin du projet (suite au dernier versement) | H124: 62.50000031 | I124: QC-Québec | J124: Oui | K124: 20 | L124: 0 | M124: 55.85391173 | N124: Non | O124: Oui | P124: 0 | R124: 0 | T124: 27.16392428 | V124: 55.54869909 | X124: 55.54869909 | Z124: 55.54869909 | AB124: 55.70130541 | AD124: 55.54869909 | AF124: 55.54869909
B125: =IF(LEN('Détail des projets'!B125)=0,"",'Détail des projets'!B125) -> Conversion à la biomasse forestière et récupération de la chaleur de réfrigération. | C125: =IF(LEN('Détail des projets'!C125)=0,"",'Détail des projets'!C125) -> Ferme Irma inc. | D125: =IF(LEN('Détail des projets'!G125)=0,"",'Détail des projets'!G125) -> 17-Centre-du-Québec | E125: =IF(LEN('Détail des projets'!K125)=0,"",'Détail des projets'!K125) -> 87606.26739 | F125: 66.74796814 | G125: À la fin du projet (suite au dernier versement) | H125: 62.49968787 | I125: QC-Québec | J125: Oui | K125: 25 | L125: 0 | M125: 66.74796814 | N125: Non | O125: Oui | P125: 0 | R125: 0 | T125: 0 | V125: 0 | X125: 0 | Z125: 0 | AB125: 0 | AD125: 0 | AF125: 0
B126: =IF(LEN('Détail des projets'!B126)=0,"",'Détail des projets'!B126) -> Conversion à la biomasse forestière résiduelle d’un poulailler | C126: =IF(LEN('Détail des projets'!C126)=0,"",'Détail des projets'!C126) -> Ferme J.G.C. inc. | D126: =IF(LEN('Détail des projets'!G126)=0,"",'Détail des projets'!G126) -> 12-Chaudière-Appalaches | E126: =IF(LEN('Détail des projets'!K126)=0,"",'Détail des projets'!K126) -> 47480.1495 | F126: 36.17534801 | G126: À la fin du projet (suite au dernier versement) | H126: 62.5000069 | I126: QC-Québec | J126: Oui | K126: 25 | L126: 0 | M126: 36.17534801 | N126: Non | O126: Oui | P126: 0 | R126: 0 | T126: 0 | V126: 0 | X126: 0 | Z126: 0 | AB126: 0 | AD126: 0 | AF126: 0
B127: =IF(LEN('Détail des projets'!B127)=0,"",'Détail des projets'!B127) -> Conversion partielle d'un système de séchage du grain vers la biomasse forestière résiduelle | C127: =IF(LEN('Détail des projets'!C127)=0,"",'Détail des projets'!C127) -> Ferme J.R.S. Maheux S.E.N.C. | D127: =IF(LEN('Détail des projets'!G127)=0,"",'Détail des projets'!G127) -> 05-Estrie | E127: =IF(LEN('Détail des projets'!K127)=0,"",'Détail des projets'!K127) -> 50061.7845 | F127: 53.00266995 | G127: À la fin du projet (suite au dernier versement) | H127: 44.97687573 | I127: QC-Québec | J127: Oui | K127: 0 | L127: 0 | M127: 53.00266995 | N127: Non | O127: Oui | P127: 0 | R127: 0 | T127: 0 | V127: 0 | X127: 0 | Z127: -0.1448160381 | AB127: 0 | AD127: 0 | AF127: 0
B128: =IF(LEN('Détail des projets'!B128)=0,"",'Détail des projets'!B128) -> Installation d'une fournaise à air chaud dans un complexe de serres | C128: =IF(LEN('Détail des projets'!C128)=0,"",'Détail des projets'!C128) -> Ferme Jean-Yves Gamelin inc. | D128: =IF(LEN('Détail des projets'!G128)=0,"",'Détail des projets'!G128) -> 17-Centre-du-Québec | E128: =IF(LEN('Détail des projets'!K128)=0,"",'Détail des projets'!K128) -> 93659.26963 | F128: 76.19489991 | G128: À la fin du projet (suite au dernier versement) | H128: 61.46032722 | I128: QC-Québec | J128: Oui | K128: 20 | L128: 0 | M128: 76.19489991 | N128: Non | O128: Oui | P128: 0 | R128: 0 | T128: 0 | V128: 0 | X128: 12.69914999 | Z128: 75.77853434 | AB128: 75.98671713 | AD128: 75.77853434 | AF128: 75.77853434
B129: =IF(LEN('Détail des projets'!B129)=0,"",'Détail des projets'!B129) -> Conversion d'un poulailler au chauffage à la biomasse | C129: =IF(LEN('Détail des projets'!C129)=0,"",'Détail des projets'!C129) -> Ferme Larose & Frères inc. | D129: =IF(LEN('Détail des projets'!G129)=0,"",'Détail des projets'!G129) -> 12-Chaudière-Appalaches | E129: =IF(LEN('Détail des projets'!K129)=0,"",'Détail des projets'!K129) -> 95677.5 | F129: 94.18221354 | G129: À la fin du projet (suite au dernier versement) | H129: 46.63557836 | I129: QC-Québec | J129: Oui | K129: 20 | L129: 0 | M129: 94.18221354 | N129: Non | O129: Oui | P129: 0 | R129: 0 | T129: 0 | V129: 0 | X129: 91.09427212 | Z129: 93.66755664 | AB129: 93.92488509 | AD129: 93.66755664 | AF129: 93.66755664
B130: =IF(LEN('Détail des projets'!B130)=0,"",'Détail des projets'!B130) -> Conversion de 2 poulaillers au chauffage à la biomasse | C130: =IF(LEN('Détail des projets'!C130)=0,"",'Détail des projets'!C130) -> Ferme Larose & Frères inc. | D130: =IF(LEN('Détail des projets'!G130)=0,"",'Détail des projets'!G130) -> 12-Chaudière-Appalaches | E130: =IF(LEN('Détail des projets'!K130)=0,"",'Détail des projets'!K130) -> 131877.5955 | F130: 100.4781657 | G130: À la fin du projet (suite au dernier versement) | H130: 62.5000014 | I130: QC-Québec | J130: Oui | K130: 20 | L130: 0 | M130: 100.4781657 | N130: Non | O130: Oui | P130: 0 | R130: 0 | T130: 0 | V130: 0 | X130: 0 | Z130: 0 | AB130: 83.73180479 | AD130: 99.92910473 | AF130: 99.92910473
B131: =IF(LEN('Détail des projets'!B131)=0,"",'Détail des projets'!B131) -> GES - Évaporateur Serge Labrie | C131: =IF(LEN('Détail des projets'!C131)=0,"",'Détail des projets'!C131) -> Ferme Le Ranch L inc. | D131: =IF(LEN('Détail des projets'!G131)=0,"",'Détail des projets'!G131) -> 17-Centre-du-Québec | E131: =IF(LEN('Détail des projets'!K131)=0,"",'Détail des projets'!K131) -> 36440.07 | F131: 56.54247902 | G131: À la fin du projet (suite au dernier versement) | H131: 32.22362252 | I131: QC-Québec | J131: Oui | K131: 15 | L131: 0 | M131: 56.54247902 | N131: Non | O131: Oui | P131: 0 | R131: 18.69300536 | T131: 56.38799137 | V131: 56.23350372 | X131: 56.23350372 | Z131: 56.23350372 | AB131: 56.38799137 | AD131: 56.23350372 | AF131: 56.23350372
B132: =IF(LEN('Détail des projets'!B132)=0,"",'Détail des projets'!B132) -> Remplacement d'un évaporateur fonctionnant à l'huile par un évaporateur fonctionnant aux granules de bois | C132: =IF(LEN('Détail des projets'!C132)=0,"",'Détail des projets'!C132) -> Ferme Les Frères Beaulieu inc. | D132: =IF(LEN('Détail des projets'!G132)=0,"",'Détail des projets'!G132) -> 16-Montérégie | E132: =IF(LEN('Détail des projets'!K132)=0,"",'Détail des projets'!K132) -> 68637.18 | F132: 54.91351883 | G132: À la fin du projet (suite au dernier versement) | H132: 62.49570366 | I132: QC-Québec | J132: Oui | K132: 20 | L132: 0 | M132: 54.91351883 | N132: Non | O132: Oui | P132: 0 | R132: 0.1500369367 | T132: 54.76348189 | V132: 54.61344496 | X132: 54.61344496 | Z132: 54.61344496 | AB132: 54.76348189 | AD132: 54.61344496 | AF132: 54.61344496
B133: =IF(LEN('Détail des projets'!B133)=0,"",'Détail des projets'!B133) -> Étude de faisabilité - chauffage d'un complexe de serres à la biomasse | C133: =IF(LEN('Détail des projets'!C133)=0,"",'Détail des projets'!C133) -> Ferme Les Grands Soleil | D133: =IF(LEN('Détail des projets'!G133)=0,"",'Détail des projets'!G133) -> 05-Estrie | E133: =IF(LEN('Détail des projets'!K133)=0,"",'Détail des projets'!K133) -> 8662.5 | F133: 0 | G133: À la fin du projet (suite au dernier versement) | I133: QC-Québec | J133: Oui | L133: 0 | M133: 0 | N133: Non | O133: Oui
B134: =IF(LEN('Détail des projets'!B134)=0,"",'Détail des projets'!B134) -> Chaudière Sequoia pour ferme Montagnard | C134: =IF(LEN('Détail des projets'!C134)=0,"",'Détail des projets'!C134) -> Ferme Montagnard 2011 inc. | D134: =IF(LEN('Détail des projets'!G134)=0,"",'Détail des projets'!G134) -> 05-Estrie | E134: =IF(LEN('Détail des projets'!K134)=0,"",'Détail des projets'!K134) -> 31965.2 | F134: 25.57215743 | G134: À la fin du projet (suite au dernier versement) | H134: 62.50000628 | I134: QC-Québec | J134: Oui | K134: 20 | L134: 0 | M134: 25.57215743 | N134: Non | O134: Oui | P134: 0 | R134: 0 | T134: 9.013137455 | V134: 25.43241887 | X134: 25.43241887 | Z134: 25.43241887 | AB134: 25.50228815 | AD134: 25.43241887 | AF134: 25.43241887
B135: =IF(LEN('Détail des projets'!B135)=0,"",'Détail des projets'!B135) -> Complexe de serres – Efficacité énergétique et conversion à la biomasse forestière résiduelle | C135: =IF(LEN('Détail des projets'!C135)=0,"",'Détail des projets'!C135) -> Ferme Nadeau 2006 inc. | D135: =IF(LEN('Détail des projets'!G135)=0,"",'Détail des projets'!G135) -> 17-Centre-du-Québec | E135: =IF(LEN('Détail des projets'!K135)=0,"",'Détail des projets'!K135) -> 136538.6107 | F135: 104.029125 | G135: À la fin du projet (suite au dernier versement) | H135: 62.50017584 | I135: QC-Québec | J135: Oui | K135: 20 | L135: 0 | M135: 104.029125 | N135: Non | O135: Oui | P135: 0 | R135: 0 | T135: 0 | V135: 0 | X135: 0 | Z135: 0 | AB135: 0 | AD135: 0 | AF135: 0
B136: =IF(LEN('Détail des projets'!B136)=0,"",'Détail des projets'!B136) -> Conversion à la biomasse forestière résiduelle d’un poulailler | C136: =IF(LEN('Détail des projets'!C136)=0,"",'Détail des projets'!C136) -> Ferme Pierre Dufresne inc. | D136: =IF(LEN('Détail des projets'!G136)=0,"",'Détail des projets'!G136) -> 14-Lanaudière | E136: =IF(LEN('Détail des projets'!K136)=0,"",'Détail des projets'!K136) -> 48123.39 | F136: 46.92824073 | G136: À la fin du projet (suite au dernier versement) | H136: 48.83179007 | I136: QC-Québec | J136: Oui | K136: 25 | L136: 0 | M136: 46.92824073 | N136: Non | O136: Oui | P136: 0 | R136: 0 | T136: 0 | V136: 0 | X136: 0 | Z136: 0 | AB136: 14.36055454 | AD136: 46.67180226 | AF136: 46.67180226
B137: =IF(LEN('Détail des projets'!B137)=0,"",'Détail des projets'!B137) -> Fournaise au bois Sky Blue | C137: =IF(LEN('Détail des projets'!C137)=0,"",'Détail des projets'!C137) -> Ferme Porcité inc. | D137: =IF(LEN('Détail des projets'!G137)=0,"",'Détail des projets'!G137) -> 12-Chaudière-Appalaches | E137: =IF(LEN('Détail des projets'!K137)=0,"",'Détail des projets'!K137) -> 31305.31 | F137: 54.59242199 | G137: À la fin du projet (suite au dernier versement) | H137: 27.30466877 | I137: QC-Québec | J137: Oui | K137: 15 | L137: 0 | M137: 54.59242199 | N137: Non | O137: Oui | P137: 0 | R137: 0 | T137: 0 | V137: 0 | X137: 0 | Z137: 0 | AB137: 0 | AD137: 24.90965703 | AF137: 54.29410275
B138: =IF(LEN('Détail des projets'!B138)=0,"",'Détail des projets'!B138) -> Remplacement des évaporateurs actuels pour un équipement utilisant le granule de bois | C138: =IF(LEN('Détail des projets'!C138)=0,"",'Détail des projets'!C138) -> Ferme Prepierre ltée | D138: =IF(LEN('Détail des projets'!G138)=0,"",'Détail des projets'!G138) -> 01-Bas-Saint-Laurent | E138: =IF(LEN('Détail des projets'!K138)=0,"",'Détail des projets'!K138) -> 77996 | F138: 62.80986616 | G138: À la fin du projet (suite au dernier versement) | H138: 57.62171966 | I138: QC-Québec | J138: Oui | K138: 20 | L138: 0 | M138: 62.80986616 | N138: Non | O138: Oui | P138: 0 | R138: 0 | T138: 0 | V138: 0 | X138: 0 | Z138: 2.745786499 | AB138: 62.63825451 | AD138: 62.46664285 | AF138: 62.46664285
B139: =IF(LEN('Détail des projets'!B139)=0,"",'Détail des projets'!B139) -> Conversion d'un séchoir à grain | C139: =IF(LEN('Détail des projets'!C139)=0,"",'Détail des projets'!C139) -> Ferme Rojoie inc. | D139: =IF(LEN('Détail des projets'!G139)=0,"",'Détail des projets'!G139) -> 16-Montérégie | E139: =IF(LEN('Détail des projets'!K139)=0,"",'Détail des projets'!K139) -> 281645.33 | F139: 225.3162612 | G139: À la fin du projet (suite au dernier versement) | H139: 62.50000079 | I139: QC-Québec | J139: Oui | K139: 20 | L139: 0 | M139: 225.3162612 | N139: Non | O139: Oui | P139: 0 | R139: 0 | T139: 0 | V139: 0 | X139: 0 | Z139: 0 | AB139: 105.8863304 | AD139: 224.0850248 | AF139: 224.0850248
B140: =IF(LEN('Détail des projets'!B140)=0,"",'Détail des projets'!B140) -> Conversion à la biomasse forestière résiduelle | C140: =IF(LEN('Détail des projets'!C140)=0,"",'Détail des projets'!C140) -> Ferme S.C.J. Bérard inc. | D140: =IF(LEN('Détail des projets'!G140)=0,"",'Détail des projets'!G140) -> 14-Lanaudière | E140: =IF(LEN('Détail des projets'!K140)=0,"",'Détail des projets'!K140) -> 133744.16 | F140: 218.5753602 | G140: À la fin du projet (suite au dernier versement) | H140: 30.59451896 | I140: QC-Québec | J140: Oui | K140: 20 | L140: 0 | M140: 218.5753602 | N140: Non | O140: Oui | P140: 0 | R140: 0 | T140: 0 | V140: 214.9921575 | X140: 217.3809593 | Z140: 217.3809593 | AB140: 217.9781597 | AD140: 217.3809593 | AF140: 217.3809593
B141: =IF(LEN('Détail des projets'!B141)=0,"",'Détail des projets'!B141) -> Conversion à la biomasse forestière résiduelle | C141: =IF(LEN('Détail des projets'!C141)=0,"",'Détail des projets'!C141) -> Ferme S.C.J. Bérard inc. | D141: =IF(LEN('Détail des projets'!G141)=0,"",'Détail des projets'!G141) -> 14-Lanaudière | E141: =IF(LEN('Détail des projets'!K141)=0,"",'Détail des projets'!K141) -> 42397.4 | F141: 43.96999381 | G141: À la fin du projet (suite au dernier versement) | H141: 48.21174206 | I141: QC-Québec | J141: Oui | K141: 20 | L141: 0 | M141: 43.96999381 | N141: Non | O141: Oui | P141: 0 | R141: 0 | T141: 0 | V141: 0 | X141: 0 | Z141: 23.66690924 | AB141: 43.84985721 | AD141: 43.72972062 | AF141: 43.72972062
B142: =IF(LEN('Détail des projets'!B142)=0,"",'Détail des projets'!B142) -> Conversion à la biomasse forestière résiduelle d’un poulailler | C142: =IF(LEN('Détail des projets'!C142)=0,"",'Détail des projets'!C142) -> Ferme Sébastien Lamy inc. | D142: =IF(LEN('Détail des projets'!G142)=0,"",'Détail des projets'!G142) -> 04-Mauricie | E142: =IF(LEN('Détail des projets'!K142)=0,"",'Détail des projets'!K142) -> 253354.815 | F142: 193.0322405 | G142: À la fin du projet (suite au dernier versement) | H142: 62.49999983 | I142: QC-Québec | J142: Oui | K142: 0 | L142: 0 | M142: 193.0322405 | N142: Non | O142: Oui | P142: 0 | R142: 0 | T142: 0 | V142: 0 | X142: 0 | Z142: 0 | AB142: 0 | AD142: 0 | AF142: 0
B143: =IF(LEN('Détail des projets'!B143)=0,"",'Détail des projets'!B143) -> Chaufferie biomasse - Ferme St-Jude | C143: =IF(LEN('Détail des projets'!C143)=0,"",'Détail des projets'!C143) -> Ferme St-Jude, société en commandite | D143: =IF(LEN('Détail des projets'!G143)=0,"",'Détail des projets'!G143) -> 16-Montérégie | E143: =IF(LEN('Détail des projets'!K143)=0,"",'Détail des projets'!K143) -> 594104.66 | F143: 475.2837242 | G143: À la fin du projet (suite au dernier versement) | H143: 62.5000005 | I143: QC-Québec | J143: Oui | K143: 20 | L143: 0 | M143: 475.2837242 | N143: Non | O143: Oui | P143: 0 | R143: 0 | T143: 0 | V143: 0 | X143: 0 | Z143: 466.1935983 | AB143: 473.9851348 | AD143: 472.6865454 | AF143: 472.6865454
B144: =IF(LEN('Détail des projets'!B144)=0,"",'Détail des projets'!B144) -> Conversion à la biomasse forestière résiduelle d’un poulailler | C144: =IF(LEN('Détail des projets'!C144)=0,"",'Détail des projets'!C144) -> Ferme Viagrico inc. | D144: =IF(LEN('Détail des projets'!G144)=0,"",'Détail des projets'!G144) -> 16-Montérégie | E144: =IF(LEN('Détail des projets'!K144)=0,"",'Détail des projets'!K144) -> 76198.26 | F144: 58.05581531 | G144: À la fin du projet (suite au dernier versement) | H144: 62.50000075 | I144: QC-Québec | J144: Oui | K144: 25 | L144: 0 | M144: 58.05581531 | N144: Non | O144: Oui | P144: 0 | R144: 0 | T144: 0 | V144: 0 | X144: 0 | Z144: 0 | AB144: 0 | AD144: 0 | AF144: 0
B145: =IF(LEN('Détail des projets'!B145)=0,"",'Détail des projets'!B145) -> Utilisation de planures comme combustible d'appoint à la chaudière de biomasse | C145: =IF(LEN('Détail des projets'!C145)=0,"",'Détail des projets'!C145) -> Fibrek S.E.N.C. | D145: =IF(LEN('Détail des projets'!G145)=0,"",'Détail des projets'!G145) -> 02-Saguenay--Lac-Saint-Jean | E145: =IF(LEN('Détail des projets'!K145)=0,"",'Détail des projets'!K145) -> 3150000 | F145: 31131.59004 | G145: À la fin du projet (suite au dernier versement) | H145: 4.818256947 | I145: QC-Québec | J145: Oui | K145: 20 | L145: 0 | M145: 31131.59004 | N145: Non | O145: Oui | P145: 0 | R145: 0 | T145: 0 | V145: 0 | X145: 0 | Z145: 0 | AB145: 0 | AD145: 0 | AF145: 0
B146: =IF(LEN('Détail des projets'!B146)=0,"",'Détail des projets'!B146) -> Projet de réseau de chaleur au 230, avenue St-Jérome | C146: =IF(LEN('Détail des projets'!C146)=0,"",'Détail des projets'!C146) -> FIDEL (Fonds d'innovation et de développement économique local de la Matanie) | D146: =IF(LEN('Détail des projets'!G146)=0,"",'Détail des projets'!G146) -> 01-Bas-Saint-Laurent | E146: =IF(LEN('Détail des projets'!K146)=0,"",'Détail des projets'!K146) -> 8437.5 | F146: 0 | G146: À la fin du projet (suite au dernier versement) | I146: QC-Québec | J146: Oui | K146: 0 | L146: 0 | M146: 0 | N146: Non | O146: Oui
B147: =IF(LEN('Détail des projets'!B147)=0,"",'Détail des projets'!B147) -> Installation d'une chaudière 6000 kW vapeur haute pression | C147: =IF(LEN('Détail des projets'!C147)=0,"",'Détail des projets'!C147) -> Forex inc. | D147: =IF(LEN('Détail des projets'!G147)=0,"",'Détail des projets'!G147) -> 15-Laurentides | E147: =IF(LEN('Détail des projets'!K147)=0,"",'Détail des projets'!K147) -> 806154.78 | F147: 3067.662941 | G147: À la fin du projet (suite au dernier versement) | H147: 12.49248687 | I147: QC-Québec | J147: Oui | K147: 20 | L147: 0 | M147: 3067.662941 | N147: Non | O147: Oui | P147: 0 | R147: 0 | T147: 0 | V147: 0 | X147: 0 | Z147: 0 | AB147: 0 | AD147: 2573.148969 | AF147: 3050.899755
B148: =IF(LEN('Détail des projets'!B148)=0,"",'Détail des projets'!B148) -> Conversion de deux poulaillers au chauffage à la biomasse | C148: =IF(LEN('Détail des projets'!C148)=0,"",'Détail des projets'!C148) -> Fraisière Sylvie et Gilles Arsenault inc. | D148: =IF(LEN('Détail des projets'!G148)=0,"",'Détail des projets'!G148) -> 16-Montérégie | E148: =IF(LEN('Détail des projets'!K148)=0,"",'Détail des projets'!K148) -> 165777.15 | F148: 159.1718071 | G148: À la fin du projet (suite au dernier versement) | H148: 49.59515221 | I148: QC-Québec | J148: Oui | K148: 20 | L148: 0 | M148: 159.1718071 | N148: Non | O148: Oui | P148: 0 | R148: 0 | T148: 0 | V148: 0 | X148: 0 | Z148: 0 | AB148: 0 | AD148: 0 | AF148: 0
B149: =IF(LEN('Détail des projets'!B149)=0,"",'Détail des projets'!B149) -> Remplacement du système de chauffage au propane par un équipement à la biomasse forestière résiduelle chez Alcide Ouellet et Fils inc., de Cacouna. | C149: =IF(LEN('Détail des projets'!C149)=0,"",'Détail des projets'!C149) -> Garage Alcide Ouellet inc. | D149: =IF(LEN('Détail des projets'!G149)=0,"",'Détail des projets'!G149) -> 01-Bas-Saint-Laurent | E149: =IF(LEN('Détail des projets'!K149)=0,"",'Détail des projets'!K149) -> 32900.75 | F149: 32.33795001 | G149: À la fin du projet (suite au dernier versement) | H149: 50.87018502 | I149: QC-Québec | J149: Oui | K149: 20 | L149: 0 | M149: 32.33795001 | N149: Non | O149: Oui | P149: 0 | R149: 0 | T149: 0 | V149: 0 | X149: 0.08835505466 | Z149: 32.1612399 | AB149: 32.24959495 | AD149: 32.1612399 | AF149: 32.1612399
B150: =IF(LEN('Détail des projets'!B150)=0,"",'Détail des projets'!B150) -> Chauffage biomasse Gare La Santé | C150: =IF(LEN('Détail des projets'!C150)=0,"",'Détail des projets'!C150) -> Gare La Santé inc. | D150: =IF(LEN('Détail des projets'!G150)=0,"",'Détail des projets'!G150) -> 12-Chaudière-Appalaches | E150: =IF(LEN('Détail des projets'!K150)=0,"",'Détail des projets'!K150) -> 37476.01406 | F150: 29.28827821 | G150: À la fin du projet (suite au dernier versement) | H150: 63.97783054 | I150: QC-Québec | J150: Oui | K150: 25 | L150: 0 | M150: 29.28827821 | N150: Non | O150: Oui | P150: 0 | R150: 16.16456885 | T150: 29.20825559 | V150: 29.12823297 | X150: 29.12823297 | Z150: 29.12823297 | AB150: 29.20825559 | AD150: 29.12823297 | AF150: 29.12823297
B151: =IF(LEN('Détail des projets'!B151)=0,"",'Détail des projets'!B151) -> Conversion à la biomasse du garage de Germain Autos à Saint-Raymond | C151: =IF(LEN('Détail des projets'!C151)=0,"",'Détail des projets'!C151) -> Germain Chevrolet Buick GMC inc. | D151: =IF(LEN('Détail des projets'!G151)=0,"",'Détail des projets'!G151) -> 03-Capitale-Nationale | E151: =IF(LEN('Détail des projets'!K151)=0,"",'Détail des projets'!K151) -> 5180 | F151: 0 | G151: À la fin du projet (suite au dernier versement) | I151: QC-Québec | J151: Oui | K151: 20 | L151: 0 | M151: 0 | N151: Non | O151: Oui
B152: =IF(LEN('Détail des projets'!B152)=0,"",'Détail des projets'!B152) -> GES-Evaporateur - Gestion D. Desnoyers inc. | C152: =IF(LEN('Détail des projets'!C152)=0,"",'Détail des projets'!C152) -> Gestion D. Desnoyers inc. | D152: =IF(LEN('Détail des projets'!G152)=0,"",'Détail des projets'!G152) -> 12-Chaudière-Appalaches | E152: =IF(LEN('Détail des projets'!K152)=0,"",'Détail des projets'!K152) -> 21058.03567 | F152: 16.83471841 | G152: À la fin du projet (suite au dernier versement) | H152: 62.50000592 | I152: QC-Québec | J152: Oui | K152: 15 | L152: 0 | M152: 16.83471841 | N152: Non | O152: Oui | P152: 1.42589145 | R152: 16.74272541 | T152: 16.78872191 | V152: 16.74272541 | X152: 16.74272541 | Z152: 16.74272541 | AB152: 16.78872191 | AD152: 16.74272541 | AF152: 16.74272541
B153: =IF(LEN('Détail des projets'!B153)=0,"",'Détail des projets'!B153) -> Remplacement de l’évaporateur actuel pour un équipement utilisant la biomasse forestière résiduelle | C153: =IF(LEN('Détail des projets'!C153)=0,"",'Détail des projets'!C153) -> Gestion Émilien Ouellet ( Érablière du Lac Sutherland) | D153: =IF(LEN('Détail des projets'!G153)=0,"",'Détail des projets'!G153) -> 01-Bas-Saint-Laurent | E153: =IF(LEN('Détail des projets'!K153)=0,"",'Détail des projets'!K153) -> 49176.27 | F153: 39.34101745 | G153: À la fin du projet (suite au dernier versement) | H153: 62.49999769 | I153: QC-Québec | J153: Oui | K153: 20 | L153: 0 | M153: 39.34101745 | N153: Non | O153: Oui | P153: 0 | R153: 0 | T153: 0 | V153: 0 | X153: 0 | Z153: 1.7198259 | AB153: 39.23352833 | AD153: 39.12603921 | AF153: 39.12603921
B154: =IF(LEN('Détail des projets'!B154)=0,"",'Détail des projets'!B154) -> Projet de conversion à la biomasse et efficacité énergétique d’un complexe de serres | C154: =IF(LEN('Détail des projets'!C154)=0,"",'Détail des projets'!C154) -> Gestion horticole Normand Francoeur | D154: =IF(LEN('Détail des projets'!G154)=0,"",'Détail des projets'!G154) -> 17-Centre-du-Québec | E154: =IF(LEN('Détail des projets'!K154)=0,"",'Détail des projets'!K154) -> 7436 | F154: 0 | G154: À la fin du projet (suite au dernier versement) | I154: QC-Québec | J154: Oui | K154: 0 | L154: 0 | M154: 0 | N154: Non | O154: Oui
B155: =IF(LEN('Détail des projets'!B155)=0,"",'Détail des projets'!B155) -> Projet de conversion à la biomasse et efficacité énergétique d’un complexe de serres | C155: =IF(LEN('Détail des projets'!C155)=0,"",'Détail des projets'!C155) -> Gestion horticole Normand Francoeur | D155: =IF(LEN('Détail des projets'!G155)=0,"",'Détail des projets'!G155) -> 17-Centre-du-Québec | E155: =IF(LEN('Détail des projets'!K155)=0,"",'Détail des projets'!K155) -> 179529.8085 | F155: 249.2568344 | G155: À la fin du projet (suite au dernier versement) | H155: 34.2981107 | I155: QC-Québec | J155: Oui | K155: 14.65781879 | L155: 0 | M155: 249.2568344 | N155: Non | O155: Oui | P155: 0 | R155: 0 | T155: 0 | V155: 0 | X155: 0 | Z155: 0 | AB155: 144.3782757 | AD155: 247.8947752 | AF155: 247.8947752
B156: =IF(LEN('Détail des projets'!B156)=0,"",'Détail des projets'!B156) -> Chauffage à la biomasse chez Excavation Steve Leblanc | C156: =IF(LEN('Détail des projets'!C156)=0,"",'Détail des projets'!C156) -> Gestion Steve Leblanc inc. | D156: =IF(LEN('Détail des projets'!G156)=0,"",'Détail des projets'!G156) -> 05-Estrie | E156: =IF(LEN('Détail des projets'!K156)=0,"",'Détail des projets'!K156) -> 80375.02 | F156: 61.23811052 | G156: À la fin du projet (suite au dernier versement) | H156: 62.50000151 | I156: QC-Québec | J156: Oui | K156: 20 | L156: 0 | M156: 61.23811052 | N156: Non | O156: Oui | P156: 0 | R156: 0 | T156: 0 | V156: 0 | X156: 0 | Z156: 0 | AB156: 0 | AD156: 0 | AF156: 0
B157: =IF(LEN('Détail des projets'!B157)=0,"",'Détail des projets'!B157) -> Implantation d'un deuxième séchoir alimenté à la biomasse | C157: =IF(LEN('Détail des projets'!C157)=0,"",'Détail des projets'!C157) -> Granules L.G. inc. | D157: =IF(LEN('Détail des projets'!G157)=0,"",'Détail des projets'!G157) -> 02-Saguenay--Lac-Saint-Jean | E157: =IF(LEN('Détail des projets'!K157)=0,"",'Détail des projets'!K157) -> 1467312 | F157: 6966.998384 | G157: À la fin du projet (suite au dernier versement) | H157: 10.02899615 | I157: QC-Québec | J157: Oui | K157: 20 | L157: 0 | M157: 6966.998384 | N157: Non | O157: Oui | P157: 0 | R157: 0 | T157: 0 | V157: 0 | X157: 0 | Z157: 0 | AB157: 0 | AD157: 0 | AF157: 0
B158: =IF(LEN('Détail des projets'!B158)=0,"",'Détail des projets'!B158) -> Conditionnement (séchage et densification) de biomasse forestière | C158: =IF(LEN('Détail des projets'!C158)=0,"",'Détail des projets'!C158) -> Groupe Cyclofor Plus inc. | D158: =IF(LEN('Détail des projets'!G158)=0,"",'Détail des projets'!G158) -> 08-Abitibi-Témiscamingue | E158: =IF(LEN('Détail des projets'!K158)=0,"",'Détail des projets'!K158) -> 555500 | F158: 2399.633486 | G158: À la fin du projet (suite au dernier versement) | H158: 11.18920875 | I158: QC-Québec | J158: Oui | K158: 15 | L158: 0 | M158: 2399.633486 | N158: Non | O158: Oui | P158: 0 | R158: 0 | T158: 0 | V158: 0 | X158: 0 | Z158: 0 | AB158: 0 | AD158: 0 | AF158: 0
B159: =IF(LEN('Détail des projets'!B159)=0,"",'Détail des projets'!B159) -> Remplacement de la chaudière de 2000 kW à l'huile #6 par une série de chaudières à la biomasse forestière résiduelle | C159: =IF(LEN('Détail des projets'!C159)=0,"",'Détail des projets'!C159) -> Groupe Lebel inc. | D159: =IF(LEN('Détail des projets'!G159)=0,"",'Détail des projets'!G159) -> 01-Bas-Saint-Laurent | E159: =IF(LEN('Détail des projets'!K159)=0,"",'Détail des projets'!K159) -> 612937.5 | F159: 580.2496904 | G159: À la fin du projet (suite au dernier versement) | H159: 50.30162098 | I159: QC-Québec | J159: Oui | K159: 25 | L159: 0 | M159: 580.2496904 | N159: Non | O159: Oui | P159: 0 | R159: 0 | T159: 0 | V159: 0 | X159: 0 | Z159: 0 | AB159: 112.5620984 | AD159: 577.078927 | AF159: 577.078927
B160: =IF(LEN('Détail des projets'!B160)=0,"",'Détail des projets'!B160) -> Lebel Énergie | C160: =IF(LEN('Détail des projets'!C160)=0,"",'Détail des projets'!C160) -> Groupe Lebel inc. | D160: =IF(LEN('Détail des projets'!G160)=0,"",'Détail des projets'!G160) -> 01-Bas-Saint-Laurent | E160: =IF(LEN('Détail des projets'!K160)=0,"",'Détail des projets'!K160) -> 13000 | F160: 0 | G160: À la fin du projet (suite au dernier versement) | I160: QC-Québec | J160: Oui | L160: 0 | M160: 0 | N160: Non | O160: Oui
B161: =IF(LEN('Détail des projets'!B161)=0,"",'Détail des projets'!B161) -> Centrale thermique à la biomasse forestière résiduelle pour une usine de granules | C161: =IF(LEN('Détail des projets'!C161)=0,"",'Détail des projets'!C161) -> Groupe Lebel inc. | D161: =IF(LEN('Détail des projets'!G161)=0,"",'Détail des projets'!G161) -> 01-Bas-Saint-Laurent | E161: =IF(LEN('Détail des projets'!K161)=0,"",'Détail des projets'!K161) -> 1751045.78 | F161: 30472.53604 | G161: À la fin du projet (suite au dernier versement) | H161: 2.736337153 | I161: QC-Québec | J161: Oui | K161: 25 | L161: 0 | M161: 30472.53604 | N161: Non | O161: Oui | P161: 0 | R161: 0 | T161: 0 | V161: 0 | X161: 0 | Z161: 0 | AB161: 0 | AD161: 0 | AF161: 0
B162: =IF(LEN('Détail des projets'!B162)=0,"",'Détail des projets'!B162) -> Installation d'une chaufferie à la biomasse forestière résiduelle | C162: =IF(LEN('Détail des projets'!C162)=0,"",'Détail des projets'!C162) -> Groupe Urbn inc. | D162: =IF(LEN('Détail des projets'!G162)=0,"",'Détail des projets'!G162) -> 01-Bas-Saint-Laurent | E162: =IF(LEN('Détail des projets'!K162)=0,"",'Détail des projets'!K162) -> 121070.25 | F162: 145.4009065 | G162: À la fin du projet (suite au dernier versement) | H162: 39.65071567 | I162: QC-Québec | J162: Oui | K162: 20 | L162: 0 | M162: 145.4009065 | N162: Non | O162: Oui | P162: 0 | R162: 0 | T162: 0 | V162: 0 | X162: 0 | Z162: 0 | AB162: 0 | AD162: 0 | AF162: 0
B163: =IF(LEN('Détail des projets'!B163)=0,"",'Détail des projets'!B163) -> Étude de faisabilité conversion vers biomasse forestière résiduelle et mesures d'efficacité énergétique | C163: =IF(LEN('Détail des projets'!C163)=0,"",'Détail des projets'!C163) -> Jardins Paquette inc. | D163: =IF(LEN('Détail des projets'!G163)=0,"",'Détail des projets'!G163) -> 05-Estrie | E163: =IF(LEN('Détail des projets'!K163)=0,"",'Détail des projets'!K163) -> 18437.5 | F163: 0 | G163: À la fin du projet (suite au dernier versement) | I163: QC-Québec | J163: Oui | K163: 20 | L163: 0 | M163: 0 | N163: Non | O163: Oui
B164: =IF(LEN('Détail des projets'!B164)=0,"",'Détail des projets'!B164) -> Implantation vers biomasse forestière résiduelle et mesures d'efficacité énergétique | C164: =IF(LEN('Détail des projets'!C164)=0,"",'Détail des projets'!C164) -> Jardins Paquette inc. | D164: =IF(LEN('Détail des projets'!G164)=0,"",'Détail des projets'!G164) -> 05-Estrie | E164: =IF(LEN('Détail des projets'!K164)=0,"",'Détail des projets'!K164) -> 2016444.62 | F164: 312.3918427 | G164: À la fin du projet (suite au dernier versement) | H164: 322.7428416 | I164: QC-Québec | J164: Oui | K164: 25 | L164: 0 | M164: 312.3918427 | N164: Non | O164: Oui | P164: 0 | R164: 0 | T164: 0 | V164: 0 | X164: 445.731756 | Z164: 1606.399596 | AB164: 1610.812782 | AD164: 1606.399596 | AF164: 1606.399596
B165: =IF(LEN('Détail des projets'!B165)=0,"",'Détail des projets'!B165) -> Serre de potés fleuris – Efficacité énergétique et conversion à la biomasse forestière résiduelle | C165: =IF(LEN('Détail des projets'!C165)=0,"",'Détail des projets'!C165) -> Jardins Paquette inc. | D165: =IF(LEN('Détail des projets'!G165)=0,"",'Détail des projets'!G165) -> 05-Estrie | E165: =IF(LEN('Détail des projets'!K165)=0,"",'Détail des projets'!K165) -> 63739.56934 | F165: 177.9122562 | G165: À la fin du projet (suite au dernier versement) | H165: 17.06019372 | I165: QC-Québec | J165: Oui | K165: 23.35636711 | L165: 0 | M165: 177.9122562 | N165: Non | O165: Oui | P165: 0 | R165: 0 | T165: 0 | V165: 0 | X165: 0 | Z165: 0 | AB165: 0 | AD165: 0 | AF165: 0
B166: =IF(LEN('Détail des projets'!B166)=0,"",'Détail des projets'!B166) -> Production de vapeur à partir de la biomasse forestière résiduelle - Analyse | C166: =IF(LEN('Détail des projets'!C166)=0,"",'Détail des projets'!C166) -> La Centrale de chauffage S.E.N.C. | D166: =IF(LEN('Détail des projets'!G166)=0,"",'Détail des projets'!G166) -> 02-Saguenay--Lac-Saint-Jean | E166: =IF(LEN('Détail des projets'!K166)=0,"",'Détail des projets'!K166) -> 30750 | F166: 0 | G166: À la fin du projet (suite au dernier versement) | I166: QC-Québec | J166: Oui | L166: 0 | M166: 0 | N166: Non | O166: Oui
B167: =IF(LEN('Détail des projets'!B167)=0,"",'Détail des projets'!B167) -> Implantation - Production de vapeur à partir de la biomasse forestière résiduelle | C167: =IF(LEN('Détail des projets'!C167)=0,"",'Détail des projets'!C167) -> La Centrale de chauffage S.E.N.C. | D167: =IF(LEN('Détail des projets'!G167)=0,"",'Détail des projets'!G167) -> 02-Saguenay--Lac-Saint-Jean | E167: =IF(LEN('Détail des projets'!K167)=0,"",'Détail des projets'!K167) -> 1490826.83 | F167: 3549.587704 | G167: À la fin du projet (suite au dernier versement) | H167: 19.99999998 | I167: QC-Québec | J167: Oui | K167: 0 | L167: 0 | M167: 3549.587704 | N167: Non | O167: Oui | P167: 0 | R167: 0 | T167: 0 | V167: 0 | X167: 0 | Z167: 0 | AB167: 0 | AD167: 0 | AF167: 0
B168: =IF(LEN('Détail des projets'!B168)=0,"",'Détail des projets'!B168) -> Remplacement de l'évaporateur à l'huile pour un équipement aux Granules | C168: =IF(LEN('Détail des projets'!C168)=0,"",'Détail des projets'!C168) -> La Coulée d’Élixir inc. | D168: =IF(LEN('Détail des projets'!G168)=0,"",'Détail des projets'!G168) -> 11-Gaspésie--Îles-de-la-Madeleine | E168: =IF(LEN('Détail des projets'!K168)=0,"",'Détail des projets'!K168) -> 77797.14 | F168: 90.87309271 | G168: À la fin du projet (suite au dernier versement) | H168: 41.30574726 | I168: QC-Québec | J168: Oui | K168: 20 | L168: 0 | M168: 90.87309271 | N168: Non | O168: Oui | P168: 1.241435693 | R168: 90.37651843 | T168: 90.62480557 | V168: 45.25 | X168: 45.25 | Z168: 45.25 | AB168: 45.25 | AD168: 45.25 | AF168: 45.25
B169: =IF(LEN('Détail des projets'!B169)=0,"",'Détail des projets'!B169) -> Église de La Doré - Conversion à la biomasse | C169: =IF(LEN('Détail des projets'!C169)=0,"",'Détail des projets'!C169) -> La Fabrique de la paroisse de Notre-Dame-de-la-Doré | D169: =IF(LEN('Détail des projets'!G169)=0,"",'Détail des projets'!G169) -> 02-Saguenay--Lac-Saint-Jean | E169: =IF(LEN('Détail des projets'!K169)=0,"",'Détail des projets'!K169) -> 74602.75 | F169: 60.58274978 | G169: À la fin du projet (suite au dernier versement) | H169: 61.5709507 | I169: QC-Québec | J169: Oui | K169: 25 | L169: 0 | M169: 60.58274978 | N169: Non | O169: Oui | P169: 0 | R169: 0 | T169: 0 | V169: 48.00272524 | X169: 60.2516965 | Z169: 60.2516965 | AB169: 60.41722314 | AD169: 60.2516965 | AF169: 60.2516965
B170: =IF(LEN('Détail des projets'!B170)=0,"",'Détail des projets'!B170) -> Conversion des systèmes de chauffage de l’église et du presbytère vers la biomasse forestière résiduelle | C170: =IF(LEN('Détail des projets'!C170)=0,"",'Détail des projets'!C170) -> La Fabrique de la paroisse de Notre-Dame-de-l'Assomption | D170: =IF(LEN('Détail des projets'!G170)=0,"",'Détail des projets'!G170) -> 03-Capitale-Nationale | E170: =IF(LEN('Détail des projets'!K170)=0,"",'Détail des projets'!K170) -> 98228.64 | F170: 80.94110074 | G170: À la fin du projet (suite au dernier versement) | H170: 60.67908585 | I170: QC-Québec | J170: Oui | K170: 20 | L170: 0 | M170: 80.94110074 | N170: Non | O170: Oui | P170: 0 | R170: 0 | T170: 28.08611965 | V170: 80.49879964 | X170: 80.49879964 | Z170: 80.49879964 | AB170: 80.71995019 | AD170: 80.49879964 | AF170: 80.49879964
B171: =IF(LEN('Détail des projets'!B171)=0,"",'Détail des projets'!B171) -> Chauffage à la biomasse de l'église et du presbytère de Amqui | C171: =IF(LEN('Détail des projets'!C171)=0,"",'Détail des projets'!C171) -> La Fabrique de la paroisse de Saint-Benoit-Labre | D171: =IF(LEN('Détail des projets'!G171)=0,"",'Détail des projets'!G171) -> 01-Bas-Saint-Laurent | E171: =IF(LEN('Détail des projets'!K171)=0,"",'Détail des projets'!K171) -> 102638.6 | F171: 78.20083713 | G171: À la fin du projet (suite au dernier versement) | H171: 62.50000229 | I171: QC-Québec | J171: Oui | K171: 25 | L171: 0 | M171: 78.20083713 | N171: Non | O171: Oui | P171: 0 | R171: 0 | T171: 0 | V171: 0 | X171: 0 | Z171: 0 | AB171: 0 | AD171: 0 | AF171: 0
B172: =IF(LEN('Détail des projets'!B172)=0,"",'Détail des projets'!B172) -> Convertir le chauffage mazout de l'église Sainte-Blandine par des équipements de chauffage utilisant de la biomasse forestière résiduelle | C172: =IF(LEN('Détail des projets'!C172)=0,"",'Détail des projets'!C172) -> La Fabrique de la paroisse de Sainte-Blandine | D172: =IF(LEN('Détail des projets'!G172)=0,"",'Détail des projets'!G172) -> 01-Bas-Saint-Laurent | E172: =IF(LEN('Détail des projets'!K172)=0,"",'Détail des projets'!K172) -> 62678.95 | F172: 50.14316142 | G172: À la fin du projet (suite au dernier versement) | H172: 62.49999823 | I172: QC-Québec | J172: Oui | K172: 25 | L172: 0 | M172: 50.14316142 | N172: Non | O172: Oui | P172: 0 | R172: 0 | T172: 0 | V172: 27.94864735 | X172: 49.86915507 | Z172: 49.86915507 | AB172: 50.00615825 | AD172: 49.86915507 | AF172: 49.86915507
B173: =IF(LEN('Détail des projets'!B173)=0,"",'Détail des projets'!B173) -> Conversion des systèmes de chauffage de l’église et du presbytère vers la biomasse forestière résiduelle. | C173: =IF(LEN('Détail des projets'!C173)=0,"",'Détail des projets'!C173) -> La Fabrique de la paroisse de Sainte-Kateri-Tekakwitha | D173: =IF(LEN('Détail des projets'!G173)=0,"",'Détail des projets'!G173) -> 12-Chaudière-Appalaches | E173: =IF(LEN('Détail des projets'!K173)=0,"",'Détail des projets'!K173) -> 74147.37 | F173: 64.79182456 | G173: À la fin du projet (suite au dernier versement) | H173: 57.21969409 | I173: QC-Québec | J173: Oui | K173: 20 | L173: 0 | M173: 64.79182456 | N173: Non | O173: Oui | P173: 0 | R173: 21.24322117 | T173: 64.61479772 | V173: 64.43777087 | X173: 64.43777087 | Z173: 64.43777087 | AB173: 64.61479772 | AD173: 64.43777087 | AF173: 64.43777087
B174: =IF(LEN('Détail des projets'!B174)=0,"",'Détail des projets'!B174) -> Remplacement du système de chauffage à l'huile par du chauffage aux granules à l'Église de Dégelis | C174: =IF(LEN('Détail des projets'!C174)=0,"",'Détail des projets'!C174) -> La Fabrique de la paroisse de Sainte-Rose-du-Dégelis | D174: =IF(LEN('Détail des projets'!G174)=0,"",'Détail des projets'!G174) -> 01-Bas-Saint-Laurent | E174: =IF(LEN('Détail des projets'!K174)=0,"",'Détail des projets'!K174) -> 64625 | F174: 68.78148075 | G174: À la fin du projet (suite au dernier versement) | H174: 46.97848847 | I174: QC-Québec | J174: Oui | K174: 20 | L174: 0 | M174: 68.78148075 | N174: Non | O174: Oui | P174: 0 | R174: 0 | T174: 0 | V174: 0 | X174: 0 | Z174: 32.69939249 | AB174: 68.5935532 | AD174: 68.40562566 | AF174: 68.40562566
B175: =IF(LEN('Détail des projets'!B175)=0,"",'Détail des projets'!B175) -> Remplacement de la chaudière utilisant l'huile à chauffage par de nouvelles utilisant le granule | C175: =IF(LEN('Détail des projets'!C175)=0,"",'Détail des projets'!C175) -> La fabrique de la paroisse Marie-Médiatrice d'Escourt | D175: =IF(LEN('Détail des projets'!G175)=0,"",'Détail des projets'!G175) -> 01-Bas-Saint-Laurent | E175: =IF(LEN('Détail des projets'!K175)=0,"",'Détail des projets'!K175) -> 60225.06 | F175: 83.03126256 | G175: À la fin du projet (suite au dernier versement) | H175: 36.26649659 | I175: QC-Québec | J175: Oui | K175: 20 | L175: 0 | M175: 83.03126256 | N175: Non | O175: Oui | P175: 0 | R175: 0 | T175: 0 | V175: 0 | X175: 0 | Z175: 27.22336477 | AB175: 82.80440118 | AD175: 82.57753981 | AF175: 82.57753981
B176: =IF(LEN('Détail des projets'!B176)=0,"",'Détail des projets'!B176) -> Fabrique de la Paroisse de Saint-Germain-de-Grantham | C176: =IF(LEN('Détail des projets'!C176)=0,"",'Détail des projets'!C176) -> La Fabrique de la paroisse Notre-Dame-de-Lourdes | D176: =IF(LEN('Détail des projets'!G176)=0,"",'Détail des projets'!G176) -> 17-Centre-du-Québec | E176: =IF(LEN('Détail des projets'!K176)=0,"",'Détail des projets'!K176) -> 38723.59 | F176: 68.1980799 | G176: À la fin du projet (suite au dernier versement) | H176: 28.39052805 | I176: QC-Québec | J176: Oui | K176: 15 | L176: 0 | M176: 68.1980799 | N176: Non | O176: Oui | P176: 0 | R176: 0 | T176: 24.03702816 | V176: 67.82541279 | X176: 67.82541279 | Z176: 67.82541279 | AB176: 68.01174635 | AD176: 67.82541279 | AF176: 67.82541279
B177: =IF(LEN('Détail des projets'!B177)=0,"",'Détail des projets'!B177) -> Acériculture-Évaporateur à biomasse | C177: =IF(LEN('Détail des projets'!C177)=0,"",'Détail des projets'!C177) -> La Griffe d'Érable inc. | D177: =IF(LEN('Détail des projets'!G177)=0,"",'Détail des projets'!G177) -> 17-Centre-du-Québec | E177: =IF(LEN('Détail des projets'!K177)=0,"",'Détail des projets'!K177) -> 43932.77 | F177: 35.14621266 | G177: À la fin du projet (suite au dernier versement) | H177: 62.50000594 | I177: QC-Québec | J177: Oui | K177: 20 | L177: 35.14621266 | M177: 35.14621266 | N177: Non | O177: Oui | P177: 0 | R177: 0 | T177: 0 | V177: 0 | X177: 0 | Z177: 0 | AB177: 11.61937632 | AD177: 34.95415685 | AF177: 34.95415685
B178: =IF(LEN('Détail des projets'!B178)=0,"",'Détail des projets'!B178) -> Analyse de faisabilité - Utilisation de la biomasse pour le chauffage des bâtiments - Municipalité de Saint-Marcellin | C178: =IF(LEN('Détail des projets'!C178)=0,"",'Détail des projets'!C178) -> La Municipalité de la paroisse de Saint-Marcellin | D178: =IF(LEN('Détail des projets'!G178)=0,"",'Détail des projets'!G178) -> 01-Bas-Saint-Laurent | E178: =IF(LEN('Détail des projets'!K178)=0,"",'Détail des projets'!K178) -> 6000 | F178: 0 | G178: À la fin du projet (suite au dernier versement) | I178: QC-Québec | J178: Oui | K178: 20 | L178: 0 | M178: 0 | N178: Non | O178: Oui
B179: =IF(LEN('Détail des projets'!B179)=0,"",'Détail des projets'!B179) -> Serre de production fruitière chauffée à la biomasse | C179: =IF(LEN('Détail des projets'!C179)=0,"",'Détail des projets'!C179) -> La Vallée du Moulin Inc. | D179: =IF(LEN('Détail des projets'!G179)=0,"",'Détail des projets'!G179) -> 05-Estrie | E179: =IF(LEN('Détail des projets'!K179)=0,"",'Détail des projets'!K179) -> 11800 | F179: 0 | G179: À la fin du projet (suite au dernier versement) | I179: QC-Québec | J179: Oui | K179: 0 | L179: 0 | M179: 0 | N179: Non | O179: Oui
B180: =IF(LEN('Détail des projets'!B180)=0,"",'Détail des projets'!B180) -> Serre de production fruitière chauffée à la biomasse | C180: =IF(LEN('Détail des projets'!C180)=0,"",'Détail des projets'!C180) -> La Vallée du Moulin Inc. | D180: =IF(LEN('Détail des projets'!G180)=0,"",'Détail des projets'!G180) -> 05-Estrie | E180: =IF(LEN('Détail des projets'!K180)=0,"",'Détail des projets'!K180) -> 165230.1 | F180: 364.3905936 | G180: À la fin du projet (suite au dernier versement) | H180: 21.59248932 | I180: QC-Québec | J180: Oui | K180: 20 | L180: 0 | M180: 364.3905936 | N180: Non | O180: Oui | P180: 0 | R180: 0 | T180: 0 | V180: 0 | X180: 0 | Z180: 0 | AB180: 150.3360099 | AD180: 362.3993881 | AF180: 362.3993881
B181: =IF(LEN('Détail des projets'!B181)=0,"",'Détail des projets'!B181) -> Centre commercial et écuries – Conversion à la biomasse forestière résiduelle | C181: =IF(LEN('Détail des projets'!C181)=0,"",'Détail des projets'!C181) -> L'Acadien Bricoleur inc. | D181: =IF(LEN('Détail des projets'!G181)=0,"",'Détail des projets'!G181) -> 17-Centre-du-Québec | E181: =IF(LEN('Détail des projets'!K181)=0,"",'Détail des projets'!K181) -> 76095.74 | F181: 59.03586455 | G181: À la fin du projet (suite au dernier versement) | H181: 57.79491037 | I181: QC-Québec | J181: Oui | K181: 25 | L181: 0 | M181: 59.03586455 | N181: Non | O181: Oui | P181: 0 | R181: 0 | T181: 0 | V181: 0 | X181: 0 | Z181: 0 | AB181: 0 | AD181: 0 | AF181: 0
B182: =IF(LEN('Détail des projets'!B182)=0,"",'Détail des projets'!B182) -> Système de chauffage biomasse air forcé | C182: =IF(LEN('Détail des projets'!C182)=0,"",'Détail des projets'!C182) -> Lauzon-Planchers de Bois Exclusifs inc. | D182: =IF(LEN('Détail des projets'!G182)=0,"",'Détail des projets'!G182) -> 07-Outaouais | E182: =IF(LEN('Détail des projets'!K182)=0,"",'Détail des projets'!K182) -> 10885 | F182: 0 | G182: À la fin du projet (suite au dernier versement) | I182: QC-Québec | J182: Oui | K182: 0 | L182: 0 | M182: 0 | N182: Non | O182: Oui
B183: =IF(LEN('Détail des projets'!B183)=0,"",'Détail des projets'!B183) -> Élimination des GES en remplaçant le mazout par l'implantation d'équipements opérant à la biomasse forestière résiduelle et aux granules de bois | C183: =IF(LEN('Détail des projets'!C183)=0,"",'Détail des projets'!C183) -> Le Sainte-Hélène, Auberge & Spa Nordique inc. | D183: =IF(LEN('Détail des projets'!G183)=0,"",'Détail des projets'!G183) -> 17-Centre-du-Québec | E183: =IF(LEN('Détail des projets'!K183)=0,"",'Détail des projets'!K183) -> 106013.5965 | F183: 80.39070608 | G183: À la fin du projet (suite au dernier versement) | H183: 62.79664337 | I183: QC-Québec | J183: Oui | K183: 25 | L183: 0 | M183: 80.39070608 | N183: Non | O183: Oui | P183: 0 | R183: 0 | T183: 0 | V183: 0 | X183: 0 | Z183: 26.57725529 | AB183: 80.17105934 | AD183: 79.9514126 | AF183: 79.9514126
B184: =IF(LEN('Détail des projets'!B184)=0,"",'Détail des projets'!B184) -> Réduction des GES à l'Érablière du Domaine Bouvoie inc. | C184: =IF(LEN('Détail des projets'!C184)=0,"",'Détail des projets'!C184) -> L'érablière du Domaine Bouvoie inc. | D184: =IF(LEN('Détail des projets'!G184)=0,"",'Détail des projets'!G184) -> 01-Bas-Saint-Laurent | E184: =IF(LEN('Détail des projets'!K184)=0,"",'Détail des projets'!K184) -> 30755.62807 | F184: 25.11833756 | G184: À la fin du projet (suite au dernier versement) | H184: 58.30615638 | I184: QC-Québec | J184: Oui | K184: 20 | L184: 0 | M184: 25.11833756 | N184: Non | O184: Oui | P184: 0 | R184: 0 | T184: 0 | V184: 0 | X184: 0 | Z184: 0 | AB184: 0.06862933759 | AD184: 24.98107888 | AF184: 24.98107888
B185: =IF(LEN('Détail des projets'!B185)=0,"",'Détail des projets'!B185) -> Remplacement d'un évaporateur fonctionnant à l'huile par un évaporateur fonctionnant à la biomasse forestière résiduelle | C185: =IF(LEN('Détail des projets'!C185)=0,"",'Détail des projets'!C185) -> L'Érablière Poirier & Guay SENC. | D185: =IF(LEN('Détail des projets'!G185)=0,"",'Détail des projets'!G185) -> 17-Centre-du-Québec | E185: =IF(LEN('Détail des projets'!K185)=0,"",'Détail des projets'!K185) -> 23102.59 | F185: 18.48207382 | G185: À la fin du projet (suite au dernier versement) | H185: 62.49999383 | I185: QC-Québec | J185: Oui | K185: 20 | L185: 0 | M185: 18.48207382 | N185: Non | O185: Oui | P185: 0 | R185: 0.1514924084 | T185: 18.43157635 | V185: 18.38107889 | X185: 18.38107889 | Z185: 18.38107889 | AB185: 18.43157635 | AD185: 18.38107889 | AF185: 18.38107889
B186: =IF(LEN('Détail des projets'!B186)=0,"",'Détail des projets'!B186) -> Étude de faisabilité pour un projet de conversion à la biomasse forestière résiduelle | C186: =IF(LEN('Détail des projets'!C186)=0,"",'Détail des projets'!C186) -> Les Entreprises Claudelaine ltée | D186: =IF(LEN('Détail des projets'!G186)=0,"",'Détail des projets'!G186) -> 17-Centre-du-Québec | E186: =IF(LEN('Détail des projets'!K186)=0,"",'Détail des projets'!K186) -> 20100 | F186: 0 | G186: À la fin du projet (suite au dernier versement) | I186: QC-Québec | J186: Oui | K186: 20 | L186: 0 | M186: 0 | N186: Non | O186: Oui
B187: =IF(LEN('Détail des projets'!B187)=0,"",'Détail des projets'!B187) -> Conversion à la biomasse forestière résiduelle | C187: =IF(LEN('Détail des projets'!C187)=0,"",'Détail des projets'!C187) -> Les Entreprises Claudelaine ltée | D187: =IF(LEN('Détail des projets'!G187)=0,"",'Détail des projets'!G187) -> 17-Centre-du-Québec | E187: =IF(LEN('Détail des projets'!K187)=0,"",'Détail des projets'!K187) -> 799701.57 | F187: 850.5275536 | G187: À la fin du projet (suite au dernier versement) | H187: 47.01209071 | I187: QC-Québec | J187: Oui | K187: 20 | L187: 0 | M187: 850.5275536 | N187: Non | O187: Oui | P187: 0 | R187: 388.0822444 | T187: 848.2037078 | V187: 845.879862 | X187: 845.879862 | Z187: 845.879862 | AB187: 848.2037078 | AD187: 845.879862 | AF187: 845.879862
B188: =IF(LEN('Détail des projets'!B188)=0,"",'Détail des projets'!B188) -> Implantation de chaudières à la biomasse | C188: =IF(LEN('Détail des projets'!C188)=0,"",'Détail des projets'!C188) -> Les entreprises Interco inc. | D188: =IF(LEN('Détail des projets'!G188)=0,"",'Détail des projets'!G188) -> 17-Centre-du-Québec | E188: =IF(LEN('Détail des projets'!K188)=0,"",'Détail des projets'!K188) -> 261423.75 | F188: 225.6708657 | G188: À la fin du projet (suite au dernier versement) | H188: 55.16330149 | I188: QC-Québec | J188: Oui | K188: 25 | L188: 0 | M188: 225.6708657 | N188: Non | O188: Oui | P188: 0 | R188: 0 | T188: 0 | V188: 0 | X188: 0 | Z188: 0 | AB188: 0 | AD188: 0 | AF188: 0
B189: =IF(LEN('Détail des projets'!B189)=0,"",'Détail des projets'!B189) -> M12-12 Équipements Raymond E. Laliberté | C189: =IF(LEN('Détail des projets'!C189)=0,"",'Détail des projets'!C189) -> Les Équipements de ferme Raymond E. Laliberté inc. | D189: =IF(LEN('Détail des projets'!G189)=0,"",'Détail des projets'!G189) -> 12-Chaudière-Appalaches | E189: =IF(LEN('Détail des projets'!K189)=0,"",'Détail des projets'!K189) -> 69036.73 | F189: 55.22938027 | G189: À la fin du projet (suite au dernier versement) | H189: 62.5 | I189: QC-Québec | J189: Oui | K189: 25 | L189: 0 | M189: 55.22938027 | N189: Non | O189: Oui | P189: 0 | R189: 0 | T189: 0 | V189: 0 | X189: 6.639597628 | Z189: 54.92758038 | AB189: 55.07848032 | AD189: 54.92758038 | AF189: 54.92758038
B190: =IF(LEN('Détail des projets'!B190)=0,"",'Détail des projets'!B190) -> Acériculture-Évaporateur à biomasse | C190: =IF(LEN('Détail des projets'!C190)=0,"",'Détail des projets'!C190) -> Les Fermes M & R Guilbault inc. | D190: =IF(LEN('Détail des projets'!G190)=0,"",'Détail des projets'!G190) -> 14-Lanaudière | E190: =IF(LEN('Détail des projets'!K190)=0,"",'Détail des projets'!K190) -> 16024.61 | F190: 12.20922018 | G190: À la fin du projet (suite au dernier versement) | H190: 62.50001954 | I190: QC-Québec | J190: Oui | K190: 20 | L190: 12.20922018 | M190: 12.20922018 | N190: Non | O190: Oui | P190: 0 | R190: 0 | T190: 0 | V190: 0 | X190: 0 | Z190: 0 | AB190: 0 | AD190: 0.6004534516 | AF190: 12.14250313
B191: =IF(LEN('Détail des projets'!B191)=0,"",'Détail des projets'!B191) -> Réseau de chauffage - 200, chemin des Industries, Lavaltrie | C191: =IF(LEN('Détail des projets'!C191)=0,"",'Détail des projets'!C191) -> Les Immeubles Marc Saulnier inc. | D191: =IF(LEN('Détail des projets'!G191)=0,"",'Détail des projets'!G191) -> 14-Lanaudière | E191: =IF(LEN('Détail des projets'!K191)=0,"",'Détail des projets'!K191) -> 209389.95 | F191: 174.7717443 | G191: À la fin du projet (suite au dernier versement) | H191: 57.05127017 | I191: QC-Québec | J191: Oui | K191: 25 | L191: 0 | M191: 174.7717443 | N191: Non | O191: Oui | P191: 0 | R191: 0 | T191: 0 | V191: 0 | X191: 0 | Z191: 0 | AB191: 0 | AD191: 0 | AF191: 0
B192: =IF(LEN('Détail des projets'!B192)=0,"",'Détail des projets'!B192) -> Conversion à la biomasse forestière résiduelle d’un séchoir de bois bûches | C192: =IF(LEN('Détail des projets'!C192)=0,"",'Détail des projets'!C192) -> Les Immeubles Marc Saulnier inc. | D192: =IF(LEN('Détail des projets'!G192)=0,"",'Détail des projets'!G192) -> 14-Lanaudière | E192: =IF(LEN('Détail des projets'!K192)=0,"",'Détail des projets'!K192) -> 131038.21 | F192: 100.8758483 | G192: À la fin du projet (suite au dernier versement) | H192: 59.80097417 | I192: QC-Québec | J192: Oui | K192: 20 | L192: 0 | M192: 100.8758483 | N192: Non | O192: Oui | P192: 0 | R192: 0 | T192: 0 | V192: 0 | X192: 0 | Z192: 0 | AB192: 0 | AD192: 0 | AF192: 0
B193: =IF(LEN('Détail des projets'!B193)=0,"",'Détail des projets'!B193) -> Chauffage à la biomasse forestière résiduelle - condos industriels | C193: =IF(LEN('Détail des projets'!C193)=0,"",'Détail des projets'!C193) -> Les Investissements Bernard Guay inc. | D193: =IF(LEN('Détail des projets'!G193)=0,"",'Détail des projets'!G193) -> 15-Laurentides | E193: =IF(LEN('Détail des projets'!K193)=0,"",'Détail des projets'!K193) -> 152929.35 | F193: 117.9675889 | G193: À la fin du projet (suite au dernier versement) | H193: 61.73178642 | I193: QC-Québec | J193: Oui | K193: 20 | L193: 0 | M193: 117.9675889 | N193: Non | O193: Oui | P193: 0 | R193: 0 | T193: 0 | V193: 0 | X193: 0 | Z193: 0 | AB193: 0 | AD193: 0 | AF193: 0
B194: =IF(LEN('Détail des projets'!B194)=0,"",'Détail des projets'!B194) -> Projet de chauffage de serres à la biomasse forestière | C194: =IF(LEN('Détail des projets'!C194)=0,"",'Détail des projets'!C194) -> Les Jardins du Petit-Pré 2.0 inc. | D194: =IF(LEN('Détail des projets'!G194)=0,"",'Détail des projets'!G194) -> 03-Capitale-Nationale | E194: =IF(LEN('Détail des projets'!K194)=0,"",'Détail des projets'!K194) -> 5722.5 | F194: 0 | G194: À la fin du projet (suite au dernier versement) | I194: QC-Québec | J194: Oui | L194: 0 | M194: 0 | N194: Non | O194: Oui
B195: =IF(LEN('Détail des projets'!B195)=0,"",'Détail des projets'!B195) -> Économie de GES Érablière Guy Laflamme | C195: =IF(LEN('Détail des projets'!C195)=0,"",'Détail des projets'!C195) -> Les Patios et Planchers G. L. inc. | D195: =IF(LEN('Détail des projets'!G195)=0,"",'Détail des projets'!G195) -> 17-Centre-du-Québec | E195: =IF(LEN('Détail des projets'!K195)=0,"",'Détail des projets'!K195) -> 21057.29 | F195: 16.84583051 | G195: À la fin du projet (suite au dernier versement) | H195: 59.36569879 | I195: QC-Québec | J195: Oui | K195: 20 | L195: 0 | M195: 16.84583051 | N195: Non | O195: Oui | P195: 0 | R195: 0 | T195: 0 | V195: 0 | X195: 0 | Z195: 0 | AB195: 0 | AD195: 3.958309902 | AF195: 16.75377679
B196: =IF(LEN('Détail des projets'!B196)=0,"",'Détail des projets'!B196) -> Chauffage à la biomasse forestière résiduelle - Les Productions horticoles Demers inc. | C196: =IF(LEN('Détail des projets'!C196)=0,"",'Détail des projets'!C196) -> Les Productions horticoles Demers inc. | D196: =IF(LEN('Détail des projets'!G196)=0,"",'Détail des projets'!G196) -> 12-Chaudière-Appalaches | E196: =IF(LEN('Détail des projets'!K196)=0,"",'Détail des projets'!K196) -> 1442812.5 | F196: 2900.082106 | G196: À la fin du projet (suite au dernier versement) | H196: 24.8753733 | I196: QC-Québec | J196: Oui | K196: 20 | L196: 0 | M196: 2900.082106 | N196: Non | O196: Oui | P196: 0 | R196: 0 | T196: 713.1349442 | V196: 2884.234663 | X196: 2884.234663 | Z196: 2884.234663 | AB196: 2892.158385 | AD196: 2884.234663 | AF196: 2884.234663
B197: =IF(LEN('Détail des projets'!B197)=0,"",'Détail des projets'!B197) -> Conversion à la biomasse forestière résiduelle des séchoirs à bois | C197: =IF(LEN('Détail des projets'!C197)=0,"",'Détail des projets'!C197) -> Les Séchoirs St-Gabriel | D197: =IF(LEN('Détail des projets'!G197)=0,"",'Détail des projets'!G197) -> 14-Lanaudière | E197: =IF(LEN('Détail des projets'!K197)=0,"",'Détail des projets'!K197) -> 13285 | F197: 0 | G197: À la fin du projet (suite au dernier versement) | I197: QC-Québec | J197: Oui | K197: 10.09385109 | L197: 0 | M197: 0 | N197: Non | O197: Oui
B198: =IF(LEN('Détail des projets'!B198)=0,"",'Détail des projets'!B198) -> Complexe de serres haute efficacité | C198: =IF(LEN('Détail des projets'!C198)=0,"",'Détail des projets'!C198) -> Les Serres Bergeron enr. | D198: =IF(LEN('Détail des projets'!G198)=0,"",'Détail des projets'!G198) -> 15-Laurentides | E198: =IF(LEN('Détail des projets'!K198)=0,"",'Détail des projets'!K198) -> 5407.5 | F198: 0 | G198: À la fin du projet (suite au dernier versement) | I198: QC-Québec | J198: Oui | M198: 0 | N198: Non | O198: Oui
B199: =IF(LEN('Détail des projets'!B199)=0,"",'Détail des projets'!B199) -> Nouvelles Infrastructures de production-Mesures d'efficacité énergétique et chauffage à la biomasse forestière résiduelle | C199: =IF(LEN('Détail des projets'!C199)=0,"",'Détail des projets'!C199) -> Les Serres Biologico inc. | D199: =IF(LEN('Détail des projets'!G199)=0,"",'Détail des projets'!G199) -> 15-Laurentides | E199: =IF(LEN('Détail des projets'!K199)=0,"",'Détail des projets'!K199) -> 15262.5 | F199: 0 | G199: À la fin du projet (suite au dernier versement) | I199: QC-Québec | J199: Oui | K199: 19.15869331 | L199: 0 | M199: 0 | N199: Non | O199: Oui
B200: =IF(LEN('Détail des projets'!B200)=0,"",'Détail des projets'!B200) -> Serres Gallichan - Chaufferie à la biomasse | C200: =IF(LEN('Détail des projets'!C200)=0,"",'Détail des projets'!C200) -> Les Serres Gallichan ltée | D200: =IF(LEN('Détail des projets'!G200)=0,"",'Détail des projets'!G200) -> 08-Abitibi-Témiscamingue | E200: =IF(LEN('Détail des projets'!K200)=0,"",'Détail des projets'!K200) -> 429400.46 | F200: 684.8729717 | G200: À la fin du projet (suite au dernier versement) | H200: 31.3489127 | I200: QC-Québec | J200: Oui | K200: 20 | L200: 0 | M200: 684.8729717 | N200: Non | O200: Oui | P200: 0 | R200: 0 | T200: 0 | V200: 0 | X200: 99.17559426 | Z200: 681.1304964 | AB200: 683.0017341 | AD200: 681.1304964 | AF200: 681.1304964
B201: =IF(LEN('Détail des projets'!B201)=0,"",'Détail des projets'!B201) -> Nouveau complexe de serres de 10 ha chauffé à la biomasse forestière résiduelle | C201: =IF(LEN('Détail des projets'!C201)=0,"",'Détail des projets'!C201) -> Les Serres Lefort inc. | D201: =IF(LEN('Détail des projets'!G201)=0,"",'Détail des projets'!G201) -> 16-Montérégie | E201: =IF(LEN('Détail des projets'!K201)=0,"",'Détail des projets'!K201) -> 3235350 | F201: 8255.280545 | G201: À la fin du projet (suite au dernier versement) | H201: 19.59563932 | I201: QC-Québec | J201: Oui | K201: 24.11650276 | L201: 0 | M201: 8255.280545 | N201: Non | O201: Oui | P201: 0 | R201: 0 | T201: 0 | V201: 2706.649359 | X201: 8210.169722 | Z201: 8210.169722 | AB201: 8232.725133 | AD201: 8210.169722 | AF201: 8210.169722
B202: =IF(LEN('Détail des projets'!B202)=0,"",'Détail des projets'!B202) -> Agrandissement de la surface de production - mesures d'efficacité énergétique - chauffage à la biomasse forestière résiduelle | C202: =IF(LEN('Détail des projets'!C202)=0,"",'Détail des projets'!C202) -> Les Serres Royales inc. | D202: =IF(LEN('Détail des projets'!G202)=0,"",'Détail des projets'!G202) -> 15-Laurentides | E202: =IF(LEN('Détail des projets'!K202)=0,"",'Détail des projets'!K202) -> 12652.5 | F202: 0 | G202: À la fin du projet (suite au dernier versement) | I202: QC-Québec | J202: Oui | K202: 19.59067345 | L202: 0 | M202: 0 | N202: Non | O202: Oui
B203: =IF(LEN('Détail des projets'!B203)=0,"",'Détail des projets'!B203) -> Nouvelles infrastructures de production - Mesures d'efficacité énergétique et chauffage à la biomasse forestière résiduelle | C203: =IF(LEN('Détail des projets'!C203)=0,"",'Détail des projets'!C203) -> Les Serres Sagami inc. | D203: =IF(LEN('Détail des projets'!G203)=0,"",'Détail des projets'!G203) -> 16-Montérégie | E203: =IF(LEN('Détail des projets'!K203)=0,"",'Détail des projets'!K203) -> 15267.5 | F203: 0 | G203: À la fin du projet (suite au dernier versement) | I203: QC-Québec | J203: Oui | K203: 19.04965019 | L203: 0 | M203: 0 | N203: Non | O203: Oui
B204: =IF(LEN('Détail des projets'!B204)=0,"",'Détail des projets'!B204) -> Nouvelles infrastructures de production - Mesures d'efficacité énergétique - Chauffage à la biomasse forestière résiduelle | C204: =IF(LEN('Détail des projets'!C204)=0,"",'Détail des projets'!C204) -> Les Serres Sagami St-Janvier Inc. | D204: =IF(LEN('Détail des projets'!G204)=0,"",'Détail des projets'!G204) -> 15-Laurentides | E204: =IF(LEN('Détail des projets'!K204)=0,"",'Détail des projets'!K204) -> 14637.5 | F204: 0 | G204: À la fin du projet (suite au dernier versement) | I204: QC-Québec | J204: Oui | K204: 19.43679237 | L204: 0 | M204: 0 | N204: Non | O204: Oui
B205: =IF(LEN('Détail des projets'!B205)=0,"",'Détail des projets'!B205) -> Projet d'expansion chauffée à la biomasse | C205: =IF(LEN('Détail des projets'!C205)=0,"",'Détail des projets'!C205) -> Les Serres Stéphane Bertrand inc. | D205: =IF(LEN('Détail des projets'!G205)=0,"",'Détail des projets'!G205) -> 15-Laurentides | E205: =IF(LEN('Détail des projets'!K205)=0,"",'Détail des projets'!K205) -> 2339136.869 | F205: 0 | G205: À la fin du projet (suite au dernier versement) | H205: 0 | I205: QC-Québec | J205: Oui | K205: 18.47842789 | M205: 0 | N205: Non | O205: Oui
B206: =IF(LEN('Détail des projets'!B206)=0,"",'Détail des projets'!B206) -> Chauffage à biomasse à la serre de recherche | C206: =IF(LEN('Détail des projets'!C206)=0,"",'Détail des projets'!C206) -> Les Tourbières Berger Ltée | D206: =IF(LEN('Détail des projets'!G206)=0,"",'Détail des projets'!G206) -> 01-Bas-Saint-Laurent | E206: =IF(LEN('Détail des projets'!K206)=0,"",'Détail des projets'!K206) -> 219149.3399 | F206: 238.968676 | G206: À la fin du projet (suite au dernier versement) | H206: 43.34831181 | I206: QC-Québec | J206: Oui | K206: 20 | L206: 0 | M206: 238.968676 | N206: Non | O206: Oui | P206: 0 | R206: 0 | T206: 0 | V206: 0 | X206: 0 | Z206: 0 | AB206: 22.27 | AD206: 267.2182536 | AF206: 267.2182536
B207: =IF(LEN('Détail des projets'!B207)=0,"",'Détail des projets'!B207) -> Conversion thermique vers la biomasse forestière résiduelle (chauffage et procédés de transformation) | C207: =IF(LEN('Détail des projets'!C207)=0,"",'Détail des projets'!C207) -> Les Viandes biologiques de Charlevoix inc. | D207: =IF(LEN('Détail des projets'!G207)=0,"",'Détail des projets'!G207) -> 03-Capitale-Nationale | E207: =IF(LEN('Détail des projets'!K207)=0,"",'Détail des projets'!K207) -> 586100.697 | F207: 847.4789041 | G207: À la fin du projet (suite au dernier versement) | H207: 32.93245043 | I207: QC-Québec | J207: Oui | K207: 25 | L207: 0 | M207: 847.4789041 | N207: Non | O207: Oui | P207: 0 | R207: 0 | T207: 0 | V207: 0 | X207: 0 | Z207: 0 | AB207: 317.22571 | AD207: 842.8478718 | AF207: 842.8478718
B208: =IF(LEN('Détail des projets'!B208)=0,"",'Détail des projets'!B208) -> Les Volailles S.B. inc. - Réseau de chaleur | C208: =IF(LEN('Détail des projets'!C208)=0,"",'Détail des projets'!C208) -> Les Volailles S.B. inc. | D208: =IF(LEN('Détail des projets'!G208)=0,"",'Détail des projets'!G208) -> 16-Montérégie | E208: =IF(LEN('Détail des projets'!K208)=0,"",'Détail des projets'!K208) -> 229112.66 | F208: 183.290132 | G208: À la fin du projet (suite au dernier versement) | H208: 62.49999865 | I208: QC-Québec | J208: Oui | K208: 20 | L208: 0 | M208: 183.290132 | N208: Non | O208: Oui | P208: 0 | R208: 0 | T208: 14.02219589 | V208: 182.2885465 | X208: 182.2885465 | Z208: 182.2885465 | AB208: 182.7893392 | AD208: 182.2885465 | AF208: 182.2885465
B209: =IF(LEN('Détail des projets'!B209)=0,"",'Détail des projets'!B209) -> Serre de fraise – Efficacité énergétique et conversion à la biomasse forestière résiduelle | C209: =IF(LEN('Détail des projets'!C209)=0,"",'Détail des projets'!C209) -> Les Volailles S.B. inc. | D209: =IF(LEN('Détail des projets'!G209)=0,"",'Détail des projets'!G209) -> 16-Montérégie | E209: =IF(LEN('Détail des projets'!K209)=0,"",'Détail des projets'!K209) -> 65168.41369 | F209: 49.66667037 | G209: À la fin du projet (suite au dernier versement) | H209: 62.48169591 | I209: QC-Québec | J209: Oui | K209: 20 | L209: 0 | M209: 49.66667037 | N209: Non | O209: Oui | P209: 0 | R209: 0 | T209: 0 | V209: 0 | X209: 0 | Z209: 0 | AB209: 10.31329767 | AD209: 49.3952678 | AF209: 49.3952678
B210: =IF(LEN('Détail des projets'!B210)=0,"",'Détail des projets'!B210) -> Installation d'un système de chauffage à la biomasse forestière | C210: =IF(LEN('Détail des projets'!C210)=0,"",'Détail des projets'!C210) -> Levaco inc. | D210: =IF(LEN('Détail des projets'!G210)=0,"",'Détail des projets'!G210) -> 12-Chaudière-Appalaches | E210: =IF(LEN('Détail des projets'!K210)=0,"",'Détail des projets'!K210) -> 75187.14 | F210: 154.1145956 | G210: À la fin du projet (suite au dernier versement) | H210: 23.23167372 | I210: QC-Québec | J210: Oui | K210: 20 | L210: 0 | M210: 154.1145956 | N210: Non | O210: Oui | P210: 0 | R210: 0 | T210: 0 | V210: 0 | X210: 0 | Z210: 0 | AB210: 63.58279763 | AD210: 153.2724393 | AF210: 153.2724393
B211: =IF(LEN('Détail des projets'!B211)=0,"",'Détail des projets'!B211) -> Installation d'une chaudière à la biomasse pour le chauffage des bâtiments | C211: =IF(LEN('Détail des projets'!C211)=0,"",'Détail des projets'!C211) -> Litière Ouellet | D211: =IF(LEN('Détail des projets'!G211)=0,"",'Détail des projets'!G211) -> 01-Bas-Saint-Laurent | E211: =IF(LEN('Détail des projets'!K211)=0,"",'Détail des projets'!K211) -> 12500 | F211: 0 | G211: À la fin du projet (suite au dernier versement) | I211: QC-Québec | J211: Oui | L211: 0 | M211: 0 | N211: Non | O211: Oui
B212: =IF(LEN('Détail des projets'!B212)=0,"",'Détail des projets'!B212) -> Augmentation de la production d'énergie chez LVL Global | C212: =IF(LEN('Détail des projets'!C212)=0,"",'Détail des projets'!C212) -> LVL Global inc. | D212: =IF(LEN('Détail des projets'!G212)=0,"",'Détail des projets'!G212) -> 08-Abitibi-Témiscamingue | E212: =IF(LEN('Détail des projets'!K212)=0,"",'Détail des projets'!K212) -> 676987.5 | F212: 837.5825095 | G212: À la fin du projet (suite au dernier versement) | H212: 38.48874545 | I212: QC-Québec | J212: Oui | K212: 20 | L212: 0 | M212: 837.5825095 | N212: Non | O212: Oui | P212: 0 | R212: 0 | T212: 0 | V212: 0 | X212: 0 | Z212: 0 | AB212: 0 | AD212: 0 | AF212: 0
B213: =IF(LEN('Détail des projets'!B213)=0,"",'Détail des projets'!B213) -> Remplacement du fourneau de l’évaporateur à l’huile pour un fourneau D & G aux granules | C213: =IF(LEN('Détail des projets'!C213)=0,"",'Détail des projets'!C213) -> Machinerie L.A.M. inc. | D213: =IF(LEN('Détail des projets'!G213)=0,"",'Détail des projets'!G213) -> 17-Centre-du-Québec | E213: =IF(LEN('Détail des projets'!K213)=0,"",'Détail des projets'!K213) -> 68349.32 | F213: 66.73789759 | G213: À la fin du projet (suite au dernier versement) | H213: 51.20727688 | I213: QC-Québec | J213: Oui | K213: 20 | L213: 0 | M213: 66.73789759 | N213: Non | O213: Oui | P213: 0 | R213: 0 | T213: 0 | V213: 37.19817243 | X213: 66.37320962 | Z213: 66.37320962 | AB213: 66.55555361 | AD213: 66.37320962 | AF213: 66.37320962
B214: =IF(LEN('Détail des projets'!B214)=0,"",'Détail des projets'!B214) -> Remplacement d’un évaporateur à l’huile pour un évaporateur aux granules | C214: =IF(LEN('Détail des projets'!C214)=0,"",'Détail des projets'!C214) -> Mesurage J. Robert inc. | D214: =IF(LEN('Détail des projets'!G214)=0,"",'Détail des projets'!G214) -> 01-Bas-Saint-Laurent | E214: =IF(LEN('Détail des projets'!K214)=0,"",'Détail des projets'!K214) -> 65323.46 | F214: 52.25876824 | G214: À la fin du projet (suite au dernier versement) | H214: 62.49999971 | I214: QC-Québec | J214: Oui | K214: 20 | L214: 0 | M214: 52.25876824 | N214: Non | O214: Oui | P214: 0 | R214: 8.281444147 | T214: 52.11598472 | V214: 51.9732012 | X214: 51.9732012 | Z214: 51.9732012 | AB214: 52.11598472 | AD214: 51.9732012 | AF214: 51.9732012
... 63 more rows

Sheet Indicateurs
B2: =Utilitaire!E8 -> Plan d'action 2013-2020 sur les changements climatiques
B3: ="Action " & Accueil!D58 -> Action en cours
B4: =Accueil!D55 -> 24.1.1 | C4: =Accueil!E55 -> Soutien au développement des bioénergies pour réduire les émissions de GES à court terme – Programme Biomasse forestière résiduelle - Volet TEQ
B5: Ministère porteur: | C5: =Accueil!$D$65 -> MERN (SITE)
B6: Indicateurs
B20: Informations en date du : | E20: 2022-03-31
B22: INDICATEURS DE PERFORMANCE | H22: =IF(OR(AND(MONTH(#REF!)>6,YEAR(#REF!)=VALUE(MID(G23,1,4))),YEAR(#REF!)>VALUE(MID(G23,1,4))),"Réel","Prévu") ->  | I22: =IF(OR(AND(MONTH(#REF!)>6,YEAR(#REF!)=VALUE(MID(H23,1,4))),YEAR(#REF!)>VALUE(MID(H23,1,4))),"Réel","Prévu") ->  | J22: =IF(OR(AND(MONTH(#REF!)>6,YEAR(#REF!)=VALUE(MID(I23,1,4))),YEAR(#REF!)>VALUE(MID(I23,1,4))),"Réel","Prévu") ->  | K22: =IF(OR(AND(MONTH(#REF!)>6,YEAR(#REF!)=VALUE(MID(J23,1,4))),YEAR(#REF!)>VALUE(MID(J23,1,4))),"Réel","Prévu") ->  | L22: =IF(OR(AND(MONTH(#REF!)>6,YEAR(#REF!)=VALUE(MID(K23,1,4))),YEAR(#REF!)>VALUE(MID(K23,1,4))),"Réel","Prévu") ->  | M22: =IF(OR(AND(MONTH(#REF!)>6,YEAR(#REF!)=VALUE(MID(L23,1,4))),YEAR(#REF!)>VALUE(MID(L23,1,4))),"Réel","Prévu") ->  | N22: =IF(OR(AND(MONTH(#REF!)>6,YEAR(#REF!)=VALUE(MID(M23,1,4))),YEAR(#REF!)>VALUE(MID(M23,1,4))),"Réel","Prévu") ->  | O22: =IF(OR(AND(MONTH(#REF!)>6,YEAR(#REF!)=VALUE(MID(N23,1,4))),YEAR(#REF!)>VALUE(MID(N23,1,4))),"Réel","Prévu") ->  | P22: =IF(OR(AND(MONTH(#REF!)>6,YEAR(#REF!)=VALUE(MID(O23,1,4))),YEAR(#REF!)>VALUE(MID(O23,1,4))),"Réel","Prévu") ->  | Q22: =IF(OR(AND(MONTH(#REF!)>6,YEAR(#REF!)=VALUE(MID(P23,1,4))),YEAR(#REF!)>VALUE(MID(P23,1,4))),"Réel","Prévu") ->  | S22: =IF(OR(AND(MONTH(#REF!)>6,YEAR(#REF!)=VALUE(MID(Q23,1,4))),YEAR(#REF!)>VALUE(MID(Q23,1,4))),"Réel","Prévu") ->  | T22: =MONTH(#REF!) -> 
B23: Cible | C23: Unité de mesure | D23: Année prévue d'atteinte de la cible | E23: Description de l'indicateur | F23: Type d'indicateur | G23: 2013-2014 | H23: 2014-2015 | I23: 2015-2016 | J23: 2016-2017 | K23: 2017-2018 | L23: 2018-2019 | M23: 2019-2020 | N23: 2020-2021 | O23: 2021-2022 | P23: 2022-2023 | Q23: 2023-2024 | R23: 2024-2025 | S23: RÉSULTAT À COMPARER AVEC LA CIBLE | T23: Pourcentage d'atteinte de la cible | U23: Commentaires sur les résultats
G24: Réel | H24: Réel | I24: Réel | J24: Réel | K24: Réel | L24: Réel | M24: Réel | N24: Réel | O24: Réel | P24: Prévu | Q24: Prévu | R24: Prévu | U24: (facultatif)
A25: 1 | G25: =PourcentageAvancementJbf(Utilitaire!C229,'Détail des projets'!O276,1000000*Accueil!$D$67) -> 0 | H25: =PourcentageAvancementJbf(Utilitaire!D229,'Détail des projets'!P276,1000000*Accueil!$D$67) -> 0.02530852706 | I25: =PourcentageAvancementJbf(Utilitaire!E229,'Détail des projets'!Q276,1000000*Accueil!$D$67) -> 0.05269715388 | J25: =PourcentageAvancementJbf(Utilitaire!F229,'Détail des projets'!R276,1000000*Accueil!$D$67) -> 0.04717985092 | K25: =PourcentageAvancementJbf(Utilitaire!G229,'Détail des projets'!S276,1000000*Accueil!$D$67) -> 0.02646341262 | L25: =PourcentageAvancementJbf(Utilitaire!H229,'Détail des projets'!T276,1000000*Accueil!$D$67) -> 0.01731123544 | M25: =PourcentageAvancementJbf(Utilitaire!I229,'Détail des projets'!U276,1000000*Accueil!$D$67) -> 0.02745816339 | N25: =PourcentageAvancementJbf(Utilitaire!J229,'Détail des projets'!V276,1000000*Accueil!$D$67) -> 0.03570455796 | O25: =PourcentageAvancementJbf(Utilitaire!K229,'Détail des projets'!W276,1000000*Accueil!$D$67) -> 0.02967776536 | T25: =IF(COUNTA(B25)=1,IF(COUNTA(S25)=1,IF(F25="Minimum à atteindre",IF(B25=0,IF(S25>0,1,0),S25/B25),IF(F25="Maximum à ne pas dépasser",IF(B25=0,IF(S25<0,1,0),(B25-S25)/B25+1),IF(F25="Binaire",IF(B25=S25,1,0),""))),0),"") -> 
A26: 2 | C26: Emplois | E26: Emplois créés | S26: 2292 | T26: =IF(COUNTA(B26)=1,IF(COUNTA(S26)=1,IF(F26="Minimum à atteindre",IF(B26=0,IF(S26>0,1,0),S26/B26),IF(F26="Maximum à ne pas dépasser",IF(B26=0,IF(S26<0,1,0),(B26-S26)/B26+1),IF(F26="Binaire",IF(B26=S26,1,0),""))),0),"") -> 
A27: 3 | C27: Dossiers | E27: Nombre de dossiers acceptés | S27: 233
A28: 4 | C28: Tonnes éq. CO2 | E28: Réduction annuel des émissions de gaz à effet de serre (GES) pour les dossiers en cours | F28: minimum à atteindre | S28: 100077.19
A29: 5 | C29: Tonnes éq. CO2 | E29: Réduction annuel des émissions de gaz à effet de serre (GES) pour les dossiers en traitement | F29: minimum à atteindre | S29: 0
A30: 6 | B30: 79400 | C30: Tonnes éq. CO2 | D30: 2020 | E30: Réduction annuelle des émissions de gaz à effet de serre (GES) | F30: minimum à atteindre | G30: 6.66 | H30: 858.76 | I30: 4082.47 | J30: 12783.8 | K30: 32881.41 | L30: 38406.01 | M30: 42930.27 | N30: 48619.56 | O30: 49640.2 | S30: 49640.2 | T30: 0.6251914358 | U30: Les projets de nos participants se réalisent sur une période de 36 à 48 mois. Les projets reçues et acceptés ces 2-3 dernières années vont produire des résultats réels dans le courant des 2-3 prochaines années.
A31: 7 | C31: $ / Tonne éq. CO2 | E31: VAN/t | S31: 19.79
A32: 8
A33: 9
A34: 10
A35: 11 | T35: =IF(COUNTA(B35)=1,IF(COUNTA(S35)=1,IF(F35="Minimum à atteindre",IF(B35=0,IF(S35>0,1,0),S35/B35),IF(F35="Maximum à ne pas dépasser",IF(B35=0,IF(S35<0,1,0),(B35-S35)/B35+1),IF(F35="Binaire",IF(B35=S35,1,0),""))),0),"") -> 
A36: 12 | T36: =IF(COUNTA(B36)=1,IF(COUNTA(S36)=1,IF(F36="Minimum à atteindre",IF(B36=0,IF(S36>0,1,0),S36/B36),IF(F36="Maximum à ne pas dépasser",IF(B36=0,IF(S36<0,1,0),(B36-S36)/B36+1),IF(F36="Binaire",IF(B36=S36,1,0),""))),0),"") -> 
A37: 13 | T37: =IF(COUNTA(B37)=1,IF(COUNTA(S37)=1,IF(F37="Minimum à atteindre",IF(B37=0,IF(S37>0,1,0),S37/B37),IF(F37="Maximum à ne pas dépasser",IF(B37=0,IF(S37<0,1,0),(B37-S37)/B37+1),IF(F37="Binaire",IF(B37=S37,1,0),""))),0),"") -> 
A38: 14
A39: 15 | T39: =IF(COUNTA(B39)=1,IF(COUNTA(S39)=1,IF(F39="Minimum à atteindre",IF(B39=0,IF(S39>0,1,0),S39/B39),IF(F39="Maximum à ne pas dépasser",IF(B39=0,IF(S39<0,1,0),(B39-S39)/B39+1),IF(F39="Binaire",IF(B39=S39,1,0),""))),0),"") -> 
A40: 16 | T40: =IF(COUNTA(B40)=1,IF(COUNTA(S40)=1,IF(F40="Minimum à atteindre",IF(B40=0,IF(S40>0,1,0),S40/B40),IF(F40="Maximum à ne pas dépasser",IF(B40=0,IF(S40<0,1,0),(B40-S40)/B40+1),IF(F40="Binaire",IF(B40=S40,1,0),""))),0),"") -> 
A41: 17
A42: 18
A43: 19
A44: 20
A45: 21 | AQ45: FALSE
B69: PRÉVISIONS DES RETOMBÉES SUR LES RÉDUCTIONS DES ÉMISSIONS DE GES | F69: Ce tableau et les résultats par action qu'il contient ne seront pas publiés. L'objectif est de permettre une appréciation à l'échelle du PACC des résultats escomptés. Veuillez le compléter et vérifier l'information qui y est contenue, au meilleur de vos connaissances et avec l'information dont vous disposez.
B70: Niveau de certitude | E70: Lieu | F70: 2020 | G70: 2021 | H70: 2022 | I70: 2023 | J70: 2024 | K70: 2025 | L70: 2026 | M70: 2030 | N70: 2035 | O70: 2027 | P70: 2038 | Q70: 2029 | R70: 2031 | S70: 2040 | T70: 2050 | U70: Commentaires sur les résultats
B71: Pérennité des réductions d'émissions de GES réalisées à ce jour (T éq. CO2) | E71: Au Québec
E72: Hors Québec
E73: Non distingué
B74: Développement du potentiel de réduction des émissions de GES pour le futur (T éq. CO2) | E74: Au Québec
E75: Hors Québec
E76: Non distingué
B153: ADAPTATION AUX EFFETS DES CHANGEMENTS CLIMATIQUES
B154: Solutions d'adaptation proposées | D154: Lignes concernées de l'onglet Détail des projets | E154: Étape | F154: Ajustements | H154: Risques | J154: Effets des changements climatiques | L154: Région | S154: Échelle humaine | U154: Échelle environnementale
F155: La solution agit sur : | H155: afin de protéger : | J155: de : | S155: (estimation du nombre de personnes desservies) | U155: (estimation du nombre d'espèces desservies)
D156: 25
D157: 26
D158: 27
D159: 28
D160: 29
D161: 30
D162: 31
D163: 32
B292: Ajouter une ligne

Sheet Évaluation (hidden)
B2: =Utilitaire!E8 -> Plan d'action 2013-2020 sur les changements climatiques | H2: Conseils de rédaction : | M2: Informations en date du : | N2: =Utilitaire!G6 -> 2022-03-31
B3: ="Action " & Accueil!D58 -> Action en cours | H3: - Veuillez compléter la section "Évaluation de l'action" (OBLIGATOIRE) - ligne 204 (Fin du PACC) - Cet onglet sera pour usage interne seulement, il ne sera pas publié. - Des bulles commentaires dans chacun des titres vous aideront à remplir adéquatement les différentes colonnes. - Les cases de la section « Évaluation de l'action » sont limitées à 3000 caractères.
B4: =Accueil!D55 -> 24.1.1 | C4: =Accueil!E55 -> Soutien au développement des bioénergies pour réduire les émissions de GES à court terme – Programme Biomasse forestière résiduelle - Volet TEQ
B5: Ministère porteur: | C5: =Accueil!$D$65 -> MERN (SITE)
B6: Évaluation
B7: Informations en date du : | D7: 2022-03-31
B38: Est-ce qu'une production d'un rapport d'évaluation complet est prévue dans le cadre de cette action :
B40: Liste des livrables
B41: Titre du document | D41: Date du document | F41: Type de document | I41: Date prévue de transmission au BECC | K41: Date réelle de transmission au BECC | M41: Référence | N41: Commentaires
B42: Rapport d'évaluation - Biomasse forestière résiduelle | D42: 2021-05-11 | F42: Rapport d'évaluation | M42: https://transitionenergetique.gouv.qc.ca/fileadmin/medias/pdf/evaluation-programmes/BFR_rapport_evaluation_2021.pdf
B146: Ajouter une ligne
B204: Évaluation de l'action
C209: Début : | D209: =Accueil!$D$68 -> 2013-11-29 | I209: Fin : | J209: =Accueil!$K$68 -> 2022-11-30
B210: Résultats attendus : | C210: =IF(LEN(Description!C49)>0,Description!C49,"") -> Les résultats directs attendus sont l'économie d'énergie, la réduction des émissions de GES et la mise en place d'une masse critique de projets d'utilisation énergétique de la biomasse forestière résiduelle à l'échelle provinciale qui est essentielle afin de développer les différents maillons de la chaîne de valeur, tels que les approvisionnements en biomasse forestière et les centres de conditionnement. Une certaine proportion de la biomasse forestière résiduelle est disponible pour la production de produits énergétiques à valeur ajoutée, renouvelables et à faibles émissions de GES. Les parties d'arbres non commerciales, les copeaux, les granules peuvent avantageusement remplacer les combustibles fossiles pour la chauffe des bâtiments. À valeur égale, leur utilisation entraîne beaucoup plus de retombées dans les régions que les combustibles fossiles qu'ils remplacent.
B211: Résultats obtenus (Cibles, indicateurs et description) : | C211: =IF(COUNTA(Indicateurs!B25:B45)=0,0,AVERAGE(Indicateurs!$T$25:$T$45)) -> 0.6251914358 | D211: =IF(LEN(Description!C50)>0,Description!C50,"") -> 
D212: =IF(LEN(Description!C51)>0,Description!C51,"") -> En date du 31 mars 2022, 47 analyses et 186 projets d'implantation ont été acceptés par le ministre, pour une réduction annuelle potentielle de 149,7 kt de CO2, nécessitant des investissements de 163,8 M$ grâce à des aides financières de 59,3 M$ pour un coût moyen de l'aide financière de 19,79 $/t sur la durée de vie (20 ans). Ces investissements entraîneraient la création de 2 292 emplois.
B217: Type d'évaluation :
B218: Est-ce que les résultats obtenus dans le cadre de l'action sont satisfaisants? | C218: Oui | D218: Les projets de nos participants se réalisent sur une période de 36 à 48 mois. Les projets reçues et acceptés ces 2-3 dernières années vont produire des résultats réels dans le courant des 2-3 prochaines années.
B219: Quelles sont les améliorations possibles pour le futur?
B220: Quels sont les forces et les points positifs de l'action?
B221: Quelle est votre recommandation quant à la poursuite de cette action?
B222: Autres commentaires | C222: Reddition de compte à revoir pour nos programmes dans le cadre du PEV. Le détail des décaissements par année financière pour chacun des projets complexifie cette reddition de compte sans pour autant la valoriser.

Sheet Commentaires (hidden)
B2: =Utilitaire!E8 -> Plan d'action 2013-2020 sur les changements climatiques | T2: COF
B3: ="Action " & Accueil!D58 -> Action en cours | T3: Frais
B4: =Accueil!D55 -> 24.1.1 | C4: =Accueil!E55 -> Soutien au développement des bioénergies pour réduire les émissions de GES à court terme – Programme Biomasse forestière résiduelle - Volet TEQ | T4: ETC
B5: Ministère porteur: | C5: =Accueil!$D$65 -> MERN (SITE) | T5: Détail des projets
B6: Commentaires | T6: Détail des projets (GES)
T7: Bilan GES
T8: Indicateurs
T9: Toutes-Autre
T12: 2013-2014
T13: 2014-2015
T14: 2015-2016
T15: 2016-2017
T16: 2017-2018
T17: 2018-2019
T18: 2019-2020
T19: 2020-2021
B20: Informations en date du : | E20: 2022-03-31 | T20: 2021-2022
T21: 2022-2023
T22: 2023-2024
B24: Commentaires | M24: Section concernée | O24: Année | P24: Exercice | Q24: nom Commentateur | R24: courriel Commentateur
T32: juin
T33: décembre

Sheet Validation (hidden)
B2: =Utilitaire!E8 -> Plan d'action 2013-2020 sur les changements climatiques
B3: ="Action " & Accueil!D58 -> Action en cours
B4: =Accueil!D55 -> 24.1.1
B5: Ministère porteur: | D5: =Accueil!$D$65 -> MERN (SITE) | E5: =Accueil!$D$65 -> MERN (SITE)
B6: Rapport de validation de la fiche de suivi
B8: Conseils de rédaction : | E8: Informations en date du : | G8: =Utilitaire!G6 -> 2022-03-31
B9: '- Cet onglet ne sera pas diffusé. - Nous apprécierions vos commentaires constructifs par rapport aux nouvelles fiches de suivi. La case B15 est réservée à cet effet. - Complétez la grille de validation ci-dessous (ligne 19) en cochant chaque point. Vous pouvez inscrire des commentaires à l'endroit prévu à cet effet.
B14: Votre appréciation de la fiche de suivi et suggestions pour les prochains exercices
B17: Grille de validation de la fiche de suivi
B18: Fin du PACC | G18: Commentaires
B19: Avez-vous complété le tableau de la ligne 204 de l'onglet Évaluation?
B20: Avez-vous saisi tous vos engagements à SAGIR (vous avez jusqu'au 31 mai)?
B21: Onglet Accueil | G21: Commentaires
B22: Vérifier que toutes les cases sont remplies.
B23: Les cases non remplies s'affichent en orange Les lignes 69 à 73 seront masquées pour la publication.
B24: Vérifier que la part de financement est écrite sous forme de pourcentage (ex. : 60 %).
B25: Inscrire un nombre entre 0 et 100 suivi du symbole "%". Si le pourcentage est variable, inscrire "Variable".
B26: Vérifier que le statut de l'action est toujours conforme avec son évolution.
B27: Utiliser l'information des onglets "Description" et Détail des projets" afin que le statut soit conforme avec l'évolution de l'action.
B28: Vérifier, s'il y a lieu, que le nom du programme est inscrit.
B29: Onglet Description | G29: Commentaires
B30: Vérifier que toutes les cases obligatoires sont remplies.
B31: Vérifier que tous les éléments pertinents en lien avec le COVID-19 sont inscrits au tableau prévu à cet effet.
B32: Vérifier que les éléments de classification de l'action sont sélectionnés à partir du menu déroulant.
B33: Vérifier que l'entièreté du texte est lisible.
B34: Vérifier que l'échéancier dans la section "Mise en œuvre" est inscrit.
B35: Vérifier que l'état d'avancement est sélectionné à partir du menu déroulant.
B36: Vérifier que le tableau "Plans, stratégies, politiques incluant la mise en œuvre de cette action" est rempli.
B37: Onglet Détail des projets | G37: Commentaires
B38: Vérifier que les informations confidentielles sont inscrites en bleu.
B39: Transmettre au BECC le rapport des résultats, si un projet est terminé.
B40: Vérifier le total des dépenses réelles de tous les projets correspond à celui inscrit dans les COF pour chaque année financière complétée.
B41: Vérifier que le total des dépenses réelles et prévues pour un projet n'excède pas le montant engagé.
B42: Vérifier l'utilisation des nouveaux statuts de projets pour les projets affectés par le COVID-19
B43: Onglet GES | G43: Commentaires
B44: Vérifier que le total des réductions de GES correspond aux données de l'onglet "Indicateurs".
B45: Vérifier que les deux cases de la ligne 20 sont bien remplies.
B46: Vérifier que le coût la tonne et la durée du projet sont bien indiqués pour tous les projets ayant soit un potentiel de réduction ou des réductions réelles (colonnes H et K).
B47: La méthode de calcul du coût la tonne doit respecter les indications en commentaire dans la cellule H23.
B48: Onglet Indicateurs | G48: Commentaires
B49: Vérifier la cohérence des cibles, des résultats et des résultats à comparer avec les cibles. (même unité de mesure, évolution des résultats annuels)
B50: S'il y a lieu, utiliser la colonne "Commentaires sur les résultats" afin de fournir davantage d'informations.
B51: Vérifier que les commentaires à l'intention du BECC qui ne sont pas pour diffusion sont inscrits en bleu.
B52: Vérifier qu'il y a des résultats pour tous les indicateurs. Inscrire un 0 comme résultat pour les indicateurs ne présentant pas de résultats.
B53: Si les résultats ne sont pas disponibles, vous devez inscrire un commentaire dans la colonne prévue à cet effet indiquant à quel moment ils seront disponibles.
B54: Transmettre au BECC pour approbation une annexe 4 (fiche-indicateur) si vous désirez qu'un indicateur soit ajouté.
B55: Vérifier que le tableau "PRÉVISIONS DES RETOMBÉES SUR LES RÉDUCTIONS DES ÉMISSIONS DE GES" est bien rempli si votre action vise la réduction des GES.
B56: Vérifier que le tableau "ADAPTATION AUX EFFETS DES CHANGEMENTS CLIMATIQUES" est bien rempli si votre action vise l'adaptation aux changements climatiques.
B57: Onglet Commentaires | G57: Commentaires
B58: Vérifier que les commentaires de l'exercice précédent s'appliquent toujours. Retirer tous les commentaires qui ne s'appliquent plus.
B59: Inscrire en noir les commentaires nécessaires à afficher lors de la publication des fiches
B60: Onglet Évaluation | G60: Commentaires
B61: Remplir et mettre à jour la liste des livrables. Veuillez transmettre tout livrable attendu au BECC avec votre fiche de suivi.
B62: Veuillez remplir la section Évaluation de l'action. Obligatoire pour la fin du PACC.
A81: Code de couleur | B81: Onglet concerné | C81: no ligne | D81: Description de la problématique | E81: No d'erreur | G81: Commentaires
B82: Description | D82: Les informations "Description, objectif, clientèle, critères d'admissibilité, processus de suivi de l'action, résultats attendus, résultats obtenus dans la dernière année, résultats obtenus, finalité, catégorie" sont manquantes dans l'onglet Description. | E82: 18
B83: détail des projets | D83: Aucun projet n'est mentionné dans la fiche. Cette situation est acceptable seulement si l'action n'est pas encore lancée (statut non démarrée ou en élaboration). | E83: 12
B84: GES | D84: Les informations "Potentiel de réduction des GES, réduction réelle des émissions de GES" sont manquantes dans l'onglet GES. | E84: 18
B85: indicateurs | D85: Aucun indicateur n'est inscrit pour cette action. Acceptable seulement si l'action n'est pas démarrée. | E85: 20

Sheet Modalités de fin du PACC (hidden)
B2: Échéancier de la fin du Plan d'action 2013-2020 sur les changements climatiques
B4: - | C4: 2021-03-31 | E4: Fin du PACC. Vous ne pouvez plus prendre de nouveaux engagements en vertu des actions du PACC.
B5: - | C5: 2021-05-31 | E5: Échéance pour saisir dans SAGIR les engagements (lettre d'octroi suffisante) pris avant le 31 mars.
B6: - | C6: 2021-12-31 | E6: Échéance pour signer les conventions de subventions se rapportant aux engagements saisis à SAGIR.
B7: - | C7: 2022-12-31 | E7: Fin des projets réalisés à l'interne des Partenaires
B8: - | C8: 2025-12-31 | E8: Fin des projets
B9: Lorsque tous les projets liés à une action seront terminés et que tous les résultats liés à l'action seront colligés, l'action sera inscrite comme étant « terminée » et sera retirée du suivi semestriel.
B13: Modalités détaillées de la fin du PACC
B14: (Ces modalités sont annexées à l'entente administrative concernant la mise en œuvre du PACC et concordent avec l'échéancier ci-dessus)
C15: 1. Les enveloppes budgétaires 2013-2020 des actions et sous-actions (Annexe 2 de l’ENTENTE) doivent être respectées en tout temps.
C16: 2. Tous les engagements (c.-à-d. une dépense jugée admissible et autorisée) doivent être pris avant le 31 mars 2021. Après cette date, les engagements pris ne peuvent plus être bonifiés.
C17: 3. Tous les engagements pris avant le 31 mars 2021 (par exemple : lettre d’octroi de subvention signée par vos autorités, contrat, convention ou entente signés, décret ou CT approuvé) doivent être saisis dans SAGIR au plus tard le 31 mai 2021. Une nouvelle version de la « Procédure de comptabilisation des dépenses portées au débit du Fonds d’électrification et de changements climatiques par les ministères et organismes partenaires » sera transmise ultérieurement lors de la fermeture de la fin d’année financière 2020-2021 afin de tenir compte de la fin du PACC.
C18: 4. Les conventions d’aide financière qui ne pourront être signées avant le 31 mars 2021 pourront être reconnues comme engagées seulement si le Partenaire transmet une lettre d’octroi de subvention au bénéficiaire avant cette date :
D19: · La lettre d’octroi devra mentionner le montant total de la subvention avec le détail des versements estimés par année financière et devra préciser qu’elle est conditionnelle à une décision du Conseil des ministres ou du Conseil du trésor lorsqu’applicable. Enfin, la lettre devra préciser que la subvention est conditionnelle à la signature d’une convention de subvention au plus tard le 31 décembre 2021.
C20: 5. Aucun engagement ne pourra s’échelonner au-delà du 31 décembre 2025.
C21: 6. Les frais d’administration (dépenses de rémunération et de fonctionnement) nécessaires au suivi de conventions d’aide financière ou de contrats pourront être imputés au FECC jusqu’au terme des projets ou au plus tard au 31 décembre 2025.
C22: 7. Les suivis se poursuivront tant que les actions ne seront pas terminées.
C23: 8. Aucune dépense pour les projets réalisés à l’interne (projets majoritairement réalisés en régie interne par le personnel du Partenaire) ne pourra être effectuée au-delà du 31 mars 2022.

Sheet Prochain Exercice-Commentaire (hidden)
B2: =Utilitaire!E8 -> Plan d'action 2013-2020 sur les changements climatiques
B4: Commentaires | E4: =Accueil!D65 & " - " &Accueil!D53 -> MERN (SITE) -
E5: ="Action " & Accueil!D58 -> Action en cours
B6: Conseils de rédaction : | D6: Informations en date du : | F6: =Utilitaire!G6 -> 2022-03-31
B7: - Veuillez inscrire ici tout commentaire pour prochain exercice
B10: Onglet de la fiche | C10: Case | D10: Commentaire
B11: Description | C11: c50 | D11: À compléter
B12: Détail des projets | C12: i40 | D12: Veuillez faire la mise à jour des status car des projets toujours actifs alors que le dernier versement remonte à plusieurs années.
B13: Indicateurs | C13: U30 | D13: Expliquez tout écart avec la cible
B14: Indicateurs | C14: b28 | D14: Ajouter la cible
B15: Indicateurs | C15: b29 | D15: Ajouter la cible
B16: Description | C16: j76 | D16: Étant donné l'état d'avancement, est-ce que l'échéancier devrait être mis à jour.
B17: Détail des projets | C17: ab276 | D17: À vérifier car le total devrait être égal aux montants engagés.
